Workbook

Sheet CENNIK
B4: CENNIK PRODUKTÓW CCTV
C6: Obowiązuje od 1 lipca 2024r.
C7: Podane ceny są cenami netto.
C8: Zamówienia: tel. 22 633 90 90 | zamowienia@cbcpoland.pl
B14: Kliknij wybraną grupę produktową (czarne pole) poniżej, aby przejść do cennika z wybranym asortymentem CCTV
B17: KAMERY | C17: Kamery GANZ | E17: VMS GANZ CORTROL | F17: Oprogramowanie GANZ CORTROL oraz dedykowany hardware i akcesoria
B19: REJESTRATORY | C19: Rejestratory cyfrowe GANZ | E19: OBIEKTYWY | F19: Obiektywy COMPUTAR do zastosowań w systemach SECURITY, MACHINE VISION, ITS
B21: AI BOX | C21: Nadajniki wideo GANZ AI | E21: PELCO Video Security | F21: Szeroka gama specjalistycznych kamer i obudów do zadań specjalnych
B23: KAMERY TERMOWIZYJNE | C23: Kamery termowizyjne GANZ | E23: USŁUGI TECHNICZNE | F23: Cennik usług technicznych oraz serwisowych
B25: WARUNKI HANDLOWE | C25: Szczegółowe warunki handlowe i gwarancyjne
C38: CBC (Poland) Sp. z o.o. | ul. Rydygiera 8, bud.17 | 01-793 Warszawa
C39: tel. 22 633 90 90 | zamowienia@cbcpoland.pl

Sheet CORTROL | oprogramowanie VMS
C3: CENNIK PRODUKTÓW CCTV
D7: RABAT: | E7: 0%
B8: Model (kod) towaru | C8: Opis | D8: Cena PLN detal | E8: Cena PLN z rabatem | F8: Dostępność
B10: Rejestratory GANZ CORTROL-NVR
B12: CORTROL-REC-R04 | C12: Serwer XEON, obsługa do 128 kanałów wideo i audio, do 3840kl/s w rozdzielczości 8MP, 2x Ethernet 1Gbit, OS WIN 10 PRO na dysku SSD. Obudowa RACK 1U, 4x HDD 3,5" SATA, Hot-Swap. Zasilacz 350W. | D12: 16,900 | E12: =D12-(D12*E$7) -> 16,900 | F12: ZAM
B13: CORTROL-REC-R04-RP | C13: Serwer XEON, obsługa do 128 kanałów wideo i audio, do 3840kl/s w rozdzielczości 8MP, 2x Ethernet 1Gbit, OS WIN 10 PRO na dysku SSD. Obudowa RACK 1U, 4x HDD 3,5" SATA, Hot-Swap. Zasilacz redundantny 400W. | D13: 19,900 | E13: =D13-(D13*E$7) -> 19,900 | F13: ZAM
B14: CORTROL-REC-R08 | C14: Serwer XEON, obsługa do 180 kanałów wideo i audio, do 5400kl/s w rozdzielczości 8MP, 2x Ethernet 1Gbit, OS WIN 10 PRO na dysku SSD. Obudowa RACK 2U, 8x HDD 3,5" SATA, RAID 5/6, Hot-Swap. Zasilacz 600W. | D14: 28,900 | E14: =D14-(D14*E$7) -> 28,900 | F14: ZAM
B15: CORTROL-REC-R08-RP | C15: Serwer XEON, obsługa do 180 kanałów wideo i audio, do 5400kl/s w rozdzielczości 8MP, 2x Ethernet 1Gbit, OS WIN 10 PRO na dysku SSD. Obudowa RACK 2U, 8x HDD 3,5" SATA, RAID 5/6, Hot-Swap. Zasilacz redundantny 800W. | D15: 32,900 | E15: =D15-(D15*E$7) -> 32,900 | F15: ZAM
B16: CORTROL-REC-R12-RP | C16: Serwer XEON, obsługa do 180 kanałów wideo i audio, do 5400kl/s w rozdzielczości 8MP, 2x Ethernet 1Gbit, OS WIN 10 PRO na dysku SSD. Obudowa RACK 2U, 12x HDD 3,5" SATA, RAID 5/6, Hot-Swap. Zasilacz redundantny 800W. | D16: 37,900 | E16: =D16-(D16*E$7) -> 37,900 | F16: ZAM
B17: CORTROL-REC-R16* | C17: Serwer XEON, obsługa do 240 kanałów wideo i audio, do 7200kl/s w rozdzielczości 8MP, 2x Ethernet 1Gbit, OS WIN 10 PRO na dysku SSD. Obudowa RACK 3U, 16x HDD 3,5" SATA/SAS, RAID 1/5/6, Hot-Swap. Zasilacz redundantny 720W. | D17: 44 900 (cena orientacyjna) | E17: 44 900 (cena orientacyjna) | F17: ZAM
B18: CORTROL-REC-R24* | C18: Serwer XEON, obsługa do 240 kanałów wideo i audio, do 7200kl/s w rozdzielczości 8MP, 2x Ethernet 1Gbit, OS WIN 10 PRO na dysku SSD. Obudowa RACK 4U, 24x HDD 3,5" SATA/SAS, RAID 1/5/6, Hot-Swap. Zasilacz redundantny 720W. | D18: 51 900 (cena orientacyjna) | E18: 51 900 (cena orientacyjna) | F18: ZAM
B19: *dla systemów z więcej niż 8 dyskami HDD w RAID zalecamy modele HDD Enterprise - WD Ultrastar DC lub Seagate Exos
B20: Gotowy serwer, preinstalowane oprogramowanie, bez dysków archiwalnych! Przybliżony czas realizacji zamówienia 21-45 dni roboczych.
B22: Archive disc HDDs
B23: HDD SATA | C23: Dysk twardy SATA wyceniany indywidualnie zgodnie z wymaganiami projektowymi. Cena zawiera montaż, konfigurację i alokację bazy danych | D23: na zapytanie | E23: =D23 -> na zapytanie | F23: ZAM
B25: Karta graficzna
B26: Karta graficzna | C26: Karta graficzna dobierana indywidualnie na podstawie ilości i typów analityk GANZ CORTROL wykorzystywanych w projekcie. | D26: na zapytanie | E26: =D26 -> na zapytanie | F26: ZAM
B28: Stacje klienckie GANZ CORTROL
B29: CORTROL-WS-MT-3mDP | C29: Stacja kliencka wysokiej wydajności i7, 16GB RAM, 1x Ethernet 1Gbit, Karta graficzna NVIDIA - wyjścia monitorowe - 3x mini-DisplayPort. OS WIN 11 PRO na dysku SSD. Obudowa MT, 3x HDD 3,5" SATA – 3 lata gwarancji OnSite NBD | D29: 13,000 | E29: =D29-(D29*E$7) -> 13,000 | F29: ZAM
B30: CORTROL-WS-MT-6mDP | C30: Stacja kliencka wysokiej wydajności i7, 16GB RAM, 1x Ethernet 1Gbit, Dwie karty graficzne NVIDIA - wyjścia monitorowe - 6x mini-DisplayPort. OS WIN 11 PRO na dysku SSD. Obudowa MT, 3x HDD 3,5" SATA – 3 lata gwarancji OnSite NBD | D30: 14,000 | E30: =D30-(D30*E$7) -> 14,000 | F30: ZAM
B31: UWAGA: ceny elementów rozbudowy nie podlegają rabatom!
B33: Moduły WE/WY MOXA - IP Ethernet
B34: MOXA ioLogik E1210 | C34: Moduł WE/WY do systemu CORTROL VMS. 16x Wejście cyfrowe. Komunikacja po sieci IP Ethernet 2x LAN 100Mbps, RJ45. Zasilanie 12-36VDC. Montaż na szynę DIN. | D34: 800 | E34: =D34 -> 800 | F34: ZAM
B35: MOXA ioLogik E1211 | C35: Moduł WE/WY do systemu CORTROL VMS. 16x Wyjście cyfrowe. Komunikacja po sieci IP Ethernet 2x LAN 100Mbps, RJ45. Zasilanie 12-36VDC. Montaż na szynę DIN. | D35: 900 | E35: =D35 -> 900 | F35: ZAM
B36: MOXA ioLogik E1212 | C36: Moduł WE/WY do systemu CORTROL VMS. 8x Wejście cyfrowe, 8x Wyjście cyfrowe. Komunikacja po sieci IP Ethernet 2x LAN 100Mbps, RJ45. Zasilanie 12-36VDC. Montaż na szynę DIN. | D36: 900 | E36: =D36 -> 900 | F36: ZAM
B37: MOXA ioLogik E1214 | C37: Moduł WE/WY do systemu CORTROL VMS. 6x Wejście cyfrowe, 6x Wyjście przekaźnikowe 2A @ 30VDC. Komunikacja po sieci IP Ethernet 2x LAN 100Mbps, RJ45. Zasilanie 12-36VDC. Montaż na szynę DIN. | D37: 900 | E37: =D37 -> 900 | F37: ZAM
B38: MDR-20-12 | C38: Zasilacz na szynę DIN do modułów WE/WY MOXA - 20W 12V 1.67A. | D38: 100 | E38: =D38 -> 100 | F38: ZAM
B39: UWAGA: ceny elementów rozbudowy nie podlegają rabatom!
B41: Licencje GANZ CORTROL DEMO
B42: Licencja CORTROL DEMO | C42: Wersja demonstracyjna oprogramowania GANZ CORTROL VMS w edycji Premier/Global. Licencja ograniczona czasowo. | D42: na zapytanie | E42: na zapytanie | F42: ZAM
B43: Licencje GANZ CORTROL PREMIER - 9 i 16 kanałowe
B44: ZNS-Premier9 | C44: Licencja elektroniczna na oprogramowanie GANZ CORTROL VMS w edycji Premier. Umożliwia podłączenie 9 kanałów wideo do pojedynczego serwera. Zawiera pakiet subskrypcji na usługę utrzymania oraz aktualizacji oprogramowania w okresie 2 lat od daty pierwotnej aktywacji. | D44: 3,400 | E44: =D44-(D44*E$7) -> 3,400 | F44: ZAM
B45: ZNS-Premier16 | C45: Licencja elektroniczna na oprogramowanie GANZ CORTROL VMS w edycji Premier. Umożliwia podłączenie 16 kanałów wideo do pojedynczego serwera. Zawiera pakiet subskrypcji na usługę utrzymania oraz aktualizacji oprogramowania w okresie 2 lat od daty pierwotnej aktywacji. | D45: 5,700 | E45: =D45-(D45*E$7) -> 5,700 | F45: ZAM
B46: Licencje GANZ CORTROL PREMIER Contract Renewal (przedłużenie subskrypcji)
B47: ZNS-2AC9 | C47: Przedłużenie subskrypcji dla licencji ZNS-Premier9 o dodatkowe 2 lata | D47: 760 | E47: =D47-(D47*E$7) -> 760 | F47: ZAM
B48: ZNS-2AC16 | C48: Przedłużenie subskrypcji dla licencji ZNS-Premier16 o dodatkowe 2 lata | D48: 1,400 | E48: =D48-(D48*E$7) -> 1,400 | F48: ZAM
B49: ZNS-8AC9 | C49: Przedłużenie subskrypcji dla licencji ZNS-Premier9 o dodatkowe 8 lat | D49: 1,600 | E49: =D49-(D49*E$7) -> 1,600 | F49: ZAM
B50: ZNS-8AC16 | C50: Przedłużenie subskrypcji dla licencji ZNS-Premier16 o dodatkowe 8 lat | D50: 2,800 | E50: =D50-(D50*E$7) -> 2,800 | F50: ZAM
B51: Licencje GANZ CORTROL PREMIER
B52: ZNS-Premier24 | C52: Licencja elektroniczna na oprogramowanie GANZ CORTROL VMS w edycji Premier. Umożliwia podłączenie 24 kanałów wideo do pojedynczego serwera. Zawiera pakiet subskrypcji na usługę utrzymania oraz aktualizacji oprogramowania w okresie 2 lat od daty pierwotnej aktywacji. Możliwość rozszerzenia licencji do 190 kanałów. | D52: 6,800 | E52: =D52-(D52*E$7) -> 6,800 | F52: ZAM
B53: GANZ CORTROL PREMIER 1 kanał
B54: ZNS-Premier1Ch | C54: Rozszerzenie licencji elektronicznej na oprogramowanie GANZ CORTROL VMS w edycji Premier o pojedynczy kanał wideo (konieczny zakup minimum 6 kanałów w jednej transzy). !!! UWAGA - Nie dotyczy edycji GANZ CORTROL VMS w wersji Premier9 oraz Premier16 !!! | D54: 320 | E54: =D54-(D54*E$7) -> 320 | F54: ZAM
B55: Licencje GANZ CORTROL PREMIER Contract Renewal (przedłużenie subskrypcji 1 kanał)
B56: ZNS-1ACP1 | C56: Przedłużenie subskrypcji dla pojedynczego kanału oprogramowania GANZ CORTROL VMS w edycji Premier o 1 rok. | D56: 52 | E56: =D56-(D56*E$7) -> 52 | F56: ZAM
B57: ZNS-2ACP1 | C57: Przedłużenie subskrypcji dla pojedynczego kanału oprogramowania GANZ CORTROL VMS w edycji Premier o 2 lata. | D57: 73 | E57: 73 | F57: ZAM
B58: ZNS-3ACP1 | C58: Przedłużenie subskrypcji dla pojedynczego kanału oprogramowania GANZ CORTROL VMS w edycji Premier o 3 lata. | D58: 94 | E58: 94 | F58: ZAM
B59: ZNS-4ACP1 | C59: Przedłużenie subskrypcji dla pojedynczego kanału oprogramowania GANZ CORTROL VMS w edycji Premier o 4 lata. | D59: 105 | E59: 105 | F59: ZAM
B60: ZNS-5ACP1 | C60: Przedłużenie subskrypcji dla pojedynczego kanału oprogramowania GANZ CORTROL VMS w edycji Premier o 5 lat. | D60: 115 | E60: 115 | F60: ZAM
B61: ZNS-6ACP1 | C61: Przedłużenie subskrypcji dla pojedynczego kanału oprogramowania GANZ CORTROL VMS w edycji Premier o 6 lat. | D61: 125 | E61: 125 | F61: ZAM
B62: ZNS-7ACP1 | C62: Przedłużenie subskrypcji dla pojedynczego kanału oprogramowania GANZ CORTROL VMS w edycji Premier o 7 lat. | D62: 140 | E62: 140 | F62: ZAM
B63: ZNS-8ACP1 | C63: Przedłużenie subskrypcji dla pojedynczego kanału oprogramowania GANZ CORTROL VMS w edycji Premier o 8 lat. | D63: 150 | E63: 150 | F63: ZAM
B64: Licencje GANZ CORTROL GLOBAL (Produkt Projektowy)
B65: ZNS-GStart50 | C65: Licencja elektroniczna na oprogramowanie GANZ CORTROL VMS w edycji Global. Pakiet startowy umożliwiający podłączenie 50 kanałów wideo w środowisku rozproszonym. Zawiera pakiet subskrypcji na usługę utrzymania oraz aktualizacji oprogramowania w okresie 2 lat od daty pierwotnej aktywacji. | D65: 33,000 | E65: =D65-(D65*E$7) -> 33,000 | F65: ZAM
B66: ZNS-GStart100 | C66: Licencja elektroniczna na oprogramowanie GANZ CORTROL VMS w edycji Global. Pakiet startowy umożliwiający podłączenie 100 kanałów wideo w środowisku rozproszonym. Zawiera pakiet subskrypcji na usługę utrzymania oraz aktualizacji oprogramowania w okresie 2 lat od daty pierwotnej aktywacji. | D66: 47,000 | E66: =D66-(D66*E$7) -> 47,000 | F66: ZAM
B67: Licencje GANZ CORTROL GLOBAL - 1 kanał
B68: ZNS-GL-1CH | C68: Rozszerzenie licencji elektronicznej na oprogramowanie GANZ CORTROL VMS w edycji Global o pojedynczy kanał wideo (konieczny zakup minimum 6 kanałów w jednej transzy). | D68: 530 | E68: =D68-(D68*E$7) -> 530 | F68: ZAM
B69: Licencje GANZ CORTROL GLOBAL Contract Renewal (przedłużenie subskrypcji)
B70: ZNS-1ACG1 | C70: Przedłużenie subskrypcji dla pojedynczego kanału oprogramowania GANZ CORTROL VMS w edycji Global o 1 rok. (Tylko dla posiadaczy licencji na oprogramowanie GANZ CORTROL VMS w edycji Global). | D70: 145 | E70: =D70-(D70*E$7) -> 145 | F70: ZAM
B71: ZNS-2ACG1 | C71: Przedłużenie subskrypcji dla pojedynczego kanału oprogramowania GANZ CORTROL VMS w edycji Global o 2 lata. (Tylko dla posiadaczy licencji na oprogramowanie GANZ CORTROL VMS w edycji Global). | D71: 255 | E71: 255 | F71: ZAM
B72: ZNS-3ACG1 | C72: Przedłużenie subskrypcji dla pojedynczego kanału oprogramowania GANZ CORTROL VMS w edycji Global o 3 lata. (Tylko dla posiadaczy licencji na oprogramowanie GANZ CORTROL VMS w edycji Global). | D72: 350 | E72: 350 | F72: ZAM
B73: ZNS-4ACG1 | C73: Przedłużenie subskrypcji dla pojedynczego kanału oprogramowania GANZ CORTROL VMS w edycji Global o 4 lata. (Tylko dla posiadaczy licencji na oprogramowanie GANZ CORTROL VMS w edycji Global). | D73: 450 | E73: 450 | F73: ZAM
B74: ZNS-5ACG1 | C74: Przedłużenie subskrypcji dla pojedynczego kanału oprogramowania GANZ CORTROL VMS w edycji Global o 5 lat. (Tylko dla posiadaczy licencji na oprogramowanie GANZ CORTROL VMS w edycji Global). | D74: 520 | E74: 520 | F74: ZAM
B75: ZNS-6ACG1 | C75: Przedłużenie subskrypcji dla pojedynczego kanału oprogramowania GANZ CORTROL VMS w edycji Global o 6 lat. (Tylko dla posiadaczy licencji na oprogramowanie GANZ CORTROL VMS w edycji Global). | D75: 590 | E75: 590 | F75: ZAM
B76: ZNS-7ACG1 | C76: Przedłużenie subskrypcji dla pojedynczego kanału oprogramowania GANZ CORTROL VMS w edycji Global o 7 lat. (Tylko dla posiadaczy licencji na oprogramowanie GANZ CORTROL VMS w edycji Global). | D76: 620 | E76: 620 | F76: ZAM
B77: ZNS-8ACG1 | C77: Przedłużenie subskrypcji dla pojedynczego kanału oprogramowania GANZ CORTROL VMS w edycji Global o 8 lat. (Tylko dla posiadaczy licencji na oprogramowanie GANZ CORTROL VMS w edycji Global). | D77: 650 | E77: 650 | F77: ZAM
B78: Licencje GANZ CORTROL UPGRADE (rozszerzenia)
B79: ZNS-UP1Ch-GL-1Ch | C79: Migracja pojedynczego kanału z edycji Premier do edycji Global (Tylko dla posiadaczy licencji na oprogramowanie GANZ CORTROL VMS w edycji Global i migrujących kanały z edycji Premier). | D79: 280 | E79: =D79-(D79*E$7) -> 280 | F79: ZAM
B80: ZNS-U-P9/P16-P24 | C80: Rozszerzenie licencji na oprogramowanie GANZ CORTROL VMS w edycji Premier: ZNS-Premier9/16 - > ZNS-Premier24 | D80: 4,300 | E80: =D80-(D80*E$7) -> 4,300 | F80: ZAM
B81: Licencje analityczne GANZ CORTROL
B82: ZNS-CVA-Base-1 | C82: Licencja elektroniczna na moduł analityki obrazu CVA dla oprogramowania GANZ CORTROL VMS. Licencja bazowa: wykrywa ludzi, pojazdy, zwierzęta oraz inne sklasyfikowane rodzaje obiektów. Metadane zawierają klasyfikację obiektów oraz informacje o przemieszczaniu się wykrytych obiektów w scenie. Reguły: Wykrycie obiektu, klasyfikacja obiektu, zliczanie obiektów, wykrycie w strefie, alarmy i wyszukiwanie obiektów w czasie rzeczywistym. | D82: 890 | E82: =D82-(D82*E$7) -> 890 | F82: ZAM
B83: ZNS-CVA-PPE-1 | C83: Licencja elektroniczna na moduł analityki obrazu CVA dla oprogramowania GANZ CORTROL VMS. Umożliwia detekcję ubioru ochronnego w postaci kasków budowlanych oraz kamizelek bezpieczeństwa (żółte i pomarańczowne). Metadane zawierają klasyfikację obiektów oraz informacje o przemieszczaniu się wykrytych obiektów w scenie. Reguły: Wykrycie obiektu, klasyfikacja obiektu, wykrycie w strefie, alarmy i wyszukiwanie obiektów w czasie rzeczywistym. *Wymaga oprogramowania GANZ CORTROL VMS v.1.22.0 oraz nowszych* | D83: 1,700 | E83: 1,700 | F83: ZAM
B84: ZNS-CVA-LPR-D-1 | C84: Licencja elektroniczna na moduł LPR dla oprogramowanie GANZ CORTROL VMS. Rozpoznawanie standardowych tablic rejestracyjnych dla prędkości do 80 km/h. Wsparcie dla procesowania CPU oraz GPU. Umożliwia podłączenie 1 kanału wideo do pojedynczego serwera. Możliwość aktywacji wielu licencji jednego typu na jednym serwerze. *Wymaga oprogramowania GANZ CORTROL LPR v.3.0.0 oraz nowszych* | D84: 3,900 | E84: 3,900 | F84: ZAM
B85: ZNS-CVA-LPR-C-1 | C85: Licencja elektroniczna na moduł LPR dla oprogramowanie GANZ CORTROL VMS. Rozpoznawanie standardowych tablic rejestracyjnych dla prędkości do 250 km/h. Zaawansowana algorytm rozróżniający producenta, model, kolor, kierunek poruszania się oraz generujący metadane. Wsparcie dla procesowania GPU. Umożliwia podłączenie 1 kanału wideo do pojedynczego serwera. Możliwość aktywacji wielu licencji jednego typu na jednym serwerze. *Wymaga oprogramowania GANZ CORTROL LPR v.3.0.0 oraz nowszych* | D85: 7,800 | E85: 7,800 | F85: ZAM
B86: ZNS-CVA-UICC-1 | C86: Licencja elektroniczna na moduł LPR dla oprogramowanie GANZ CORTROL VMS. Rozpoznawanie numerów międzynarodowych kontenerów transportowych oraz oznaczeń UIC taboru kolejowego. Wsparcie dla procesowania CPU oraz GPU. Umożliwia podłączenie 1 kanału wideo do pojedynczego serwera. Możliwość aktywacji wielu licencji jednego typu na jednym serwerze. *Wymaga oprogramowania GANZ CORTROL LPR v.3.0.0 oraz nowszych* | D86: 19,000 | E86: 19,000 | F86: ZAM
B87: ZNS-CVA-FR-1 | C87: Licencja elektroniczna na moduł FR dla oprogramowanie GANZ CORTROL VMS. Rozpoznawanie twarzy w kadrze. Wsparcie dla procesowania GPU. Umożliwia podłączenie 1 kanału wideo do pojedynczego serwera. Możliwość aktywacji wielu licencji jednego typu na jednym serwerze. *Wymaga oprogramowania GANZ CORTROL FR v.3.2.0 oraz nowszych* | D87: 7,800 | E87: 7,800 | F87: ZAM
B88: ZNS-UP-LPR-1 | C88: Migracja licencji "ZNS-LPR-2" do "ZNS-CVA-LPR-D-1" dla pojedynczego kanału. Aby dokonać migracji całego pakietu "ZNS-LPR-2" należy zakupić 2 licencje tego typu. | D88: 3,200 | E88: 3,200 | F88: ZAM
B89: GANZ CORTROL CROSS LINK LICENCJE
B90: ZNS-CL-Base-1 | C90: Licencja elektroniczna na moduł CrossLink dla oprogramowania GANZ CORTROL VMS - Poziom Basic. Interaktywne zewnętrzne źródła URL (przykładowo - strony WWW). Pakiet umożliwia integrację oraz nagrywanie dla 1 kanału wideo. Możliwość aktywacji wielu kanałów w jednym systemie GANZ CORTROL VMS. *Wymaga oprogramowania GANZ CORTROL VMS v.1.20.1 oraz nowszych* | D90: 2,600 | E90: =D90-(D90*E$7) -> 2,600 | F90: ZAM
B91: ZNS-CL-Advance-1 | C91: Licencja elektroniczna na moduł CrossLink dla oprogramowania GANZ CORTROL VMS - Poziom Advanced. Interaktywne zewnętrzne aplikacje (przykładowo - sesje RDP). Pakiet umożliwia integrację oraz nagrywanie dla 1 kanału wideo. Możliwość aktywacji wielu kanałów w jednym systemie GANZ CORTROL VMS. *Wymaga oprogramowania GANZ CORTROL VMS v.1.20.1 oraz nowszych* | D91: 4,400 | E91: =D91-(D91*E$7) -> 4,400 | F91: ZAM
B92: BLK247 Licencja
B93: ZNS-BLK-UNL | C93: Licencja elektroniczna na obsługę sterownika urządzeń Leica BLK247 dla oprogramowania GANZ CORTROL VMS. Pakiet umożliwia obsługę wideo oraz zdarzeń z urządzeń BLK247. Możliwość aktywacji wielu kanałów dla pojedynczej licencji w jednym systemie GANZ CORTROL VMS. *Wymaga oprogramowania GANZ CORTROL VMS v.1.20.1 oraz nowszych* | D93: 6,000 | E93: =D93-(D93*E$7) -> 6,000 | F93: ZAM
B94: Usługa transferu licencji VCA (analiza obrazu)
B95: ZNS-VCA-SWAP | C95: Opłata manipulacyjna związana z transferem pojedynczej aktywowanej licencji VCA z jednostki na której wykonywana była pierwotna aktywacja na inną po okresie 12msc od daty pierwotnej aktywacji za pomocą Tokena VCA. Stawka usługi nie podlega rabatom! | D95: 300 | E95: =D95 -> 300 | F95: ZAM
B97: Licencje na oprogramowanie firm zewnętrznych (informacja poglądowa)
B98: ZNS-NEDAP | C98: Licencja elektroniczna na integrację systemu kontroli dostępu NEDAP AEOS z GANZ CORTROL | D98: 16,000 | E98: =D98 -> 16,000 | F98: ZAM
B99: LIC-VISO-ST-IS-CORT ( RACS 5 ) | C99: (Informacja poglądowa) Licencja elektroniczna dla oprogramowania VISO ST systemu Roger RACS 5 na obsługę połączeń z modułem integracji w GANZ CORTROL VMS. Licencja współpracuje z oprogramowaniem VISO ST. Szczegóły odnośnie licencji oraz konfiguracji dostępne są u producenta oprogramowania. | D99: Informacja tel. | E99: Informacja tel. | F99: ZAM
B101: USŁUGA WSPARCIA TECHNICZNEGO
B102: Uruchomienie systemu GANZ CORTROL (Zdalne) | C102: Usługa uruchomienia i konfiguracji systemu bazującego na aplikacji GANZ CORTROL Premier/Global. Usługa zawiera pakiet 6 godzin połączenia zdalnego w danym dniu + 4 godziny do wykorzystania na modyfikacje konfiguracji w okresie następnych 30 dni. Dalsze wsparcie naliczane będzie według cennika. Nie dotyczy modułów analityki VCA, AI, LPR, FR. Usługa realizowana poprzez dedykowane narzędzie pulpitu zdalnego TeamViewer w wersji CBC. Dla realizacji usługi wymagane jest wypełnienie oraz podpisanie przez zamawiającego oświadczenia o akceptacji zakresu oraz warunków asysty technicznej. | D102: 2,800 | E102: =D102 -> 2,800 | F102: ZAM
B103: Uruchomienie systemu GANZ CORTROL (Lokalne) | C103: Usługa uruchomienia i konfiguracji systemu bazującego na aplikacji GANZ CORTROL Premier/Global. Usługa zawiera pakiet 8 godzin wsparcia lokalnego na obiekcie danego dnia (dojazd wliczony w cenę) + 4 godziny do wykorzystania na modyfikacje konfiguracji w okresie następnych 30 dni (zdalny pulpit). Dalsze wsparcie naliczane będzie według cennika. Nie dotyczy modułów analityki VCA, AI, LPR, FR. Usługa realizowana poprzez dedykowane narzędzie pulpitu zdalnego TeamViewer w wersji CBC. Dla realizacji usługi wymagane jest wypełnienie oraz podpisanie przez zamawiającego oświadczenia o akceptacji zakresu oraz warunków asysty technicznej. | D103: 3,800 | E103: =D103 -> 3,800 | F103: ZAM
B104: Zdalne wsparcie techniczne (opłata za każdą rozpoczętą godzinę) | C104: Usługa zdalnego wsparcia dla produktów: CORTROL oraz VCA - opłata za każdą rozpoczętą godzinę dla klientów | D104: 300 | E104: =D104 -> 300 | F104: ZAM
B105: Wsparcie techniczne na obiekcie (opłata za każdą rozpoczętą godzinę) | C105: Usługa lokalnego wsparcia na obiekcie dla produktów: CORTROL oraz VCA - opłata za każdą rozpoczętą godzinę dla klientów. Wymagane podpisanie oświadczenia o spełnieniu warunków przygotowania systemu dla asysty lokalnej. | D105: 300 | E105: =D105 -> 300 | F105: ZAM
B106: Dojazd do obiektu | C106: Dojazd specjalisty technicznego na obiekt | D106: 350 | E106: =D106 -> 350 | F106: ZAM
B108: * Klientom, którzy odbyli szkolenie z zakresu rozwiązań CORTROL i/lub VCA przysługuje pakiet 5h zdalnego wsparcia technicznego.
B109: Zarejestruj się na bezpłatne szkolenie: szkolenia@cbcpoland.pl
B110: Ceny są cenami detalicznymi PLN netto, do których należy doliczyć 23% VAT. UWAGA: stawki usług nie podlegają rabatom!

Sheet GANZ | Rozwiązania CCTV
D3: CENNIK PRODUKTÓW CCTV
E6: RABAT: | F6: 0%
B8: Model (kod) towaru | D8: Opis | E8: Cena PLN detal | F8: Cena PLN z rabatem | G8: Dostępność
B10: KAMERY IP
B12: KOMPAKTOWE
B13: ZN8-80C4D | D13: Kamera IP GENSTAR kompaktowa 4MP (50FPS) | 1/2.8" CMOS, 3 strumienie H.265/H.264/MJPEG, WDR, mechaniczny filtr IR-cut, Alarm 1x IN / 1x OUT, Audio 1x IN / 1x OUT, RS485, wyjście CVBS, wbudowany mikrofon, obsługa kart SD do 256GB, 3D-DNR, HLC, BLC, DC12V/ AC24V/ PoE(802.3af). Kamera bez obiektywu. Obiektywy do nabycia w CBC Poland. Wbudowane funkcje analityki obrazu GenSTAR IVS 2.0 (Analityka AI oparta na wzorcach). Kamera zgodna z NDAA | E13: 1,600 | F13: =E13-(E13*F$6) -> 1,600 | G13: MAG
B15: KOPUŁKOWE TYPU TURRET
B16: ZN8-51E5F28NT | D16: Kamera IP GENSTAR Turret 5MP (20FPS) | 2.8mm Fixed | 1/3" CMOS, 2 strumienie H.265/H.264/MJPEG, dWDR, mechaniczny filtr IR-cut, IR LED do 30 metrów, white LED 30m, wbudowany mikrofon, ONVIF S, obsługa kart SD do 256GB, 3D-DNR, HLC, BLC, ROI, DEFOG, tryb korytarzowy, IP66, DC12V / PoE(802.3af). Wbudowana analityka obrazu z funkcją detekcji człowieka. Kamera zgodna z NDAA. (2 lata gwarancji) | E16: 600 | F16: =E16-(E16*F$6) -> 600 | G16: MAG
B17: ZA8-CBK646M | D17: Puszka natynkowa do kamer GENSTAR ZN8-51E5F28NT | E17: 190 | F17: =E17-(E17*F$6) -> 190 | G17: MAG
B18: ZN8-71E5M213D-M | D18: Kamera IP GENSTAR kopułkowa 5MP (25/30FPS) | 2.7-13.5mm MFZ | 1/2.7" CMOS, 3 strumienie H.265/H.264/MJPEG, True WDR, mechaniczny filtr IR-cut, SMART-IR do 40 metrów, Alarm 1x IN / 1x OUT, Audio 1x IN / 1x OUT, mikrofon, ONVIF S, obsługa kart SD do 256GB, 3D-DNR, HLC, BLC, tryb korytarzowy 9:16, ROI, Defog. Obudowa metal+plastyk, IP66, DC12V / PoE (802.3af). Wbudowane funkcje analityki obrazu GenSTAR IVS 2.0 (Analityka AI oparta na wzorcach).Kamera zgodna z NDAA. | E18: 1,100 | F18: =E18-(E18*F$6) -> 1,100 | G18: MAG
B19: ZA8-CBK645D | D19: Puszka natynkowa do kamery GANZ ZN8-71E5M213D-M | E19: 170 | F19: =E19-(E19*F$6) -> 170 | G19: MAG
B20: ZA8-CBK501 | D20: Wysięgnik naścienny do kamery GENSTAR ZN8-71E5M213D-M | E20: 150 | F20: 150 | G20: ZAM
B21: ZA8-CBK102 | D21: Mocowanie narożne do wysięgnika ZA8-CBK501 | E21: 130 | F21: 130 | G21: ZAM
B22: ZA8-CBK101 | D22: Adapter do instalacji na słupie do wysięgnika ZA8-CBK501, zakres montażu opasek na uchwytach 130-152mm | E22: 115 | F22: 115 | G22: ZAM
B24: KOPUŁKOWE
B25: ZN8-80DT5M213DL | D25: Kamera IP GENSTAR kopułkowa 5MP (25FPS) | 2.7-13.5mm MFZ | 1/2.8" CMOS, 3 strumienie H.265/H.264/MJPEG, WDR>96dB, mechaniczny filtr IR-cut, SMART-IR do 30 metrów, Alarm 1x IN / 1x OUT, Audio 1x IN / 1x OUT, ONVIF S, obsługa kart SD do 256GB, 3D-DNR, HLC, BLC, tryb korytarzowy 9:16, ROI, Defog. Obudowa metalowa wandaloodporna IK10, IP67, DC12V / PoE (802.3af). Wbudowane funkcje analityki obrazu GenSTAR IVS 2.0 (Analityka AI oparta na wzorcach). Kamera zgodna z NDAA. | E25: 1,300 | F25: =E25-(E25*F$6) -> 1,300 | G25: MAG
B26: ZN8-80DT8M213DL | D26: Kamera IP GENSTAR kopułkowa 8MP (25FPS) | 2.7-13.5mm MFZ | 1/2.8" CMOS, 3 strumienie H.265/H.264/MJPEG, WDR>96dB, mechaniczny filtr IR-cut, SMART-IR do 30 metrów, Alarm 1x IN / 1x OUT, Audio 1x IN / 1x OUT, ONVIF S, obsługa kart SD do 256GB, 3D-DNR, HLC, BLC, tryb korytarzowy 9:16, ROI, Defog. Obudowa metalowa wandaloodporna IK10, IP67, DC12V / PoE (802.3af). Wbudowane funkcje analityki obrazu GenSTAR IVS 2.0 (Analityka AI oparta na wzorcach). Kamera zgodna z NDAA. | E26: 1,800 | F26: 1,800 | G26: MAG
B27: ZA8-JBMP-2 | D27: Puszka natynkowa do kamer GENSTAR kopułowych wandaloodpornych (⌀120mm) | E27: 220 | F27: =E27-(E27*F$6) -> 220 | G27: MAG
B28: ZN8-71DT5F28NL | D28: Kamera IP GENSTAR kopułkowa 5MP (25/30FPS) | 2.8mm Fixed | 1/2.7" CMOS, 3 strumienie H.265/H.264/MJPEG, True WDR, mechaniczny filtr IR-cut, SMART-IR do 30 metrów, ONVIF S, obsługa kart SD do 256GB, 3D-DNR, HLC, BLC, tryb korytarzowy 9:16, ROI, Defog. Obudowa metalowa wandaloodporna IK10, IP67, DC12V / PoE (802.3af). Wbudowane funkcje analityki obrazu GenSTAR IVS 2.0 (Analityka AI oparta na wzorcach). Kamera zgodna z NDAA. | E28: 850 | F28: 850 | G28: MAG
B29: ZA8-CBK656 | D29: Adapter natynkowy do kamer GANZ ZN8-71DT5F28NL. (⌀110mm) | E29: 120 | F29: =E29-(E29*F$6) -> 120 | G29: MAG
B30: ZA8-CBK627B | D30: Adapter do instalacji na słupie puszki ZA8-JBMP, zakres montażu opasek na uchwytach 130-152mm | E30: 180 | F30: 180 | G30: MAG
B33: BULLET
B34: ZNP-MB5F28D-A | D34: Kamera IP PIXELPRO bullet 5MP (30fps) | 2.8mm F-IRIS | 1/2.8" CMOS, 3 strumienie (H.265/H.264/MJPEG), technologia "VBR+", WDR>120dB, mechaniczny filtr IR-cut; SMART-IR do 30 metrów, ONVIF S, 3D-DNR, HLC, BLC, Auto-ROI, Defog. Obudowa metalowa, IP66, 12VDC/PoE(802.11af). Wbudowane funkcje analityki obrazu PixelPRO AI z możliwością aktywacji do 2 licencji AI (ograniczenie do procesowania 1 funkcji AI w czasie rzeczywistym). | E34: 1,300 | F34: =E34-(E34*F$6) -> 1,300 | G34: MAG
B35: ZNP-B5M212DP-A | D35: Kamera IP PIXELPRO bullet 5MP (30fps) | 2.8-12mm MFZ P-IRIS | 1/2.8" CMOS, 3 strumienie (H.265/H.264/MJPEG), technologia "VBR+", WDR>120dB, mechaniczny filtr IR-cut; SMART-IR do 50 metrów, Alarm 1x IN / 1x OUT, Audio 1x IN / 1x OUT, ONVIF S, obsługa kart SD do 128GB, 3D-DNR, HLC, BLC, Auto-ROI, Defog. Obudowa metalowa, IP67, IK09, 12VDC/24VAC/PoE(802.11af), DC12V OUT. Wbudowane funkcje analityki obrazu PixelPRO AI z możliwością aktywacji do 2 licencji AI (ograniczenie do procesowania 1 funkcji AI w czasie rzeczywistym). | E35: 2,100 | F35: 2,100 | G35: MAG
B36: ZNP-B5M550D-A | D36: Kamera IP PIXELPRO bullet 5MP (30fps) | 5-50mm MFZ DC-IRIS | 1/2.8" CMOS, 3 strumienie (H.265/H.264/MJPEG), technologia "VBR+". WDR>120dB, mechaniczny filtr IR-cut; SMART-IR do 80 metrów, Alarm 1x IN / 1x OUT, Audio 1x IN / 1x OUT, Onvif profil S, obsługa kart SD do 128GB, 3D-DNR, HLC, BLC, Auto-ROI, Defog. Sprzętowy Watchdog. Obudowa metalowa, IP67, IK09, DC12V / AC24V / PoE(802.11af), DC12V OUT. Wbudowane funkcje analityki obrazu PixelPRO AI z możliwością aktywacji do 2 licencji AI (ograniczenie do procesowania 1 funkcji AI w czasie rzeczywistym). | E36: 2,900 | F36: 2,900 | G36: MAG
B37: LCA-JB-S | D37: Puszka natynkowa do kamer GANZ ZNP-MB5F28D(-A) | E37: 120 | F37: 120 | G37: MAG
B38: LCA-JB | D38: Puszka natynkowa do kamer GANZ ZNP-B5M212DP(-A) oraz ZNP-B5M550D(-A) | E38: 140 | F38: 140 | G38: MAG
B39: LCA-PM | D39: Adapter do instalacji na słupie puszki LCA-JB oraz LCA-JB-S, zakres montażu opasek na uchwytach 103-127mm | E39: 140 | F39: 140 | G39: MAG
B40: ZA8-JBMP-2 | D40: Puszka natynkowa do kamer typu bullet z serii PixelPRO (ZN / ZNC / ZNP) | E40: 220 | F40: 220 | G40: MAG
B41: ZA8-CBK627B | D41: Adapter do instalacji na słupie puszki ZA8-JBMP-2 | E41: 180 | F41: 180 | G41: MAG
B42: ZN8-51MB5F28NT | D42: Kamera IP GENSTAR bullet 5MP (20FPS) | 2.8mm Fixed | 1/3" CMOS, 2 strumienie H.265/H.264/MJPEG, dWDR, mechaniczny filtr IR-cut, IR LED do 30 metrów, white LED 30m, wbudowany mikrofon i głośnik, ONVIF S, obsługa kart SD do 256GB, 3D-DNR, HLC, BLC, ROI, DEFOG, tryb korytarzowy, IP66, DC12V / PoE(802.3af). Wbudowana analityka obrazu z funkcją detekcji człowieka. Kamery zgodne z NDAA. (2 lata gwarancji) | E42: 600 | F42: 600 | G42: MAG
B43: LCA-JB-S | D43: Puszka natynkowa do kamer GANZ ZN8-51MB5F28NT | E43: 120 | F43: 120 | G43: MAG
B44: ZN8-81MB4F28N | D44: Kamera IP GENSTAR bullet 4MP (25FPS) | 2.8mm Fixed | 1/2.7" CMOS, 3 strumienie H.265/H.264/MJPEG, d-WDR, mechaniczny filtr IR-cut, SMART-IR do 30 metrów, ONVIF S, obsługa kart SD do 256GB, 3D-DNR, HLC, BLC, tryb korytarzowy 9:16, ROI, Defog. Obudowa metalowa IP67, DC12V / PoE (802.3af). Wbudowane funkcje analityki obrazu GenSTAR IVS 2.0 (Analityka AI oparta na wzorcach). Kamery zgodne z NDAA. | E44: 850 | F44: 850 | G44: MAG
B45: ZN8-81MB4F4N | D45: Kamera IP GENSTAR bullet 4MP (25FPS) | 4mm Fixed | 1/2.7" CMOS, 3 strumienie H.265/H.264/MJPEG, d-WDR, mechaniczny filtr IR-cut, SMART-IR do 35 metrów, ONVIF S, obsługa kart SD do 256GB, 3D-DNR, HLC, BLC, tryb korytarzowy 9:16, ROI, Defog. Obudowa metalowa IP67, DC12V / PoE (802.3af). Wbudowane funkcje analityki obrazu GenSTAR IVS 2.0 (Analityka AI oparta na wzorcach). Kamera zgodna z NDAA. | E45: 850 | F45: 850 | G45: MAG
B46: ZA8-CBK656A | D46: Puszka natynkowa do kamer GANZ ZN8-81MB4F28N oraz ZN8-81MB4F4N. | E46: 170 | F46: 170 | G46: MAG
B47: ZN8-80B5M213D | D47: Kamera IP GENSTAR bullet 5MP (25FPS) | 2.7-13.5mm MFZ | 1/2.8" CMOS, 3 strumienie H.265/H.264/MJPEG, WDR>96dB, mechaniczny filtr IR-cut, SMART-IR do 50 metrów, Alarm 1x IN / 1x OUT, Audio 1x IN / 1x OUT, ONVIF S, obsługa kart SD do 256GB, 3D-DNR, HLC, BLC, tryb korytarzowy 9:16, ROI, Defog. Obudowa metalowa IP67, DC12V / PoE (802.3af). Wbudowane funkcje analityki obrazu GenSTAR IVS 2.0 (Analityka AI oparta na wzorcach). Kamera zgodna z NDAA | E47: 1,300 | F47: 1,300 | G47: MAG
B48: ZN8-71B5M213D | D48: Kamera IP GENSTAR bullet 5MP (25/30FPS) | 2.7-13.5mm MFZ | 1/2.7" CMOS, 3 strumienie H.265/H.264/MJPEG, True WDR, mechaniczny filtr IR-cut, SMART-IR do 40 metrów, Alarm 1x IN / 1x OUT, Audio 1x IN / 1x OUT, ONVIF S, obsługa kart SD do 256GB, 3D-DNR, HLC, BLC, ROI, Defog. Obudowa metal, IP67, DC12V / PoE (802.3af). Wbudowane funkcje analityki obrazu GenSTAR IVS 2.0 (Analityka AI oparta na wzorcach).Kamera zgodna z NDAA. | E48: 1,100 | F48: 1,100 | G48: MAG
B49: ZN8-81B4M213N | D49: Kamera IP GENSTAR bullet 4MP (25FPS) | 2.7-13.5mm MFZ | 1/2.7" CMOS, 3 strumienie H.265/H.264/MJPEG, d-WDR, mechaniczny filtr IR-cut, SMART-IR do 40 metrów, ONVIF S, obsługa kart SD do 256GB, 3D-DNR, HLC, BLC, tryb korytarzowy 9:16, ROI, Defog. Obudowa metalowa IP67, DC12V / PoE (802.3af). Wbudowane funkcje analityki obrazu GenSTAR IVS 2.0 (Analityka AI oparta na wzorcach). Kamera zgodna z NDAA. | E49: 1,000 | F49: 1,000 | G49: MAG | H49: Do wyczerpania zapasów
B50: ZN8-80B8M213D | D50: Kamera IP GENSTAR bullet 8MP (25FPS) | 2.7-13.5mm MFZ | 1/2.8" CMOS, 3 strumienie H.265/H.264/MJPEG, WDR>96dB, mechaniczny filtr IR-cut, SMART-IR do 40 metrów, Alarm 1x IN / 1x OUT, Audio 1x IN / 1x OUT, ONVIF S, obsługa kart SD do 256GB, 3D-DNR, HLC, BLC, tryb korytarzowy 9:16, ROI, Defog. Obudowa metalowa IP67, DC12V / PoE (802.3af). Wbudowane funkcje analityki obrazu GenSTAR IVS 2.0 (Analityka AI oparta na wzorcach). Kamera zgodna z NDAA. | E50: 1,800 | F50: 1,800 | G50: MAG
B51: ZA8-JBMP-2 | D51: Puszka natynkowa do kamer GENSTAR w obudowie typu bullet | E51: 220 | F51: 220 | G51: MAG
B52: ZA8-CBK627B | D52: Adapter do instalacji na słupie puszki ZA8-JBMP, zakres montażu opasek na uchwytach 130-152mm | E52: 180 | F52: 180 | G52: MAG
B53: ZN8-80BT4M213DL | D53: Kamera IP GENSTAR bullet 4MP (25/30FPS) | 3.6-11mm MFZ | 1/1.8" CMOS, 3 strumienie H.265 / H.264 / MJPEG / WDR>96dB, mechaniczny filtr IR-cut, SMART-IR do 60 metrów, Alarm 1x IN / 1x OUT, Audio 1x IN / 1x OUT, ONVIF, obsługa kart SD do 256GB, 2D/3D-DNR, HLC, BLC, DEFOG, True WDR / tryb korytarzowy 9:16, ROI, Defog. Obudowa metalowa wandaloodporna IK10, IP67, DC12V / PoE (802.3af). Wbudowane funkcje analityki obrazu GenSTAR IVS 2.0 (Analityka AI oparta na wzorcach). Kamera zgodna z NDAA. | E53: 2,100 | F53: 2,100 | G53: MAG
B54: ZA8-JBMP-2 | D54: Puszka natynkowa do kamer GENSTAR w obudowie typu bullet | E54: 220 | F54: 220 | G54: MAG
B55: ZA8-CBK627B | D55: Adapter do instalacji na słupie puszki ZA8-JBMP, zakres montażu opasek na uchwytach 130-152mm | E55: 180 | F55: 180 | G55: MAG
B56: ZN8-80B4F4D-J4 | D56: Kamera IP GENSTAR bullet 4MP (30FPS) | 4mm MFZ | 1/1.8" CMOS, 3 strumienie H.265/H.264/MJPEG, WDR>96dB, mechaniczny filtr IR-cut, SMART-IR do 35 metrów, Alarm 1x IN / 1x OUT, Audio 1x IN / 1x OUT, wbudowany głośnik oraz mikrofon, ONVIF S, obsługa kart SD do 256GB, 3D-DNR, HLC, BLC, tryb korytarzowy 9:16, ROI, Defog. Obudowa metalowa IP66, DC12V / PoE (802.3af). Wbudowane funkcje analityki obrazu GenSTAR IVS 2.0 (Analityka AI oparta na wzorcach). Wbudowany oświetlacz światła białego (barwa ciepła) aktywowany w przypadku wykrycia obiektu alarmowego. Kamera zgodna z NDAA. | E56: 1,700 | F56: 1,700 | G56: MAG
B57: ZNT8-25E0F36-B | D57: Kamera IP GENSTAR Turret 2-torowa | Termowizja: obiektyw 3.5mm; 256x192 (piksel: 12μm), 4CIF (30FPS) | Tor optyczny D/N: 4MP (30FPS), obiektyw 4mm, WDR>120dB | 3 strumienie H.265/H.264/MJPEG | Niechłodzony detektor mikrobolometryczny (tlenek wanadu), Czułość NETD: <50mK @ F1.0 (reakcja temp. 30ms), Zakres widma: 8-14μm | Pomiar: -40°C ... 150°C (+/-2°C) | 16 stref | 17 trybów koloru. SMART-IR do 35 metrów, Alarm 1x IN / 1x OUT, Audio 1x IN / 1x OUT, wbudowany głośnik i mikrofon, HDMI OUT, ONVIF S, obsługa kart SD do 256GB, 3D-DNR, HLC, BLC, ROI, Defog. Obudowa metalowa IP66, DC12V / DC24V / PoE (802.3af). Wbudowane funkcje analityki obrazu GenSTAR IVS 2.0 (Analityka AI oparta na wzorcach). Odległość rozpoznawania ludzi (1,8×0,5m) – 35m, Odległość rozpoznania pojazdu (4×1,5m) – 80m, Odległość wykrywania ognia (1m×1m) – 60m, Odległość pomiaru temperatury obiektu (1m×1m) – 40m. Kamera zgodna z NDAA. | E57: 7,100 | F57: 7,100 | G57: MAG
B58: ZNT8-25BQVF7-B | D58: Kamera IP GENSTAR bullet 2-torowa | Termowizja: obiektyw 7mm; 256x192 (piksel: 12μm), 4CIF (30FPS) | Tor optyczny D/N: 4MP (30FPS), obiektyw 8mm, WDR>120dB | 3 strumienie H.265/H.264/MJPEG | Niechłodzony detektor mikrobolometryczny (tlenek wanadu), Czułość NETD: <50mK @ F1.0 (reakcja temp. 30ms), Zakres widma: 8-14μm | Pomiar: -40°C ... 150°C (+/-2°C) | 16 stref | 17 trybów koloru. SMART-IR do 50 metrów, Alarm 2x IN / 2x OUT, Audio 1x IN / 1x OUT, wbudowany głośnik, ONVIF S, obsługa kart SD do 256GB, 3D-DNR, HLC, BLC, ROI, Defog. Obudowa metalowa IP66, DC12V / AC24V / PoE (802.3af). Wbudowane funkcje analityki obrazu GenSTAR IVS 2.0 (Analityka AI oparta na wzorcach). Odległość rozpoznawania ludzi (1,8×0,5m) – 70m, Odległość rozpoznania pojazdu (4×1,5m) – 120m, Odległość wykrywania ognia obiektu (1m×1m) – 100m, Odległość pomiaru temperatury obiektu (1m×1m) – 60m. Kamera zgodna z NDAA. | E58: 7,500 | F58: 7,500 | G58: MAG
B59: ZA8-CBK645D | D59: Puszka natynkowa do kamery GANZ ZNT8-25E0F36-B | E59: 170 | F59: 170 | G59: MAG
B60: ZA8-JBMP-2 | D60: Puszka natynkowa do kamer GENSTAR w obudowie typu bullet | E60: 220 | F60: 220 | G60: MAG
B61: ZA8-CBK627B | D61: Adapter do instalacji na słupie puszki ZA8-JBMP, zakres montażu opasek na uchwytach 130-152mm | E61: 180 | F61: 180 | G61: MAG
B64: FISHEYE (rybie oko)
B65: ZN8-80F12F18NL | D65: Kamera IP GENSTAR fisheye 12MP (25fps) | obiektyw 1.8mm | 1/1.7" CMOS, 2 strumienie (H.265/H.264/MJPEG). d-WDR, mechaniczny filtr IR-cut; SMART-IR do 15 metrów; Alarm 1x IN / 1x OUT, Audio 1x IN / 1x OUT; Wbudowany mikrofon; ONVIF S, obsługa kart SD do 1TB, 3D-DNR, HLC, BLC, ROI, Defog, sprzętowy dewraping obrazu, obudowa metalowa, IP66, 12VDC/PoE (802.3af). Wbudowane funkcje analityki obrazu GenSTAR IVS 2.0 bazujące na AI. Kamera zgodna z NDAA. | E65: 3,000 | F65: =E65-(E65*F$6) -> 3,000 | G65: MAG
B66: ZA8-CBK645E | D66: Puszka natynkowa do kamery GENSTAR Fisheye | E66: 170 | F66: =E66-(E66*F$6) -> 170 | G66: ZAM
B68: PTZ
B69: ZN8-P4X37DL | D69: Kamera IP GENSTAR PTZ 4MP (25/30fps) | 6.8 - 251mm (37x) | 1/1.8" CMOS, 3 strumienie (H.265/H.264/MJPEG). Z wycieraczką. WDR>120dB,mechaniczny filtr IR-cut, SMART-IR do 400 metrów, czułość: dzień 0.01 lux/noc 0 lux IR LED wł., Alarm 7x IN / 2x OUT, Audio 1x IN / 1x OUT, wyjście BNC, ONVIF S, obsługa kart microSD do 1TB, 3D-DNR, HLC, BLC, ROI, Defog, pozycjonowanie 3D PTZ, wyświetlanie koordynatów PTZ w OSD, Obudowa metalowa, IP66, TVS4000V 24VAC/2.5A/HI-PoE. Wysoka prędkość obrotu 300°/s Zasiłacz 36VDC (Hi-PoE++) oraz uchwyt naścienny w komplecie. Wbudowane funkcje analityki obrazu GenSTAR IVS + Auto-Tracking. RS-485. Anti-shake. Kamera zgodna z NDAA. | E69: 9,500 | F69: =E69-(E69*F$6) -> 9,500 | G69: ZAM
B70: ZA8-CBK348 | D70: Wysięgnik sufitowy do kamer GENSTAR PTZ ZN8-P4X37DL | E70: 150 | F70: 150 | G70: MAG
B71: ZA8-CBK605 | D71: Mocowania narożne do adaptera ZA8-CBK349 (fabrycznie - w komplecie z kamerą) | E71: 440 | F71: 440 | G71: MAG
B72: ZA8-CBK604B | D72: Obejma do mocowania na słupie dla adaptera ZA8-CBK349 (w zestawie), zakres montażu opasek na uchwytach 46.3-205mm | E72: 570 | F72: 570 | G72: MAG
B73: ZN8-MP5X5DL-J4 | D73: Kamera IP GENSTAR PTZ 5MP (25/30fps) | 2.7-13.5mm (5x) | 1/2.7" CMOS, 3 strumienie (H.265/H.264/MJPEG). WDR>120dB, mechaniczny filtr IR-cut, SMART-IR do 200 metrów, czułość: dzień 0.0001 lux/noc 0 lux IR LED 50m wł., Alarm 7x IN / 2x OUT, Audio 1x IN / 1x OUT, ONVIF S, obsługa kart microSD do 256GB, 3D-DNR, HLC, BLC, ROI, Defog, pozycjonowanie 3D PTZ, wyświetlanie koordynatów PTZ w OSD, Obudowa metal+plastyk, IP66, TVS4000V DC12V/POE+. Zasiłacz 12VDC (PoE+) oraz uchwyt naścienny/sufitowy w komplecie. Wbudowane funkcje analityki obrazu GenSTAR IVS + Auto-Tracking. Wbudowane czerwone i niebieskie światło ostrzegawcze, ostrzeżenie dźwiękowo-świetlne. Anti-shake, mikrofon+głośnik. Kamera zgodna z NDAA. | E73: 1,800 | F73: =E73-(E73*F$6) -> 1,800 | G73: ZAM
B74: ZA8-CBK102 | D74: Mocowanie narożne do wysięgnika ZA8-CBK501 | E74: 130 | F74: =E74-(E74*F$6) -> 130 | G74: ZAM
B75: ZA8-CBK101 | D75: Adapter do instalacji na słupie do wysięgnika ZA8-CBK501, zakres montażu opasek na uchwytach 130-152mm | E75: 115 | F75: 115 | G75: ZAM
B76: ZN8-P5X12DL | D76: Kamera IP GENSTAR mini-PTZ 5MP (30fps) | 4.7-56.4mm (12x) | 1/3" CMOS, 3 strumienie (H.265/H.264/MJPEG), WDR>120dB, mechaniczny filtr IR-cut, SMART-IR do 100 metrów, czułość: dzień 0.01 lux/noc 0 lux IR LED wł., Alarm 2x IN / 1x OUT, Audio 1x IN / 1x OUT, ONVIF S, obsługa kart microSD do 128GB, 3D-DNR, HLC, BLC, ROI, Defog, 400 preset'ów, pozycjonowanie 3D PTZ, wyświetlanie koordynatów PTZ w OSD, Obudowa metalowa, IP66, TVS4000V 12VDC/2.5A / PoE+ (802.3at). Zasilacz 12VDC oraz uchwyt naścienny w komplecie. Wbudowane funkcje analityki obrazu GenSTAR IVS + Auto-Tracking. | E76: 4,000 | F76: 4,000 | G76: MAG
B77: ZA8-CBK402 | D77: Wysięgnik sufitowy do kamer GENSTAR mini PTZ | E77: 180 | F77: 180 | G77: ZAM
B78: ZA8-CBK501 | D78: Wysięgnik naścienny do kamer GENSTAR mini-PTZ (fabrycznie - w komplecie z kamerą) | E78: 150 | F78: 150 | G78: ZAM
B79: ZA8-CBK401 | D79: Uchwyt sufitowy do kamer GENSTAR mini-PTZ | E79: 90 | F79: 90 | G79: ZAM
B80: ZA8-CBK102 | D80: Mocowanie narożne do wysięgnika ZA8-CBK501 | E80: 130 | F80: 130 | G80: ZAM
B81: ZA8-CBK101 | D81: Adapter do instalacji na słupie do wysięgnika ZA8-CBK501, zakres montażu opasek na uchwytach 130-152mm | E81: 115 | F81: 115 | G81: ZAM
B83: INNE
B84: ZN8-81V2F37D | D84: Kamera IP GENSTAR miniaturowa 2MP (30fps) | 3.7mm PINHOLE | 1/2.8" CMOS, technologia STARVIS, 3 strumienie (H.265/H.264/MJPEG), WDR>120dB, mechaniczny filtr IR-cut; czułość: dzień 0.01 lux; Alarm 2x IN / 1x OUT, Audio 1x IN / 1x OUT; ONVIF S, obsługa kart SD do 256GB, 3D-DNR, HLC, BLC, tryb korytarzowy 9:16, DIS, ROI, Defog, obudowa metalowa, 12VDC. Kamera zgodna z NDAA. | E84: 950 | F84: =E84-(E84*F$6) -> 950 | G84: MAG
B86: REJESTRATORY CYFROWE
B88: GENSTAR - rejestratory sieciowe NVR
B89: NR8-3804H1-III | D89: Rejestrator IP 4ch, 12MP @ 30FPS, H.264/H.265, 1x HDD 12TB, 1x VGA / 1x HDMI do 4K (2 zależne wyjścia), P2P/Chmura, 2x LAN 100Mbps, 2x USB 2.0, Alarm 4x IN / 1x OUT, Audio 1x IN / 1x OUT, obudowa Smart 1U, Zasilanie DC12V (zasilacz w komplecie). Obsługa funkcji analityki obrazu GenSTAR IVS z kamer ZN8 GenSTAR. Rejestrator zgodny z NDAA. | E89: 1,200 | F89: =E89-(E89*F$6) -> 1,200 | G89: MAG
B90: NR8-3808H1-III | D90: Rejestrator IP 8ch, 12MP @ 30FPS, H.264/H.265, 1x HDD 12TB, 1x VGA / 1x HDMI do 4K (2 zależne wyjścia), P2P/Chmura, 2x LAN 100Mbps, 2x USB 2.0, Alarm 8x IN / 1x OUT, Audio 1x IN / 1x OUT, obudowa Smart 1U, Zasilanie DC12V (zasilacz w komplecie). Obsługa funkcji analityki obrazu GenSTAR IVS z kamer ZN8 GenSTAR. Rejestrator zgodny z NDAA. | E90: 1,400 | F90: 1,400 | G90: MAG
B91: NR8-3816H2-III | D91: Rejestrator IP 16ch, 12MP @ 30FPS, H.264/H.265, 2x HDD 12TB, 1x VGA / 1x HDMI do 4K (2 zależne wyjścia), P2P/Chmura, 2x LAN 100Mbps, 2x USB 2.0, Alarm 8x IN / 1x OUT, Audio 1x IN / 1x OUT, obudowa Smart 1U, Zasilanie DC12V (zasilacz w komplecie). Obsługa funkcji analityki obrazu GenSTAR IVS z kamer ZN8 GenSTAR. Rejestrator zgodny z NDAA. | E91: 1,600 | F91: 1,600 | G91: MAG
B92: NR8-3804H1 | D92: Rejestrator IP 4ch, 8MP @ 30FPS, H.264/H.265, 1x HDD 8TB, 1x VGA / 1x HDMI do 4K (2 zależne wyjścia), P2P/Chmura, 2x LAN 100Mbps, 2x USB 2.0, Alarm 4x IN / 1x OUT, Audio 1x IN / 1x OUT, obudowa Smart 1U, Zasilanie DC12V (zasilacz w komplecie). Obsługa funkcji analityki obrazu GenSTAR IVS z kamer ZN8 GenSTAR. Rejestrator zgodny z NDAA. | E92: 1,100 | F92: 1,100 | G92: MAG | H92: Do wyczerpania zapasów
B93: NR8-3808H1 | D93: Rejestrator IP 8ch, 8MP @ 30FPS, H.264/H.265, 1x HDD 8TB, 1x VGA / 1x HDMI do 4K (2 zależne wyjścia), P2P/Chmura, 2x LAN 100Mbps, 2x USB 2.0, Alarm 4x IN / 1x OUT, Audio 1x IN / 1x OUT, obudowa Smart 1U, Zasilanie DC12V (zasilacz w komplecie). Obsługa funkcji analityki obrazu GenSTAR IVS z kamer ZN8 GenSTAR. Rejestrator zgodny z NDAA. | E93: 1,300 | F93: 1,300 | G93: MAG | H93: Do wyczerpania zapasów
B94: NR8-8F81-8P-V2 | D94: Rejestrator IP 8ch, 8MP @ 30FPS, H.264/H.265, 1x HDD 8TB, 1x VGA / 1x HDMI do 4K (2 niezależne wyjścia), P2P/Chmura, 1x LAN 100Mbps, 2x USB 2.0, Alarm 8x IN / 1x OUT, Audio 1x IN / 1x OUT, obudowa Smart 1U, Zasilanie DC48V (zasilacz w komplecie), 8x PoE (802.3af). Obsługa funkcji analityki obrazu GenSTAR IVS z kamer ZN8 GenSTAR. | E94: 1,200 | F94: 1,200 | G94: MAG | H94: Do wyczerpania zapasów
B95: NR8-3932H4 | D95: Rejestrator IP 32ch, 12MP @ 30FPS, H.264/H.265, 4x HDD 16TB, 1x VGA / 2x HDMI do 4K (2 zależne wyjścia), P2P/Chmura, 2x LAN 100Mbps, 2x USB 2.0, 1x USB 3.0, Alarm 16x IN /4x OUT, Audio 1x IN / 1x OUT, 1 eSATA, RS-232/485, obudowa Smart 1U, Zasilanie DC12V (zasilacz w komplecie). Obsługa funkcji analityki obrazu GenSTAR IVS z kamer ZN8 GenSTAR. Rejestrator zgodny z NDAA. | E95: 4,500 | F95: 4,500
B96: NR8-64F88 | D96: Rejestrator IP 64ch, 12MP @ 30FPS, H.264/H.265, 8x HDD 8TB (RAID 5/6/10 + grupowanie HDD), 1x VGA / 2x HDMI do 4K (2 niezależne wyjścia), P2P/Chmura, 2x LAN 1Gbps, 2x USB 2.0, 1x USB 3.0, Alarm 16x IN / 4x OUT, Audio 1x IN / 1x OUT, 1x eSATA, obudowa 2U, Zasilanie AC230V, obsługa funkcji analityki obrazu GenSTAR IVS z kamer ZN8 GenSTAR. | E96: 5,600 | F96: 5,600 | G96: MAG
B98: GENSTAR Kamery termowizyjne
B100: Seria GenSTAR 2-torowa 256x192
B101: ZNT8-25E0F36-B | D101: Kamera IP GENSTAR Eyeball 2-torowa | Termowizja: obiektyw 3.6mm; 256x192 (piksel: 12μm), 4CIF (30FPS) | Tor optyczny D/N: 4MP (30FPS), obiektyw 4mm, WDR>120dB | 3 strumienie H.265/H.264/MJPEG | Niechłodzony detektor mikrobolometryczny (tlenek wanadu), Czułość NETD: <50mK @ F1.0 (reakcja temp. 30ms), Zakres widma: 8-14μm | Pomiar: -40°C ... 150°C (+/-2°C) | 16 stref | 17 trybów koloru. SMART-IR do 35 metrów, Alarm 1x IN / 1x OUT, Audio 1x IN / 1x OUT, wbudowany głośnik i mikrofon, HDMI OUT, ONVIF S, obsługa kart SD do 256GB, 3D-DNR, HLC, BLC, ROI, Defog. Obudowa metalowa IP66, DC12V / DC24V / PoE (802.3af). Wbudowane funkcje analityki obrazu GenSTAR IVS 2.0 (Analityka AI oparta na wzorcach). Odległość rozpoznawania ludzi (1,8×0,5m) – 35m, Odległość rozpoznania pojazdu (4×1,5m) – 80m, Odległość wykrywania ognia (1m×1m) – 60m, Odległość pomiaru temperatury obiektu (1m×1m) – 40m. | E101: 7,100 | F101: =E101-(E101*F$6) -> 7,100 | G101: MAG
B102: ZA8-CBK645D | D102: Puszka natynkowa do kamery GANZ ZNT8-25E0F36-B | E102: 170 | F102: =E102-(E102*F$6) -> 170 | G102: MAG
B103: ZNT8-25BQVF7-B | D103: Kamera IP GENSTAR bullet 2-torowa | Termowizja: obiektyw 7mm; 256x192 (piksel: 12μm), 4CIF (30FPS) | Tor optyczny D/N: 4MP (30FPS), obiektyw 8mm, WDR>120dB | 3 strumienie H.265/H.264/MJPEG | Niechłodzony detektor mikrobolometryczny (tlenek wanadu), Czułość NETD: <50mK @ F1.0 (reakcja temp. 30ms), Zakres widma: 8-14μm | Pomiar: -40°C ... 150°C (+/-2°C) | 16 stref | 17 trybów koloru. SMART-IR do 50 metrów, Alarm 2x IN / 2x OUT, Audio 1x IN / 1x OUT, wbudowany głośnik, ONVIF S, obsługa kart SD do 256GB, 3D-DNR, HLC, BLC, ROI, Defog. Obudowa metalowa IP66, DC12V / AC24V / PoE (802.3af). Wbudowane funkcje analityki obrazu GenSTAR IVS 2.0 (Analityka AI oparta na wzorcach). Odległość rozpoznawania ludzi (1,8×0,5m) – 70m, Odległość rozpoznania pojazdu (4×1,5m) – 120m, Odległość wykrywania ognia obiektu (1m×1m) – 100m, Odległość pomiaru temperatury obiektu (1m×1m) – 60m. | E103: 7,500 | F103: =E103-(E103*F$6) -> 7,500 | G103: MAG
B104: ZA8-JBMP-2 | D104: Puszka natynkowa do kamer GENSTAR w obudowie typu bullet | E104: 220 | F104: =E104-(E104*F$6) -> 220 | G104: MAG
B105: ZA8-CBK627B | D105: Adapter do instalacji na słupie puszki ZA8-JBMP, zakres montażu opasek na uchwytach 130-152mm | E105: 180 | F105: =E105-(E105*F$6) -> 180 | G105: MAG
B106: Seria GenSTAR 400x300
B107: ZNT8-42B0F8-T (8mm) | C107: 8 mm | D107: Kamera IP GENSTAR termowizyjna bullet | Obiektyw 8mm | 400x300, D1 (25fps) | Niechłodzony detektor mikrobolometryczny (tlenek wanadu), Czułość NETD: 40mK @ F1.0 (reakcja temp. 30ms), Zakres widma: 8-14μm. Pomiar: -10°C ... 200°C (dokładność +/-2°C | 16 stref | 17 trybów koloru). 2 niezależne strumienie (H.265/H.264/MJPEG). Alarm 2xIN/2xOUT, Audio 1xIN/1xOUT, 1xVideo OUT CVBS; ONVIF S, obsługa kart SD do 128GB, 3D-DNR, DVE, ROI, RS-485; obudowa metalowa IP66, 12VDC. Wbudowane funkcje analityki GenSTAR IVS. | E107: 26,000 | F107: =E107-(E107*F$6) -> 26,000 | G107: ZAM
B108: ZNT8-42B0F15-T (15mm) | C108: 15 mm | E108: 27,000 | F108: 27,000 | G108: ZAM
B109: ZNT8-42B0F25-T (25mm) | C109: 25 mm | E109: 28,000 | F109: 28,000 | G109: ZAM
B110: ZNT8-42B0F35-T (35mm) | C110: 35 mm | E110: 40,000 | F110: 40,000 | G110: ZAM
B111: ZNT8-42B0F50-T (50mm) | C111: 50 mm | E111: 44,000 | F111: 44,000 | G111: ZAM
B112: ZA8-JBMP-2 | D112: Puszka natynkowa do kamer w obudowie typu bullet | E112: 220 | F112: 220 | G112: MAG
B113: ZA8-CBK627B | D113: Adapter do instalacji na słupie puszki ZA8-JBMP-2, zakres montażu opasek na uchwytach 130-152mm | E113: 180 | F113: 180 | G113: MAG
B114: ZNT8-42C0F8-T (8mm) | C114: 8 mm | D114: Kamera IP GENSTAR termowizyjna kompaktowa | Obiektyw stałoogniskowy | 400x300, D1 (25fps) | Niechłodzony detektor mikrobolometryczny (tlenek wanadu), Czułość NETD: 40mK @ F1.0 (reakcja temp. 30ms), Zakres widma: 8-14μm. Pomiar: -10°C ... 200°C (dokładność +/-2°C | 16 stref | 17 trybów koloru). 2 niezależne strumienie (H.265/H.264/MJPEG). Alarm 2xIN/2xOUT, Audio 1xIN/1xOUT, 1xVideo OUT CVBS; ONVIF S, obsługa kart SD do 128GB, 3D-DNR, DVE, ROI, RS-485; obudowa metalowa, 12VDC. Wbudowane funkcje analityki GenSTAR IVS. | E114: 26,000 | F114: 26,000 | G114: ZAM
B115: ZNT8-42C0F15-T (15mm) | C115: 15 mm | E115: 26,500 | F115: 26,500 | G115: ZAM
B116: ZNT8-42C0F25-T (25mm) | C116: 25 mm | E116: 27,000 | F116: 27,000 | G116: ZAM
B117: ZNT8-42C0F35-T (35mm) | C117: 35 mm | E117: 40,000 | F117: 40,000 | G117: ZAM
B118: ZNT8-42C0F50-T (50mm) | C118: 50 mm | E118: 45,000 | F118: 45,000 | G118: ZAM
B119: ZNT8-42C0M25-T (25mm) | C119: 25 mm | D119: Kamera IP GENSTAR termowizyjna kompaktowa | Obiektyw MF (motorized focus) | 400x300, D1 (25fps) | Niechłodzony detektor mikrobolometryczny (tlenek wanadu), Czułość NETD: 40mK @ F1.0 (reakcja temp. 30ms), Zakres widma: 8-14μm. Pomiar: -10°C ... 200°C (dokładność +/-2°C | 16 stref | 17 trybów koloru). 2 niezależne strumienie (H.265/H.264/MJPEG). Alarm 2xIN/2xOUT, Audio 1xIN/1xOUT, 1xVideo OUT CVBS; ONVIF S, obsługa kart SD do 128GB, 3D-DNR, DVE, ROI, RS-485; obudowa metalowa, 12VDC. Wbudowane funkcje analityki GenSTAR IVS. | E119: 42,000 | F119: 42,000 | G119: ZAM
B120: ZNT8-42C0M25-T (50mm) | C120: 50 mm | E120: 52,000 | F120: 52,000 | G120: ZAM
B121: ZNT8-42C0M25-T (75mm) | C121: 75 mm | E121: 62,000 | F121: 62,000 | G121: ZAM
B122: ZNT8-42C0M25-T (100mm) | C122: 100 mm | E122: 78,000 | F122: 78,000 | G122: ZAM
B123: ZNT8-P0F8-TX30-QF (8mm) | C123: 8 mm | D123: Kamera IP GENSTAR PTZ 2-torowa | Termowizja: obiektyw stałoogniskowy; 400x300 (piksel: 17μm), D1 (25fps) | Tor optyczny D/N: 3MP (30fps), obiektyw 4.5-135mm (30x) | Niechłodzony detektor mikrobolometryczny (tlenek wanadu), Czułość NETD: 40mK @ F1.0 (reakcja temp. 30ms), Zakres widma: 8-14μm | Pomiar: -10°C ... 200°C (+/-2°C) | 16 stref | 17 trybów koloru. Alarm 1xOUT, ONVIF S, RS-485. Wyświetlanie koordynatów PTZ w OSD, obudowa metalowa IP66 (5kg), 24VDC 3A - zasilacz w komplecie. Wbudowane funkcje analityki GenSTAR IVS. | E123: 66,000 | F123: 66,000 | G123: ZAM
B124: ZNT8-P0F15-TX30-QF (15mm) | C124: 15 mm | E124: 64,000 | F124: 64,000 | G124: ZAM
B125: ZNT8-P0F25-TX30-QF (25mm) | C125: 25 mm | E125: 65,000 | F125: 65,000 | G125: ZAM
B126: ZNT8-P0M8-TX30-QF (8mm) | C126: 8 mm | D126: Kamera IP GENSTAR PTZ 2-torowa | Termowizja: obiektyw MF (motorized focus); 400x300 (piksel: 17μm), D1 (25fps) | Tor optyczny D/N: 3MP (30fps), obiektyw 4.5-135mm (30x) | Niechłodzony detektor mikrobolometryczny (tlenek wanadu), Czułość NETD: 40mK @ F1.0 (reakcja temp. 30ms), Zakres widma: 8-14μm | Pomiar: -10°C ... 200°C (+/-2°C) | 16 stref | 17 trybów koloru. Alarm 1xOUT, ONVIF S, RS-485. Wyświetlanie koordynatów PTZ w OSD, obudowa metalowa IP66 (5kg), 24VDC 3A - zasilacz w komplecie. Wbudowane funkcje analityki GenSTAR IVS. | E126: 62,000 | F126: 62,000 | G126: ZAM
B127: ZNT8-P0M25-TX30-QF (25mm) | C127: 25 mm | E127: 73,000 | F127: 73,000 | G127: ZAM
B128: ZNT8-P0F8-TAX30 (8mm) | C128: 8 mm | D128: Kamera IP GENSTAR PTZ 2-torowa | Termowizja: obiektyw stałoogniskowy; 400x300, D1 (25fps) | Tor optyczny D/N Starlight: 2MP (30fps), obiektyw 6-180mm (30x) | Niechłodzony detektor mikrobolometryczny (tlenek wanadu), Czułość NETD: 40mK @ F1.0 (reakcja temp. 30ms), Zakres widma: 8-14μm | Pomiar: -10°C ... 200°C (+/-2°C) | 16 stref | 17 trybów koloru. Alarm 2xIN/1xOUT, Audio 1xIN/1xOUT, ONVIF S, RS-485. Wyświetlanie koordynatów PTZ w OSD, obudowa metalowa IP66, 36VDC 3A - zasilacz w komplecie. Wbudowane funkcje analityki GenSTAR IVS. | E128: 54,000 | F128: 54,000 | G128: ZAM
B129: ZNT8-P0F15-TAX30 (15mm) | C129: 15 mm | E129: 55,000 | F129: 55,000 | G129: ZAM
B130: ZNT8-P0F25-TAX30 (25mm) | C130: 25 mm | E130: 54,000 | F130: 54,000 | G130: ZAM
B131: ZNT8-P0F35-TAX30 (35mm) | C131: 35 mm | E131: 66,000 | F131: 66,000 | G131: ZAM
B132: ZNT8-P0F50-TAX30 (50mm) | C132: 50 mm | E132: 72,000 | F132: 72,000 | G132: ZAM
B133: ZNT8-P0M8-TAX30 (8mm) | C133: 8 mm | D133: Kamera IP GENSTAR PTZ 2-torowa | Termowizja: obiektyw MF (motorized focus); 400x300, D1 (25fps) | Tor optyczny D/N Starlight: 2MP (30fps), obiektyw 6-180mm (30x) | Niechłodzony detektor mikrobolometryczny (tlenek wanadu), Czułość NETD: 40mK @ F1.0 (reakcja temp. 30ms), Zakres widma: 8-14μm | Pomiar: -10°C ... 200°C (+/-2°C) | 16 stref | 17 trybów koloru | Alarm 2xIN/1xOUT (termo) i 7xIN/2xOUT (optyczny) | Audio 1xIN/1xOUT (termo) i 1xIN/1xOUT (optyczny) | ONVIF S, RS-485. Wyświetlanie koordynatów PTZ w OSD, obudowa metalowa IP66, 36VDC 3A - zasilacz w komplecie. Wbudowane funkcje analityki GenSTAR IVS. | E133: 56,000 | F133: 56,000 | G133: ZAM
B134: ZNT8-P0M25-TAX30 (25mm) | C134: 25 mm | E134: 67,000 | F134: 67,000 | G134: ZAM
B135: ZNT8-P0M50-TAX30 (50mm) | C135: 50 mm | E135: 85,000 | F135: 85,000 | G135: ZAM
B136: ZNT8-P0M75-TAX32 (75mm) | C136: 75 mm | D136: Kamera IP GENSTAR PTZ 2-torowa | Termowizja: obiektyw MF (motorized focus); 400x300, D1 (25fps) | Tor optyczny D/N Starlight: 2MP (30fps), obiektyw 12.5-400mm (32x) | Niechłodzony detektor mikrobolometryczny (tlenek wanadu), Czułość NETD: 40mK @ F1.0 (reakcja temp. 30ms), Zakres widma: 8-14μm | Pomiar: -10°C ... 200°C (+/-2°C) | 16 stref | 17 trybów koloru | Alarm 2xIN/1xOUT (termo) i 7xIN/2xOUT (optyczny) | Audio 1xIN/1xOUT (termo) i 1xIN/1xOUT (optyczny) | ONVIF S, RS-485. Wyświetlanie koordynatów PTZ w OSD, obudowa metalowa IP66, 36VDC 3A - zasilacz w komplecie. Wbudowane funkcje analityki GenSTAR IVS. | E136: na zapytanie | F136: na zapytanie | G136: ZAM
B137: ZNT8-P0M100-TAX32 (100mm) | C137: 100 mm | E137: na zapytanie | F137: na zapytanie | G137: ZAM
B138: Seria GenSTAR - 640x512
B139: ZNT8-BVF9-TAS (9mm) | C139: 9 mm | D139: Kamera IP GENSTAR termowizyjna bullet | obiektyw stałoogniskowy | 640x512, D1 (25fps) | Niechłodzony detektor mikrobolometryczny (tlenek wanadu), Czułość NETD: 40mK @ F1.0 (reakcja temp. 30ms), Zakres widma: 8-14μm | Pomiar: -20°C ... 150°C (+/-2°C) | 16 stref | 17 trybów koloru | Alarm 2xIN/2xOUT | Audio 1xIN/1xOUT | ONVIF S, RS-485, obsługa kart SD do 128GB. Obudowa metalowa IP66, 12VDC/PoE(802.11af). Wbudowane funkcje analityki GenSTAR IVS. | E139: 34,000 | F139: =E139-(E139*F$6) -> 34,000 | G139: ZAM
B140: ZNT8-BVF15-TAS (15mm) | C140: 15 mm | E140: 35,000 | F140: 35,000 | G140: ZAM
B141: ZNT8-BVF25-TAS (25mm) | C141: 25 mm | E141: 38,000 | F141: 38,000 | G141: ZAM
B142: ZNT8-BVF35-TAS (35mm) | C142: 35 mm | E142: 48,000 | F142: 48,000 | G142: ZAM
B143: ZNT8-BVF50-TAS (50mm) | C143: 50 mm | E143: 61,000 | F143: 61,000 | G143: ZAM
B144: ZA8-JBMP-2 | D144: Puszka natynkowa do kamer w obudowie typu bullet | E144: 220 | F144: 220 | G144: MAG
B145: ZA8-CBK627B | D145: Adapter do instalacji na słupie puszki ZA8-JBMP-2, zakres montażu opasek na uchwytach 130-152mm | E145: 180 | F145: 180 | G145: MAG
B146: ZNT8-CVF9-TAS (9mm) | C146: 9 mm | D146: Kamera IP GENSTAR termowizyjna kompaktowa | obiektyw stałoogniskowy | 640x512, D1 (25fps) | Niechłodzony detektor mikrobolometryczny (tlenek wanadu), Czułość NETD: 40mK @ F1.0 (reakcja temp. 30ms), Zakres widma: 8-14μm | Pomiar: -20°C ... 150°C (+/-2°C) | 16 stref | 17 trybów koloru | Alarm 2xIN/2xOUT | Audio 1xIN/1xOUT | ONVIF S, RS-485, obsługa kart SD do 128GB. Obudowa metalowa, 12VDC. Wbudowane funkcje analityki GenSTAR IVS. | E146: 33,000 | F146: 33,000 | G146: ZAM
B147: ZNT8-CVF15-TAS (15mm) | C147: 15 mm | E147: 34,000 | F147: 34,000 | G147: ZAM
B148: ZNT8-CVF25-TAS (25mm) | C148: 25 mm | E148: 35,500 | F148: 35,500 | G148: ZAM
B149: ZNT8-CVF35-TAS (35mm) | C149: 35 mm | E149: 46,000 | F149: 46,000 | G149: ZAM
B150: ZNT8-CVF50-TAS (50mm) | C150: 50 mm | E150: 58,000 | F150: 58,000 | G150: ZAM
B152: Terminal komunikacyjny wideo Interkom SIP
B153: ZN9-DP06AP | D153: Interkom IP GANZ ZN9 1.3MP (25fps) | 3.7mm F-Iris (80°) | 1/3" CMOS Sony Exmor, 2 strumienie (H.264/MJPEG), d-WDR, mechaniczny filtr IR-cut; SMART-IR do 10 metrów, Wbudowany przycisk wywołania, Alarm 3x OUT (OC), Wbudowany mikrofon oraz głośnik, ONVIF S, obsługa kart SD do 32GB (fabrycznie zainstalowana karta microSD 8GB), 3D-DNR, HLC, BLC, Defog. Obudowa metalowa, IP54, IK10, 12VDC/PoE(802.11af). Wbudowane funkcje analityki obrazu w postaci detekcji twarzy w kadrze. Kompatybilne z oprogramowaniem GANZ CORTROL VMS oraz protokołem SIP. | E153: 2,400 | F153: =E153-(E153*F$6) -> 2,400 | G153: MAG
B155: PARK LPR | system do zarządzania parkingami
B156: LPR-16GT | D156: Jednostka centralna LPR do zarządzająca systemem parkingowym. Obsługuje maks. 16 kamer LPR (wjazdy/wyjazdy). | E156: 7,500 | F156: =E156-(E156*F$6) -> 7,500 | G156: MAG
B157: LPR-02GT | D157: Jednostka centralna LPR do zarządzająca systemem parkingowym. Obsługuje maks. 2 kamery LPR (wjazdy/wyjazdy). | E157: 4,800 | F157: =E157-(E157*F$6) -> 4,800 | G157: MAG

Sheet Arkusz2 (hidden)

Sheet AI BOX
D3: CENNIK PRODUKTÓW CCTV
E6: RABAT: | F6: 0%
B8: Model (kod) towaru | D8: Opis | E8: Cena PLN detal | F8: Cena PLN z rabatem | G8: Dostępność
B10: AI BOX | Nadajniki wideo-alarmów
D11: - Łatwe w konfiguracji i intuicyjne aplikacje do analizy wideo AI - Łatwa budowa systemu AI z wykorzystaniem istniejących kamer CCTV - Wielopoziomowa redukcja fałszywych alarmów oparta na sztucznej inteligencji - Dokładne wykrywanie zdarzeń poprzez zrozumienie sceny - Możliwość uruchamiania wielu aplikacji AI na każdym kanale wideo - Łatwa integracja z innymi systemami - Konfiguracja oparta na przeglądarce internetowej - Ulepszone opcje bezpieczeństwa - Wbudowany dysk SSD 1TB pozwalający na nagrywanie zdarzeń lub ciągłe - Obsługa sieci 4G (LTE) oraz GPS (opcjonalnie) - Zgodność z NDAA
B12: GANZ AI BOX 2.1 (PRO)
B13: ZN-AIBOX-PRO | C13: Nadajnik wideo-alarmów 8 lub 16-kanałowy (w zależności od trybu pracy) | H.264/H.265, budżet 4000 punktów AI, 2x LAN 1Gbps, 1x USB 3.0, RS-232/485, Alarm 4x IN / 4x OUT, 1x microSIM. Wbudowany dysk SSD 1TB. Procesor Automotive TI, Obudowa przemysłowa fanless. Zasilanie 9-36VDC (zasilacz w komplecie). Wbudowane algorytmy analityki AI do wykrywania predefiniowanych zdarzeń, nakładanie metadanych na strumienie wejściowe RTSP. Fabrycznie zawiera podstawową paczkę analityk (pakiet BASIC), w tym: detekcja wtargnięcia, szwendania, zatrzymania, wejścia/wyjścia ze strefy, wirtualna linia perymetryczna, zliczanie osób/pojazdów, zliczanie w strefie, sumaryczna kombinacja danych z wielu liczników. Możliwość aktywacji licencji dodatkowych, licencji z pakietu Advanced lub całego pakietu Advanced. Nadajnik zgodny z NDAA. | E13: 14,300 | F13: =E13-(E13*F$6) -> 14,300 | G13: MAG
B14: ZN-AIBOX-SSD | C14: Dysk twardy SSD NVMe przeznaczony do pracy ciągłej w urządzeniu ZN-AIBOX-PRO o pojemności 1TB. Średni pobór mocy: 6,2 W. Temperatura pracy: 0 - 70 ℃. Odporność na wstrząsy: 1500 G & 0,5 ms. | E14: 1,000 | F14: 1,000 | G14: MAG
B15: ZN-AIBOX-LTE-KIT | C15: Zestaw: 2x antena LTE (wys.: 88mm, przewód 1m, IP67, magnetyczna podstawa o średnicy 33mm, złącze SMA), 1x antena GPS (wym.: 38.6mm × 50.9mm × 17mm, przewód 3m, mocowana na taśmę dwustronną, złącze SMA), moduł LTE/GPS (standard mini PCIe, 150/50Mbps, wsteczna kompatybilność z sieciami EDGE i GSM/GPRS). | E15: 1,800 | F15: =E15-(E15*F$6) -> 1,800 | G15: MAG
B17: Licencje z pakietu ADVANCED
B18: Aplikacje z pakietu ADVANCED oraz z licencji dodatkowych można uruchomić wyłącznie w trybie 8-kanałowym. Każdą licencję można rozszerzyć do 8 kanałów, z wyłączeniem funkcji PTZ-Tracking (tylko jeden kanał). W celu aktywacji płatnych licencji AI na urządzeniu ZN-AIBOX-STD niezbędne jest podanie adresu MAC urządzenia.
B19: ZNS-AI2-ADV | C19: Pakiet licencji ADVANCED na 8 kanałów - obejmuje wszystkie licencje wyszczególnione poniżej. | E19: 6,000 | F19: =E19-(E19*F$6) -> 6,000 | G19: ZAM
B20: ZNS-AI2-VISADV | C20: Advanced Visitor Analysis | Zaawansowana analiza klientów - zliczanie osób według płci (licencja na 1 kanał). | E20: 700 | F20: 700 | G20: ZAM
B21: ZNS-AI2-HAFO | C21: Detection of Hand & Foot Intrusion | Detekcja natarcia dłoni/stóp do strefy detekcji (licencja na 1 kanał). | E21: 700 | F21: 700 | G21: ZAM
B22: ZNS-AI2-INBGD | C22: Intentional Body Gaze Detector | Detekcja celowego przyglądania się (licencja na 1 kanał). | E22: 700 | F22: 700 | G22: ZAM
B23: ZNS-AI2-FAL | C23: Fallen Person Detection | Detekcja upadku osoby (licencja na 1 kanał). | E23: 700 | F23: 700 | G23: ZAM
B24: ZNS-AI2-VEHC | C24: Vehicle Type Counting | Liczenie typów pojazdów: samochód, autobus, ciężarówka, rower, motocykl (licencja na 1 kanał). | E24: 700 | F24: 700 | G24: ZAM
B25: ZNS-AI2-VEHT | C25: Vehicle Type Detection | Detekcja typu pojazdu: samochód, autobus, ciężarówka, rower, motocykl (licencja na 1 kanał). | E25: 700 | F25: 700 | G25: ZAM
B26: ZNS-AI2-ATADV | C26: Advanced Attribute | Zaawanowane atrybuty (kolor i typ górnej i dolnej części ubioru, płeć, wiek, akcesoria, zwierzę) | E26: 700 | F26: 700 | G26: ZAM
B27: ZNS-AI2-ANIM | C27: Animal Detection | Detekcja zwierząt (licencja na 1 kanał). | E27: 700 | F27: 700 | G27: ZAM
B28: ZNS-AI2-CROW | C28: Crowd Detection | Detekcja i pomiar tłumu (licencja na 1 kanał). | E28: 1,400 | F28: 1,400 | G28: ZAM
B29: ZNS-AI2-IMMTH | C29: Imminent threat Detection | Detekcja bezpośredniego zagrożenia (licencja na 1 kanał). | E29: 1,400 | F29: 1,400 | G29: ZAM
B30: ZNS-AI2-FIRESM | C30: Fire & Smoke Detection | Detekcja dymu i ognia (licencja na 1 kanał). | E30: 1,400 | F30: 1,400 | G30: ZAM
B31: ZNS-AI2-THERM | C31: Thermal Intrusion Detection | Detekcja wtargnięcia na termowizji (licencja na 1 kanał). | E31: 1,400 | F31: 1,400 | G31: ZAM
B32: ZNS-Ai2-FISHEY | C32: Fisheye Camera Support | Wsparcie dla analityki AI dla obrazu z kamer fisheye (licencja na 8 kanałów). | E32: 1,400 | F32: 1,400 | G32: ZAM
B34: Licencje dodatkowe (pojedynczy kanał)
B35: ZNS-AI2-LPR | C35: Number Plate Recognition | Rozpoznawanie numerów tablic rejestracyjnych (kraje UE/JP/USA/KR). | E35: 2,000 | F35: =E35-(E35*F$6) -> 2,000 | G35: ZAM
B36: ZNS-AI2-REC8 | C36: Record 8CH | Licencja pozwalająca na nagrywanie wideo (ciągłe lub ze zdarzeń) (licencja na 8 kanałów). | E36: 900 | F36: 900 | G36: ZAM
B37: ZNS-AI2-DRIHEL | C37: Forklift No Helmet | Detekcja braku kasku osoby na wózku widłowym | E37: 2,000 | F37: 2,000 | G37: ZAM
B38: ZNS-AI2-BULLY | C38: Bullying Detection | Detekcja zastraszania | E38: 2,000 | F38: 2,000 | G38: ZAM
B39: ZNS-AI2-SEPC | C39: Staff Exclusion People Counting | Zliczanie osób z wykluczeniem pracowników (posiadających widoczny identyfikator) | E39: 700 | F39: 700 | G39: ZAM
B40: ZNS-AI2-FRKLFT | C40: Forklift Detection | Detekcja wózków widłowych | E40: 1,400 | F40: 1,400 | G40: ZAM
B41: ZNS-AI2-HMADV | C41: Advanced heatmap | Zaawansowane mapy ciepła z uwzglednieniem zachowania osób (np. wyciągnięcie ręki w określonym kierunku) | E41: 2,000 | F41: 2,000 | G41: ZAM
B42: ZNS-AI2-PPE | C42: Detection of non-weared helmet / safety vest | Detekcja braku osobistej ochrony BHP | E42: 2,000 | F42: 2,000 | G42: ZAM
B43: ZNS-AI2-ILDUMP | C43: Detection of illegal dumping | Detekcja zabronionego porzucenia | E43: 2,000 | F43: 2,000 | G43: ZAM
B44: ZNS-AI2-VIOL | C44: Detection of violence | Detekcja aktów przemocy | E44: 2,000 | F44: 2,000 | G44: ZAM
B45: ZNS-AI2-PTZTR | C45: Auto tracking for PTZ camera | Śledzenie PTZ | E45: 2,000 | F45: 2,000 | G45: ZAM
B47: GANZ AI BOX
B48: ZN-AIBOX04 | C48: Nadajnik wideo-alarmów AIBOX 4-kanałowy | 8MP (30fps) / 2MP (120FPS) - sumarycznie, H.264 / H.265, budżet 1000 punktów AI, 1x HDMI (SPOT-OUT), 1x LAN 1Gbps, 2x USB 3.0, RS-485, Alarm 4x IN / 1x OUT. Obudowa Smart 1U. Zasilanie 12VDC (zasilacz w komplecie). Wbudowane nakładanie analityki AI na strumienie wejściowe RTSP i wykonywanie predefiniowanych akcji. Pozwala na aktywację do 2 programowych licencji AI. | E48: 5,500 | F48: =E48-(E48*F$6) -> 5,500 | G48: MAG
B49: ZA-RM1U-AIBOX | C49: Uchwyt 1U do montażu nadajników IP AI-BOX 4/8/16ch szafie RACK 19" (max 2x Enkoder IP AI-BOX instalowane obok siebie) | E49: 400 | F49: =E49-(E49*F$6) -> 400 | G49: MAG
B51: Licencje programowe AI do urządzeń AI BOX i kamer PIXEL PRO | H51: Zużycie pkt AI na 1 kanał wideo | I51: AIBOX | L51: KAMERA
B52: W celu aktywacji licencji AI w urządzeniach AIBOX lub kamerach PixelPRO (serie ZNP/ZNU) niezbędne są: numer seryjny urządzenia, adres MAC, wersja FW oraz indeks katalogowy licencji. UWAGA: Na jednym urządzeniu można aktywować TYLKO jedną licencję danego typu, niezależnie od ilości kanałów! | I52: 4-kan. (1000 pkt AI) | J52: 8-kan. (2000 pkt AI) | K52: 16-kan. (2000 pkt AI) | L52: ZNP 5MP
B53: ZNS-AI-A00 | C53: Informacja poglądowa o dostępności modułu Detekcji i Rozpoznania Obiektów (Człowiek, Pojazd, Rower) w kadrze obrazu z kamery dla urządzenia ZN-AIBOX lub kamery PixelPRO z serii ZNC/ZNP/ZNU. | E53: 0 | F53: =E53-(E53*F$6) -> 0 | G53: MAG | H53: 120 (Normal) 480 (Far / Fast) | I53: Domyślna | J53: Domyślna | K53: Domyślna | L53: Domyślna
B54: ZNS-AI-A01 | C54: Informacja poglądowa o dostępności modułu Śledzenia Obiektów w kadrze obrazu z kamery dla urządzenia ZN-AIBOX lub kamery PixelPRO z serii ZNP/ZNU. | E54: 0 | F54: =E54-(E54*F$6) -> 0 | G54: MAG | H54: - | I54: Domyślna | J54: Domyślna | K54: Domyślna | L54: Domyślna
B55: ZNS-AI-B00 | C55: Informacja poglądowa o dostępności modułu Reguł i Akcji (Rule Engine/ Event Server) dla urządzenia ZN-AIBOX lub kamery PixelPRO z serii ZNP/ZNU. | E55: 0 | F55: 0 | G55: MAG | H55: - | I55: Domyślna | J55: Domyślna | K55: Domyślna | L55: Domyślna
B56: ZNS-AI-A03-1 | C56: Licencja 1-kanałowa AI | detekcja kasku ochronnego na głowie u osób w kadrze. Możliwa jest aktywacja tylko jednej licencji A03-1 w urządzenia ZN-AIBOX. | E56: 380 | F56: =E56-(E56*F$6) -> 380 | G56: ZAM | H56: 480 | I56: + | J56: + | K56: + | L56: -
B57: ZNS-AI-A03-2 | C57: Licencja 2-kanałowa AI | detekcja kasku ochronnego na głowie u osób w kadrze. Możliwa jest aktywacja tylko jednej licencji A03 w urządzenia ZN-AIBOX. | E57: 750 | F57: 750 | G57: ZAM | H57: 480 | I57: + | J57: + | K57: + | L57: -
B58: ZNS-AI-A03-4 | C58: Licencja 4-kanałowa AI | detekcja kasku ochronnego na głowie u osób w kadrze. Możliwa jest aktywacja tylko jednej licencji A03 w urządzenia ZN-AIBOX. | E58: 1,500 | F58: 1,500 | G58: ZAM | H58: 480 | I58: - | J58: + | K58: + | L58: -
B59: ZNS-AI-A04-1 | C59: Licencja 1-kanałowa AI | detekcja maski i okularów słonecznych na twarzy u osób w kadrze. Możliwa jest aktywacja tylko jednej licencji A04-1 w urządzenia ZN-AIBOX. UWAGA: wymaga modułu ZN-AIBOX-FR1/4/8. | E59: 380 | F59: 380 | G59: ZAM | H59: 240 | I59: + | J59: + | K59: + | L59: -
B60: ZNS-AI-A04-4 | C60: Licencja 4-kanałowa AI | detekcja maski i okularów słonecznych na twarzy u osób w kadrze. Możliwa jest aktywacja tylko jednej licencji A04-4 w urządzenia ZN-AIBOX. UWAGA: wymaga modułu ZN-AIBOX-FR4/8. | E60: 1,500 | F60: 1,500 | G60: ZAM | H60: 240 | I60: + | J60: + | K60: + | L60: -
B61: ZNS-AI-A04-8 | C61: Licencja 8-kanałowa AI | detekcja maski i okularów słonecznych na twarzy u osób w kadrze. Możliwa jest aktywacja tylko jednej licencji A04-8 w urządzenia ZN-AIBOX. UWAGA: wymaga modułu ZN-AIBOX-FR8. | E61: 3,000 | F61: 3,000 | G61: ZAM | H61: 240 | I61: - | J61: + | K61: + | L61: -
B62: ZNS-AI-A05-1 | C62: Licencja 1-kanałowa AI | detekcja z rozszerzonym zakresem klasyfikacji pojazdów (Motocykl, Autobus, Ciężarówka) przy zachowaniu klasyfikacji domyślnych (Człowiek, Samochód, Rower). Możliwa jest aktywacja tylko jednej licencji A05 w urządzenia ZN-AIBOX lub w kamerze PixelPRO z serii ZNP/ZNU. | E62: 380 | F62: 380 | G62: ZAM | H62: 480 | I62: + | J62: + | K62: + | L62: +
B63: ZNS-AI-A05-2 | C63: Licencja 2-kanałowa AI | detekcja z rozszerzonym zakresem klasyfikacji pojazdów (Motocykl, Autobus, Ciężarówka) przy zachowaniu klasyfikacji domyślnych (Człowiek, Samochód, Rower). Możliwa jest aktywacja tylko jednej licencji A05 w urządzenia ZN-AIBOX. | E63: 750 | F63: 750 | G63: ZAM | H63: 480 | I63: + | J63: + | K63: + | L63: -
B64: ZNS-AI-A05-4 | C64: Licencja 4-kanałowa AI | detekcja z rozszerzonym zakresem klasyfikacji pojazdów (Motocykl, Autobus, Ciężarówka) przy zachowaniu klasyfikacji domyślnych (Człowiek, Samochód, Rower). Możliwa jest aktywacja tylko jednej licencji A05 w urządzenia ZN-AIBOX. | E64: 1,500 | F64: 1,500 | G64: ZAM | H64: 480 | I64: - | J64: + | K64: + | L64: -
B65: ZNS-AI-A07-1 | C65: Licencja 1-kanałowa AI | detekcja i klasyfikacja obiektów z kamery FishEye. Możliwa jest aktywacja tylko jednej licencji A07 w urządzeniu ZN-AIBOX. | E65: 750 | F65: 750 | G65: ZAM | H65: 480 | I65: + | J65: + | K65: + | L65: -
B66: ZNS-AI-A07-2 | C66: Licencja 2-kanałowa AI | detekcja i klasyfikacja obiektów z kamery FishEye. Możliwa jest aktywacja tylko jednej licencji A07 w urządzeniu ZN-AIBOX. | E66: 1,500 | F66: 1,500 | G66: ZAM | H66: 480 | I66: + | J66: + | K66: + | L66: -
B67: ZNS-AI-A07-4 | C67: Licencja 4-kanałowa AI | detekcja i klasyfikacja obiektów z kamery FishEye. Możliwa jest aktywacja tylko jednej licencji A07 w urządzeniu ZN-AIBOX. | E67: 3,000 | F67: 3,000 | G67: ZAM | H67: 480 | I67: - | J67: + | K67: + | L67: -
B68: ZNS-AI-A09-1 | C68: Licencja 1-kanałowa AI | detekcja płomienia. Możliwa jest aktywacja tylko jednej licencji A09 w urządzeniu ZN-AIBOX. | E68: 750 | F68: 750 | G68: ZAM | H68: 480 | I68: + | J68: + | K68: + | L68: -
B69: ZNS-AI-A09-2 | C69: Licencja 2-kanałowa AI | detekcja płomienia. Możliwa jest aktywacja tylko jednej licencji A09 w urządzeniu ZN-AIBOX. | E69: 1,500 | F69: 1,500 | G69: ZAM | H69: 480 | I69: + | J69: + | K69: + | L69: -
B70: ZNS-AI-A09-4 | C70: Licencja 4-kanałowa AI | detekcja płomienia. Możliwa jest aktywacja tylko jednej licencji A09 w urządzeniu ZN-AIBOX. | E70: 3,000 | F70: 3,000 | G70: ZAM | H70: 480 | I70: - | J70: + | K70: + | L70: -
B71: ZNS-AI-A11-1 | C71: Licencja 1-kanałowa AI | detekcja braku kamizelki odblaskowej. Możliwa jest aktywacja tylko jednej licencji A11 w urządzeniu ZN-AIBOX. | E71: 750 | F71: 750 | G71: ZAM | H71: 480 | I71: + | J71: + | K71: + | L71: -
B72: ZNS-AI-A11-2 | C72: Licencja 2-kanałowa AI | detekcja braku kamizelki odblaskowej. Możliwa jest aktywacja tylko jednej licencji A11 w urządzeniu ZN-AIBOX. | E72: 1,500 | F72: 1,500 | G72: ZAM | H72: 480 | I72: + | J72: + | K72: + | L72: -
B73: ZNS-AI-A11-4 | C73: Licencja 4-kanałowa AI | detekcja braku kamizelki odblaskowej. Możliwa jest aktywacja tylko jednej licencji A11 w urządzeniu ZN-AIBOX. | E73: 3,000 | F73: 3,000 | G73: ZAM | H73: 480 | I73: - | J73: + | K73: + | L73: -
B74: ZNS-AI-B01-1 | C74: Licencja 1-kanałowa AI | maskowanie wizerunku osób w kadrze. Możliwa jest aktywacja tylko jednej licencji B01 w urządzeniu ZN-AIBOX. | E74: 750 | F74: 750 | G74: ZAM | H74: 240 | I74: + | J74: + | K74: + | L74: -
B75: ZNS-AI-B01-4 | C75: Licencja 4-kanałowa AI | maskowanie wizerunku osób w kadrze. Możliwa jest aktywacja tylko jednej licencji B01 w urządzeniu ZN-AIBOX. | E75: 3,000 | F75: 3,000 | G75: ZAM | H75: 240 | I75: + | J75: + | K75: + | L75: -
B76: ZNS-AI-B01-8 | C76: Licencja 8-kanałowa AI | maskowanie wizerunku osób w kadrze. Możliwa jest aktywacja tylko jednej licencji B01 w urządzeniu ZN-AIBOX. | E76: 6,000 | F76: 6,000 | G76: ZAM | H76: 240 | I76: - | J76: + | K76: + | L76: -
B77: ZNS-AI-C00-1-EU | C77: Licencja 1-kanałowa AI | LPR - odczyt tablic rejestracyjnych (License Plate Recognition). Możliwa jest aktywacja tylko jednej licencji C00 w urządzeniu ZN-AIBOX lub w kamerze PixelPRO z serii ZNP/ZNU. | E77: 2,300 | F77: 2,300 | G77: ZAM | H77: 120 (Slow) 240 (Normal) 480 (Fast) | I77: + | J77: + | K77: + | L77: +
B78: ZNS-AI-C00-4-EU | C78: Licencja 4-kanałowa AI | LPR - odczyt tablic rejestracyjnych (License Plate Recognition). Możliwa jest aktywacja tylko jednej licencji C00 w urządzeniu ZN-AIBOX. | E78: 9,000 | F78: 9,000 | G78: ZAM | H78: 120 (Slow) 240 (Normal) 480 (Fast) | I78: + | J78: + | K78: + | L78: -
B79: ZNS-AI-C00-8-EU | C79: Licencja 8-kanałowa AI | LPR - odczyt tablic rejestracyjnych (License Plate Recognition). Możliwa jest aktywacja tylko jednej licencji C00 w urządzeniu ZN-AIBOX. | E79: 18,000 | F79: 18,000 | G79: ZAM | H79: 120 (Slow) 240 (Normal) 480 (Fast) | I79: - | J79: + | K79: + | L79: -
B80: ZNS-AI-C01 | C80: Informacja poglądowa o wykorzystaniu punktów AI dla kanałów z aktywnym modułem FR (Face Recognition) dla licencji sprzętowej ZN-AIBOX-FR1 / FR4 / FR8 | E80: 0 | F80: 0 | G80: ZAM | H80: 240 | I80: - | J80: + | K80: + | L80: -
B81: ZNS-AI-D00-1 | C81: Licencja 1-kanałowa AI | detekcja leżącej/przewróconej osoby. Możliwa jest aktywacja tylko jednej licencji D00 w urządzeniu ZN-AIBOX lub w kamerze PixelPRO z serii ZNP/ZNU. | E81: 380 | F81: 380 | G81: ZAM | H81: 120 | I81: + | J81: + | K81: + | L81: +
B82: ZNS-AI-D00-4 | C82: Licencja 4-kanałowa AI | detekcja leżącej/przewróconej osoby. Możliwa jest aktywacja tylko jednej licencji D00 w urządzeniu ZN-AIBOX. | E82: 1,500 | F82: 1,500 | G82: ZAM | H82: 120 | I82: + | J82: + | K82: + | L82: -
B83: ZNS-AI-D00-8 | C83: Licencja 8-kanałowa AI | detekcja leżącej/przewróconej osoby. Możliwa jest aktywacja tylko jednej licencji D00 w urządzeniu ZN-AIBOX. | E83: 3,000 | F83: 3,000 | G83: ZAM | H83: 120 | I83: - | J83: + | K83: + | L83: -
B84: ZNS-AI-W01-1 | C84: Licencja 1-kanałowa AI | detekcja dystansu społecznego pomiędzy osobami. Możliwa jest aktywacja tylko jednej licencji W01 w urządzeniu ZN-AIBOX (zasięg do 20m dla obiektywu <= 2.8mm). Stosowanie tej funkcji z wykorzystaniem kamer fisheye wymaga dodatkowo licencji ZNS-AI-A07. | E84: 1,500 | F84: 1,500 | G84: ZAM | H84: 120 (Bullet/Dome) 480 (FishEye) | I84: + | J84: + | K84: + | L84: -
B85: ZNS-AI-W01-4 | C85: Licencja 4-kanałowa AI | detekcja dystansu społecznego pomiędzy osobami. Możliwa jest aktywacja tylko jednej licencji W01 w urządzeniu ZN-AIBOX (zasięg do 20m dla obiektywu <= 2.8mm). Stosowanie tej funkcji z wykorzystaniem kamer fisheye wymaga dodatkowo licencji ZNS-AI-A07. | E85: 6,000 | F85: 6,000 | G85: ZAM | H85: 120 (Bullet/Dome) 480 (FishEye) | I85: + | J85: + | K85: + | L85: -
B86: ZNS-AI-W01-8 | C86: Licencja 8-kanałowa AI | detekcja dystansu społecznego pomiędzy osobami. Możliwa jest aktywacja tylko jednej licencji W01 w urządzeniu ZN-AIBOX (zasięg do 20m dla obiektywu <= 2.8mm). Stosowanie tej funkcji z wykorzystaniem kamer fisheye wymaga dodatkowo licencji ZNS-AI-A07. | E86: 12,000 | F86: 12,000 | G86: ZAM | H86: 120 (Bullet/Dome) 480 (FishEye) | I86: + | J86: + | K86: + | L86: -
B87: ZNS-AI-X00 | C87: Licencja AI | generowanie zdarzeń na podstawie wyniku kombinacji wartości liczników (suma/różnica). Możliwa jest aktywacja tylko jednej licencji AI-X00 w urządzeniu ZN-AIBOX. | E87: 750 | F87: 750 | G87: ZAM | H87: - | I87: + | J87: + | K87: + | L87: -
B88: Funkcje analityki AI są dostępne dla urządzeń ZN-AIBOX oraz kamer PixelPRO z serii ZNP/ZNU zgodnie z powyższą tabelą. Zamówienie licencji skutkuje jednorazowym przypisaniem dodatkowych funkcjonalności do urządzenia na podstawie wskazanego w zamówieniu fizycznego adresu MAC. Szczegółowe informacje są dostępne w ogólnych warunkach handlowych niniejszego cennika.
B90: Licencje sprzętowe AI do urządzeń AI BOX
B91: ZN-AIBOX-FR1 | C91: Licencja 1-kanałowa AI | FR - identyfikacja twarzy (Face Recognition) do urządzeń ZN-AIBOX w formie fizycznego modułu instalowanego w dedykowanym złączu wewnątrz urządzenia ZN-AIBOX (uwaga: dostępne jest tylko jedno złącze w urządzeniu). Kompatybilne wyłącznie z modelem ZN-AIBOX16. | E91: 1,300 | F91: =E91-(E91*F$6) -> 1,300 | G91: ZAM
B92: ZN-AIBOX-FR4 | C92: Licencja 4-kanałowa AI | FR - identyfikacja twarzy (Face Recognition) do urządzeń ZN-AIBOX w formie fizycznego modułu instalowanego w dedykowanym złączu wewnątrz urządzenia ZN-AIBOX (uwaga: dostępne jest tylko jedno złącze w urządzeniu). Kompatybilne wyłącznie z modelem ZN-AIBOX16. | E92: 5,300 | F92: =E92-(E92*F$6) -> 5,300 | G92: ZAM
B93: ZN-AIBOX-FR8 | C93: Licencja 8-kanałowa AI | FR - identyfikacja twarzy (Face Recognition) do urządzeń ZN-AIBOX w formie fizycznego modułu instalowanego w dedykowanym złączu wewnątrz urządzenia ZN-AIBOX (uwaga: dostępne jest tylko jedno złącze w urządzeniu). Kompatybilne wyłącznie z modelem ZN-AIBOX16. | E93: 10,500 | F93: =E93-(E93*F$6) -> 10,500 | G93: ZAM
B94: Licencje FR (Face Recognition - rozpoznawania twarzy) są fizycznymi modułami instalowanymi wewnątrz urządzenia ZN-AIBOX. Zamówienie licencji FR skutkuje dostarczeniem sprzętowego modułu licencji przeznaczonego do instalacji wewnątrz obudowy urządzenia ZN-AIBOX. Ważne - w urządzeniu AIBOX jest dostępne tylko jedno złącze do modułu FR. Szczegółowe informacje są dostępne w ogólnych warunkach handlowych niniejszego cennika.

Sheet COMPUTAR | Obiektywy
C3: CENNIK PRODUKTÓW CCTV
D7: RABAT: | E7: 0%
B8: Model (kod) towaru | C8: Opis | D8: Cena PLN detal | E8: Cena PLN z rabatem | F8: Dostępność
C10: Obiektywy CCTV | MegaPixel | Zmienna ogniskowa
B11: A4Z2812CS-MPIR | C11: Obiektyw 3MP 1/2.7" CS, 2.8 - 10 mm F1.2, przysłona ręczna, korekcja IR. | D11: 510 | E11: =D11-(D11*E$7) -> 510 | F11: ZAM
B12: AG4Z2812FCS-MPIR-31 | C12: Obiektyw 3MP 1/2.7" CS, 2.8 - 10 mm F1.2, przysłona typu DC, korekcja IR. | D12: 470 | E12: 470 | F12: ZAM
B13: A4Z1214CS-MPIR | C13: Obiektyw 3MP 1/2.7" CS, 12.5 - 50mm, F1.4, przysłona DC, korekcja IR. | D13: 1,080 | E13: 1,080 | F13: ZAM
B14: AG4Z1214FCS-MPIR-31 | C14: Obiektyw 3MP 1/2.7" CS, 12.5 - 50mm, F1.4, przysłona DC, korekcja IR. | D14: 1,150 | E14: 1,150 | F14: ZAM
B15: E3Z3915CS-MPWIR | C15: Obiektyw 8MP 1/1.8" CS, 3.9 - 10mm, F1.5, przysłona ręczna. | D15: 700 | E15: 700 | F15: ZAM
B16: EG3Z3915FCS-MPWIR-31 | C16: Obiektyw 8MP 1/1.8" CS, 3.9 - 10mm, F1.5, przysłona DC, korekcja IR. | D16: 760 | E16: 760 | F16: ZAM
B17: EG6Z0915FCS-MPWIR | C17: Obiektyw 8MP 1/1.8" CS, 9.0 - 50mm, F1.5, przysłona DC, korekcja IR. | D17: 1,550 | E17: 1,550 | F17: ZAM
B18: EG3Z0409FCS-MPWIR | C18: Obiektyw 8MP 1/1.8" CS, 4.0 - 10mm, F0.9, przysłona DC, korekcja IR. | D18: 2,700 | E18: 2,700 | F18: ZAM
B19: Obiektywy CCTV | Manual Zoom
B20: M6Z1212-3S | C20: Obiektyw 2/3" C, 12.5 – 75.0 mm, F1.2-16, przysłona ręczna. | D20: na zapytanie | E20: na zapytanie | F20: ZAM
B21: Obiektywy CCTV | Motorized | MegaPixel
B22: H62Z1235PDC-MP2 | C22: Obiektyw 2MP 1/2" 12.5-775mm F3.5, przysłona DC, preset. | D22: na zapytanie | E22: na zapytanie | F22: ZAM
B23: H62Z1235PDC-MPIR | C23: Obiektyw 2MP 1/2" 12.5-775mm F3.5, przysłona DC, preset, korekcja IR. | D23: na zapytanie | E23: na zapytanie | F23: ZAM
B24: H62Z1235PDC-MPIR-EX | C24: Obiektyw 2MP 1/2" 12.5-775mm F3.5, przysłona DC, preset, korekcja IR, Extender. | D24: na zapytanie | E24: na zapytanie | F24: ZAM
B25: E24Z1018PDC-MP | C25: Obiektyw 3MP 1/1.8" 10-240mm F1.8, filtr SPOT, przysłona DC, preset. | D25: na zapytanie | E25: na zapytanie | F25: ZAM
B26: E24Z1018PDC-MPIR | C26: Obiektyw 3MP 1/1.8" 10-240mm F1.8, filtr SPOT, przysłona DC, korekcja IR, preset. | D26: na zapytanie | E26: na zapytanie | F26: ZAM
B27: E66Z1635PDC-MP | C27: Obiektyw 2MP 1/1.8" 16.7-1100.0mm F3.5, przysłona DC, preset. | D27: na zapytanie | E27: na zapytanie | F27: ZAM
B28: E66Z1635PDC-MPIR | C28: Obiektyw 2MP 1/1.8" 16.7-1100.0mm F3.5, przysłona DC, preset, korekcja IR. | D28: na zapytanie | E28: na zapytanie | F28: ZAM
B29: M24Z1527PDC-MP | C29: Obiektyw 2MP 2/3" 15.0-360mm F2.7, przysłona DC, preset. | D29: na zapytanie | E29: na zapytanie | F29: ZAM
B30: M24Z2138PDC-MP | C30: Obiektyw 2MP 2/3" 21-500mm F3.8, przysłona DC, preset. | D30: na zapytanie | E30: na zapytanie | F30: ZAM
C31: Obiektywy Machine Vision
B32: M3Z1228C-MP | C32: Obiektyw MEGAPIXEL 2/3" C, 12–36 mm, F2.8, przysłona ręczna. | D32: 1,600 | E32: =D32-(D32*E$7) -> 1,600 | F32: ZAM
B33: H0514-MP2 | C33: Obiektyw MEGAPIXEL 1/2’’ C 5mm, F1,4, przysłona ręczna. | D33: 1,350 | E33: 1,350 | F33: ZAM
B34: M0814-MP2 | C34: Obiektyw MEGAPIXEL 2/3" C, 8mm, F1.4, przysłona ręczna. | D34: 1,000 | E34: 1,000 | F34: ZAM
B35: M1214-MP2 | C35: Obiektyw MEGAPIXEL 2/3" C, 12mm, F1.4, przysłona ręczna. | D35: 950 | E35: 950 | F35: ZAM
B36: M1614-MP2 | C36: Obiektyw MEGAPIXEL 2/3" C, 16mm, F1.4, przysłona ręczna. | D36: 850 | E36: 850 | F36: ZAM
B37: M2514-MP2 | C37: Obiektyw MEGAPIXEL 2/3" C, 25mm, F1.4, przysłona ręczna. | D37: 900 | E37: 900 | F37: ZAM
B38: M3514-MP | C38: Obiektyw MEGAPIXEL 2/3" C, 35mm, F1.4-16, przysłona ręczna. | D38: 1,100 | E38: 1,100 | F38: ZAM
B39: M5018-MP2 | C39: Obiektyw MEGAPIXEL 2/3" C, 50mm, F1.8-16, przysłona ręczna. | D39: 1,000 | E39: 1,000 | F39: ZAM
B40: M7528-MP | C40: Obiektyw MEGAPIXEL 2/3" C, 75mm, F1.4-16, przysłona ręczna. | D40: 1,500 | E40: 1,500 | F40: ZAM
B41: M0824-MPW2-R series | C41: Obiektyw 5MP Ruggedized, 2/3" C, 8mm, F2.4, przysłona ręczna. | D41: na zapytanie | E41: na zapytanie | F41: ZAM
B42: M1224-MPW2-R series | C42: Obiektyw 5MP Ruggedized, 2/3" C, 12mm, F2.4, przysłona ręczna. | D42: na zapytanie | E42: na zapytanie | F42: ZAM
B43: M1620-MPW2-R series | C43: Obiektyw 5MP Ruggedized, 2/3" C, 16mm, F2.0, przysłona ręczna. | D43: na zapytanie | E43: na zapytanie | F43: ZAM
B44: M2518-MPW2-R series | C44: Obiektyw 5MP Ruggedized, 2/3" C, 25mm, F1.8, przysłona ręczna. | D44: na zapytanie | E44: na zapytanie | F44: ZAM
B45: M3520-MPW2-R series | C45: Obiektyw 5MP Ruggedized, 2/3" C, 35mm, F2.0, przysłona ręczna. | D45: na zapytanie | E45: na zapytanie | F45: ZAM
B46: M5028-MPW2-R series | C46: Obiektyw 5MP Ruggedized, 2/3" C, 50mm, F2.8, przysłona ręczna. | D46: na zapytanie | E46: na zapytanie | F46: ZAM
B47: M0528-MPW3 | C47: Obiektyw 6MP 2/3" C, 5mm, F2.8 przysłona ręczna. | D47: 2,600 | E47: =D47-(D47*E$7) -> 2,600 | F47: ZAM
B48: M0828-MPW3 | C48: Obiektyw 6MP 2/3" C, 8mm, F2.8 przysłona ręczna. | D48: 1,600 | E48: 1,600 | F48: ZAM
B49: M1228-MPW3 | C49: Obiektyw 6MP 2/3" C, 12mm, F2.8 przysłona ręczna. | D49: 1,400 | E49: 1,400 | F49: ZAM
B50: M1628-MPW3 | C50: Obiektyw 6MP 2/3" C, 16mm, F2.8 przysłona ręczna. | D50: 1,300 | E50: 1,300 | F50: ZAM
B51: M2528-MPW3 | C51: Obiektyw 6MP 2/3" C, 25mm, F2.8 przysłona ręczna. | D51: 1,300 | E51: 1,300 | F51: ZAM
B52: M3528-MPW3 | C52: Obiektyw 6MP 2/3" C, 35mm, F2.8 przysłona ręczna. | D52: 1,300 | E52: 1,300 | F52: ZAM
B53: M5028-MPW3 | C53: Obiektyw 6MP 2/3" C, 50mm, F2.8 przysłona ręczna. | D53: 1,300 | E53: 1,300 | F53: ZAM
B54: M7528-MPW3 | C54: Obiektyw 6MP 2/3" C, 75mm, F2.8 przysłona ręczna. | D54: 1,800 | E54: 1,800 | F54: ZAM
B55: V0826-MPZ | C55: Obiektyw 1" C, 8mm, F2.6, kompatybilny z przetwornikami IMX183, IMX255, IMX267/305, EV2S12M, XGS12000, CMV4000 do 20MP, przysłona ręczna. | D55: 4,000 | E55: 4,000 | F55: ZAM
B56: V1226-MPZ | C56: Obiektyw 1" C, 12mm, F2.6, kompatybilny z przetwornikami IMX183, IMX255, IMX267/305, EV2S12M, XGS12000, CMV4000 do 20MP, przysłona ręczna. | D56: 3,500 | E56: 3,500 | F56: ZAM
B57: V1624-MPZ | C57: Obiektyw 1" C, 16mm, F2.4, kompatybilny z przetwornikami IMX183, IMX255, IMX267/305, EV2S12M, XGS12000, CMV4000 do 20MP, przysłona ręczna. | D57: 3,300 | E57: 3,300 | F57: ZAM
B58: V2520-MPZ | C58: Obiektyw 1" C, 25mm, F2.0, kompatybilny z przetwornikami IMX183, IMX255, IMX267/305, EV2S12M, XGS12000, CMV4000 do 20MP, przysłona ręczna. | D58: 3,300 | E58: 3,300 | F58: ZAM
B59: V3522-MPZ | C59: Obiektyw 1" C, 35mm, F2.2, kompatybilny z przetwornikami IMX183, IMX255, IMX267/305, EV2S12M, XGS12000, CMV4000 do 20MP, przysłona ręczna. | D59: 3,300 | E59: 3,300 | F59: ZAM
B60: V5024-MPZ | C60: Obiektyw 1" C, 50mm, F2.4, kompatybilny z przetwornikami IMX183, IMX255, IMX267/305, EV2S12M, XGS12000, CMV4000 do 20MP, przysłona ręczna. | D60: 3,300 | E60: 3,300 | F60: ZAM
B61: V7531-MPZ | C61: Obiektyw 1" C, 75mm, F3.1, kompatybilny z przetwornikami IMX183, IMX255, IMX267/305, EV2S12M, XGS12000, CMV4000 do 20MP, przysłona ręczna. | D61: 3,700 | E61: 3,700 | F61: ZAM
B62: V0828-MPY2 | C62: Obiektyw 12MP, 1.1" C, 8mm, F2.8, przysłona ręczna. | D62: 3,900 | E62: 3,900 | F62: ZAM
B63: V1228-MPY2 | C63: Obiektyw 12MP, 1.1" C, 12mm, F2.8, przysłona ręczna. | D63: 3,600 | E63: 3,600 | F63: ZAM
B64: V1628-MPY2 | C64: Obiektyw 12MP, 1.1" C, 16mm, F2.8, przysłona ręczna. | D64: 3,500 | E64: 3,500 | F64: ZAM
B65: V2528-MPY | C65: Obiektyw 12MP, 1.1" C, 25mm, F2.8, przysłona ręczna. | D65: 3,500 | E65: 3,500 | F65: ZAM
B66: V3528-MPY | C66: Obiektyw 12MP, 1.1" C, 35mm, F2.8, przysłona ręczna. | D66: 3,500 | E66: 3,500 | F66: ZAM
B67: V5028-MPY | C67: Obiektyw 12MP, 1.1" C, 50mm, F2.8, przysłona ręczna. | D67: 3,500 | E67: 3,500 | F67: ZAM
B68: F1228-MPT | C68: Obiektyw 45MP, 1.4", C, 12mm, F2.8, przysłona ręczna. | D68: 6,300 | E68: 6,300 | F68: ZAM
B69: F1628-MPT | C69: Obiektyw 45MP, 1.4", C, 16mm, F2.8, przysłona ręczna. | D69: 6,300 | E69: 6,300 | F69: ZAM
B70: F2524-MPT | C70: Obiektyw 45MP, 1.4", C, 25mm, F2.4, przysłona ręczna. | D70: 5,900 | E70: 5,900 | F70: ZAM
B71: F3536-MPT | C71: Obiektyw 45MP, 1.4", C, 35mm, F2.6, przysłona ręczna. | D71: 5,900 | E71: 5,900 | F71: ZAM
B72: F5026-MPT | C72: Obiektyw 45MP, 1.4", C, 50mm, F2.6, przysłona ręczna. | D72: 5,900 | E72: 5,900 | F72: ZAM
C73: Obiektywy CCTV | ITS MegaPixel
B74: M2514FIC-MPIR | C74: Obiektyw 5MP 2/3" C 25mm F1.4 przysłona ręczna, korekcja IR. | D74: 2,900 | E74: =D74-(D74*E$7) -> 2,900 | F74: ZAM
B75: MG2514FC-MPIR | C75: Obiektyw 5MP 2/3" C 25mm F1.4 przysłona DC korekcja IR. | D75: 3,000 | E75: 3,000 | F75: ZAM
B76: M3518FIC-MPIR | C76: Obiektyw 5MP 2/3" C 35mm F1.8 przysłona ręczna, korekcja IR. | D76: 3,100 | E76: 3,100 | F76: ZAM
B77: MG3518FC-MPIR | C77: Obiektyw 5MP 2/3" C 35mm F1.8 przysłona DC korekcja IR. | D77: 3,200 | E77: 3,200 | F77: ZAM
B78: M5020FIC-MPIR | C78: Obiektyw 5MP 2/3" C 50mm F2.0 przysłona ręczna, korekcja IR. | D78: 3,900 | E78: 3,900 | F78: ZAM
B79: MG5020FC-MPIR | C79: Obiektyw 5MP 2/3" C 50mm F2.0 przysłona DC korekcja IR. | D79: 4,000 | E79: 4,000 | F79: ZAM
B80: V2518FIC-MPYIR | C80: Obiektyw 12MP, 1.1", C, 25mm, F1.8, przysłona ręczna. | D80: 4,400 | E80: 4,400 | F80: ZAM
B81: V3518FIC-MPYIR | C81: Obiektyw 12MP, 1.1", C, 35mm, F1.8, przysłona ręczna. | D81: 4,400 | E81: 4,400 | F81: ZAM
B82: V5020FIC-MPYIR | C82: Obiektyw 12MP, 1.1", C, 50mm, F2.0, przysłona ręczna. | D82: 4,400 | E82: 4,400 | F82: ZAM
C83: Obiektywy CCTV | Specjalistyczne
B84: TEC-M55 | C84: Obiektyw 2/3" C, 55mm F2.8-32 TELECENTRYCZNY. | D84: 2,900 | E84: =D84-(D84*E$7) -> 2,900 | F84: ZAM
B85: TEC-M55-75 | C85: Ekstender ogniskowej dla TECM55, 0.75x. | D85: 900 | E85: 900 | F85: ZAM
B86: TEC-M55-20 | C86: Ekstender ogniskowej dla TECM55, 2x. | D86: 950 | E86: 950 | F86: ZAM
B87: TEC-M55MPW | C87: Obiektyw 5MP 2/3" C, 55mm F2.8-32 TELECENTRYCZNY. | D87: 4,100 | E87: 4,100 | F87: ZAM
B88: TEC-M0565MPC | C88: Obiektyw telecentryczny 2MP 2/3" typu coax - oświetlenie boczne, powiększenie 0.5x, dystans do obiektu: 65,5mm, efektywny F9.0, maks. format obrazu fi 11mm, głębia pola 2,87mm, mocowanie C, NA=0,028, dystorsje TV (2/3): 0,012%. | D88: 3,200 | E88: 3,200 | F88: ZAM
B89: TEC-M0565MP | C89: Obiektyw telecentryczny 2MP 2/3" typu coax - oświetlenie na wprost, powiększenie 0.5x, dystans do obiektu: 65,5mm, efektywny F9.0, maks. format obrazu fi 11mm, głębia pola 2,87mm, mocowanie C, NA=0,028, dystorsje TV (2/3): 0,012%. | D89: 2,700 | E89: 2,700 | F89: ZAM
B90: TEC-M0865MPC | C90: Obiektyw telecentryczny 2MP 2/3" typu coax - oświetlenie boczne, powiększenie 0.8x, dystans do obiektu: 66mm, efektywny F9.4, maks. format obrazu fi 11mm, głębia pola 1,18mm, mocowanie C, NA=0,042, dystorsje TV (2/3): 0,008%. | D90: 2,900 | E90: 2,900 | F90: ZAM
B91: TEC-M0865MP | C91: Obiektyw telecentryczny 2MP 2/3" typu coax - oświetlenie na wprost, powiększenie 0.8x, dystans do obiektu: 66mm, efektywny F9.4, maks. format obrazu fi 11mm, głębia pola 1,18mm, mocowanie C, NA=0,042, dystorsje TV (2/3): 0,008%. | D91: 2,400 | E91: 2,400 | F91: ZAM
B92: TEC-M1065MPC | C92: Obiektyw telecentryczny 2MP 2/3" typu coax - oświetlenie boczne, powiększenie 1.0x, dystans do obiektu: 65,5mm, efektywny F9.8, maks. format obrazu fi 11mm, głębia pola 0,79mm, mocowanie C, NA=0,05, dystorsje TV (2/3): 0,022%. | D92: 2,900 | E92: 2,900 | F92: ZAM
B93: TEC-M1065MP | C93: Obiektyw telecentryczny 2MP 2/3" typu coax - oświetlenie na wprost, powiększenie 1.0x, dystans do obiektu: 65,5mm, efektywny F9.8, maks. format obrazu fi 11mm, głębia pola 0,79mm, mocowanie C, NA=0,05, dystorsje TV (2/3): 0,022%. | D93: 2,200 | E93: 2,200 | F93: ZAM
B94: TEC-M2065MPC | C94: Obiektyw telecentryczny 2MP 2/3" typu coax - oświetlenie boczne, powiększenie 2.0x, dystans do obiektu: 65,4mm, efektywny F12.8, maks. format obrazu fi 11mm, głębia pola 0,26mm, mocowanie C, NA=0,076, dystorsje TV (2/3): 0,02%. | D94: 2,900 | E94: 2,900 | F94: ZAM
B95: TEC-M2065MP | C95: Obiektyw telecentryczny 2MP 2/3" typu coax - oświetlenie na wprost, powiększenie 2.0x, dystans do obiektu: 65,4mm, efektywny F12.8, maks. format obrazu fi 11mm, głębia pola 0,26mm, mocowanie C, NA=0,076, dystorsje TV (2/3): 0,02%. | D95: 2,600 | E95: 2,600 | F95: ZAM
B96: TEC-M03110MPC | C96: Obiektyw telecentryczny 2MP 2/3" typu coax - oświetlenie boczne, powiększenie 0.3x, dystans do obiektu: 111mm, efektywny F6.5, maks. format obrazu fi 12,8mm, głębia pola 5,75mm, mocowanie C, NA=0,023, dystorsje TV (2/3): 0,026%. | D96: 4,100 | E96: 4,100 | F96: ZAM
B97: TEC-M03110MP | C97: Obiektyw telecentryczny 2MP 2/3" typu coax - oświetlenie na wprost, powiększenie 0.3x, dystans do obiektu: 111mm, efektywny F6.5, maks. format obrazu fi 12,8mm, głębia pola 5,75mm, mocowanie C, NA=0,023, dystorsje TV (2/3): 0,026%. | D97: 3,600 | E97: 3,600 | F97: ZAM
B98: TEC-M05110MPC | C98: Obiektyw telecentryczny 2MP 2/3" typu coax - oświetlenie boczne, powiększenie 0.5x, dystans do obiektu: 111,8mm, efektywny F9.4, maks. format obrazu fi 11mm, głębia pola 3,03mm, mocowanie C, NA=0,026, dystorsje TV (2/3): 0,009%. | D98: 3,900 | E98: 3,900 | F98: ZAM
B99: TEC-M05110MP | C99: Obiektyw telecentryczny 2MP 2/3" typu coax - oświetlenie na wprost, powiększenie 0.5x, dystans do obiektu: 111,8mm, efektywny F9.4, maks. format obrazu fi 11mm, głębia pola 3,03mm, mocowanie C, NA=0,026, dystorsje TV (2/3): 0,009%. | D99: 2,800 | E99: 2,800 | F99: ZAM
B100: TEC-M08110MPC | C100: Obiektyw telecentryczny 2MP 2/3" typu coax - oświetlenie boczne, powiększenie 0.8x, dystans do obiektu: 111mm, efektywny F10.2, maks. format obrazu fi 11mm, głębia pola 1,31mm, mocowanie C, NA=0,038, dystorsje TV (2/3): 0,027%. | D100: 2,900 | E100: 2,900 | F100: ZAM
B101: TEC-M08110MP | C101: Obiektyw telecentryczny 2MP 2/3" typu coax - oświetlenie na wprost, powiększenie 0.8x, dystans do obiektu: 111mm, efektywny F10.2, maks. format obrazu fi 11mm, głębia pola 1,31mm, mocowanie C, NA=0,038, dystorsje TV (2/3): 0,027%. | D101: 2,400 | E101: 2,400 | F101: ZAM
B102: TEC-M10110MPC | C102: Obiektyw telecentryczny 2MP 2/3" typu coax - oświetlenie boczne, powiększenie 1.0x, dystans do obiektu: 111,5mm, efektywny F10.1, maks. format obrazu fi 11mm, głębia pola 0,82mm, mocowanie C, NA=0,049, dystorsje TV (2/3): 0,003%. | D102: 2,900 | E102: 2,900 | F102: ZAM
B103: TEC-M10110MP | C103: Obiektyw telecentryczny 2MP 2/3" typu coax - oświetlenie na wprost, powiększenie 1.0x, dystans do obiektu: 111,5mm, efektywny F10.1, maks. format obrazu fi 11mm, głębia pola 0,82mm, mocowanie C, NA=0,049, dystorsje TV (2/3): 0,003%. | D103: 2,800 | E103: 2,800 | F103: ZAM
B104: TEC-M15110MPC | C104: Obiektyw telecentryczny 2MP 2/3" typu coax - oświetlenie boczne, powiększenie 1.5x, dystans do obiektu: 110,7mm, efektywny F11.5, maks. format obrazu fi 11mm, głębia pola 0,42mm, mocowanie C, NA=0,064, dystorsje TV (2/3): 0,031%. | D104: 3,900 | E104: 3,900 | F104: ZAM
B105: TEC-M15110MP | C105: Obiektyw telecentryczny 2MP 2/3" typu coax - oświetlenie na wprost, powiększenie 1.5x, dystans do obiektu: 110,7mm, efektywny F11.5, maks. format obrazu fi 11mm, głębia pola 0,42mm, mocowanie C, NA=0,064, dystorsje TV (2/3): 0,031%. | D105: 2,800 | E105: 2,800 | F105: ZAM
B106: TEC-M20110MPC | C106: Obiektyw telecentryczny 2MP 2/3" typu coax - oświetlenie boczne, powiększenie 2.0x, dystans do obiektu: 110,9mm, efektywny F13.0, maks. format obrazu fi 11mm, głębia pola 0,27mm, mocowanie C, NA=0,075, dystorsje TV (2/3): 0,019%. | D106: 3,900 | E106: 3,900 | F106: ZAM
B107: TEC-M20110MP | C107: Obiektyw telecentryczny 2MP 2/3" typu coax - oświetlenie na wprost, powiększenie 2.0x, dystans do obiektu: 110,9mm, efektywny F13.0, maks. format obrazu fi 11mm, głębia pola 0,27mm, mocowanie C, NA=0,075, dystorsje TV (2/3): 0,019%. | D107: 2,800 | E107: 2,800 | F107: ZAM
B108: MLH10X | C108: Obiektyw 1/2” C, 18.0 – 180.0 mm F5.6-32 MAKRO-ZOOM. | D108: 2,100 | E108: 2,100 | F108: ZAM
B109: MLM-3XMP | C109: Obiektyw MEGAPIXEL 2/3" C, 12 – 36 mm, F4.5-22, MAKRO MEGAPIXEL. | D109: 2,600 | E109: 2,600 | F109: ZAM
B110: TEC-V7X | C110: Obiektyw 5MP 1.1" C 182mm-577.2mm, F4.3-F32, TELECENTRYCZNY. | D110: 11,500 | E110: 11,500 | F110: ZAM
B111: Akcesoria
B112: VM100 | C112: Zestaw tub przedłużających wkręcanych pomiędzy obiektyw i kamerę (0.5, 1, 5, 10, 20, 40 mm), umożliwia uzyskanie ostrości w bliskich odległościach do obiektu. | D112: 230 | E112: =D112-(D112*E$7) -> 230 | F112: ZAM
B113: VM400 | C113: 5-milimetrowy pierścień do podłączenia obiektywów o mocowaniu C do kamer z mocowaniem CS. | D113: 45 | E113: =D113-(D113*E$7) -> 45 | F113: ZAM
B114: EX1.5C | C114: Ekstender ogniskowej 1.5x montowany między obiektywem a kamerą. | D114: 440 | E114: =D114-(D114*E$7) -> 440 | F114: ZAM
B115: EX2.0C | C115: Ekstender ogniskowej 2x montowany między obiektywem a kamerą. | D115: 540 | E115: =D115-(D115*E$7) -> 540 | F115: ZAM
B116: Obiektywy SWIR
B117: M1614-SW | C117: Obiektyw SWIR 2/3" C,16mm, F1.4, przysłona ręczna. | D117: 3,500 | E117: =D117-(D117*E$7) -> 3,500 | F117: ZAM
B118: M2514-SW | C118: Obiektyw SWIR 2/3" C,25mm, F1.4, przysłona ręczna. | D118: 3,500 | E118: =D118-(D118*E$7) -> 3,500 | F118: ZAM
B119: M3514-SW | C119: Obiektyw SWIR 2/3" C,35mm, F1.4, przysłona ręczna. | D119: 3,500 | E119: =D119-(D119*E$7) -> 3,500 | F119: ZAM
B120: M5018-SW | C120: Obiektyw SWIR 2/3" C,50mm, F1.8, przysłona ręczna. | D120: 3,500 | E120: =D120-(D120*E$7) -> 3,500 | F120: ZAM
C121: Obiektywy ViSWIR LITE
B122: H0514-VSW | C122: Obiektyw ViSWIR LITE2/3",C 5mm, F1.4, 400 - 1700nm, przysłona ręczna. | D122: 5,000 | E122: =D122-(D122*E$7) -> 5,000 | F122: ZAM
B123: M0814-VSW | C123: Obiektyw ViSWIR LITE2/3",C 8mm, F1.4, 400 - 1700nm, przysłona ręczna. | D123: 5,000 | E123: 5,000 | F123: ZAM
B124: M1214-VSW | C124: Obiektyw ViSWIR LITE2/3",C 12mm, F1.4, 400 - 1700nm, przysłona ręczna. | D124: 5,000 | E124: 5,000 | F124: ZAM
B125: M1614-VSW | C125: Obiektyw ViSWIR LITE2/3",C 16mm, F1.4, 400 - 1700nm, przysłona ręczna. | D125: 5,000 | E125: 5,000 | F125: ZAM
B126: M2514-VSW | C126: Obiektyw ViSWIR LITE2/3",C 25mm, F1.4, 400 - 1700nm, przysłona ręczna. | D126: 5,000 | E126: 5,000 | F126: ZAM
B127: M3514-VSW | C127: Obiektyw ViSWIR LITE2/3",C 35mm, F1.4, 400 - 1700nm, przysłona ręczna. | D127: 5,000 | E127: 5,000 | F127: ZAM
B128: M5018-VSW | C128: Obiektyw ViSWIR LITE2/3",C 50mm, F1.8, 400 - 1700nm, przysłona ręczna. | D128: 5,000 | E128: 5,000 | F128: ZAM
C129: Obiektywy ViSWIR Hyper-APO
B130: M0818-APVSW | C130: Obiektyw ViSWIR Hyper-APO 2/3", C 8mm, F1.8, 400 - 1700nm, przysłona ręczna. | D130: 28,000 | E130: =D130-(D130*E$7) -> 28,000 | F130: ZAM
B131: M1218-APVSW | C131: Obiektyw ViSWIR Hyper-APO 2/3", C 12mm, F1.8, 400 - 1700nm, przysłona ręczna. | D131: 28,000 | E131: =D131-(D131*E$7) -> 28,000 | F131: ZAM
B132: M1618-APVSW | C132: Obiektyw ViSWIR Hyper-APO 2/3", C 16mm, F1.8, 400 - 1700nm, przysłona ręczna. | D132: 28,000 | E132: =D132-(D132*E$7) -> 28,000 | F132: ZAM
B133: M2518-APVSW | C133: Obiektyw ViSWIR Hyper-APO 2/3", C 25mm, F1.8, 400 - 1700nm, przysłona ręczna. | D133: 28,000 | E133: =D133-(D133*E$7) -> 28,000 | F133: ZAM
B134: M3518-APVSW | C134: Obiektyw ViSWIR Hyper-APO 2/3", C 35mm, F1.8, 400 - 1700nm, przysłona ręczna. | D134: na zapytanie | E134: na zapytanie | F134: ZAM
B135: M5018-APVSW | C135: Obiektyw ViSWIR Hyper-APO 2/3", C 50mm, F1.8, 400 - 1700nm, przysłona ręczna. | D135: na zapytanie | E135: na zapytanie | F135: ZAM
C136: ViSWIR Mirror Reflex Zoom Lens
B137: E3Z5247P-MPSW | C137: Obiektyw Zoom 1.3MP 1/1.8", C 520-1300mm, F4.7, przysłona FIX, Defog, Focus, ViSWIR. | D137: 420,000 | E137: =D137-(D137*E$7) -> 420,000 | F137: ZAM
C138: LensConnect RF Series
B139: VL0826U-MPZ | C139: Obiektyw 20MP 1", C 8mm, F2.6 przysłona LensConnect, sterowanie poprzez USB. | D139: 7,000 | E139: =D139-(D139*E$7) -> 7,000 | F139: ZAM
B140: VL1226U-MPZ | C140: Obiektyw 20MP 1", C 12mm, F2.6 przysłona LensConnect, sterowanie poprzez USB. | D140: 6,500 | E140: 6,500 | F140: ZAM
B141: VL1624U-MPZ | C141: Obiektyw 20MP 1", C 16mm, F2.6 przysłona LensConnect, sterowanie poprzez USB. | D141: 6,500 | E141: 6,500 | F141: ZAM
B142: VL2520U-MPZ | C142: Obiektyw 20MP 1", C 25mm, F2.6 przysłona LensConnect, sterowanie poprzez USB. | D142: 6,500 | E142: 6,500 | F142: ZAM
B143: VL3522U-MPZ | C143: Obiektyw 20MP 1", C 35mm, F2.2 przysłona LensConnect, sterowanie poprzez USB. | D143: 6,500 | E143: 6,500 | F143: ZAM
B144: VL5024U-MPZ | C144: Obiektyw 20MP 1", C 50mm, F2.4 przysłona LensConnect, sterowanie poprzez USB. | D144: 6,500 | E144: 6,500 | F144: ZAM
B145: VL7531U-MPZ | C145: Obiektyw 20MP 1", C 75mm, F3.1 przysłona LensConnect, sterowanie poprzez USB. | D145: 7,000 | E145: 7,000 | F145: ZAM
C146: LensConnect BH Series
B147: DL0828UC-MPY | C147: Obiektyw 12MP 1/1.1", C 8mm, F2.8 przysłona LensConnect, sterowanie poprzez USB. | D147: 5,200 | E147: =D147-(D147*E$7) -> 5,200 | F147: ZAM
B148: DL1224UC-MPY | C148: Obiektyw 12MP 1/1.1", C 12mm, F2.8 przysłona LensConnect, sterowanie poprzez USB. | D148: 5,200 | E148: 5,200 | F148: ZAM
B149: DL1623UC-MPY | C149: Obiektyw 12MP 1/1.1", C 16mm, F2.8 przysłona LensConnect, sterowanie poprzez USB. | D149: 5,200 | E149: 5,200 | F149: ZAM
B150: DL2523UC-MPY | C150: Obiektyw 12MP 1/1.1", C 25mm, F2.8 przysłona LensConnect, sterowanie poprzez USB. | D150: 5,200 | E150: 5,200 | F150: ZAM
B151: DL3525UC-MPY | C151: Obiektyw 12MP 1/1.1", C 35mm, F2.8 przysłona LensConnect, sterowanie poprzez USB. | D151: 5,200 | E151: 5,200 | F151: ZAM
B152: DL5026UC-MPY | C152: Obiektyw 12MP 1/1.1", C 50mm, F2.8 przysłona LensConnect, sterowanie poprzez USB. | D152: 5,200 | E152: 5,200 | F152: ZAM
B153: EL3Z0416UCS-MPWIR | C153: Obiektyw 5MP 1/1.1.8", CS 4-10mm, F1.6 przysłona LensConnect, sterowanie poprzez USB. | D153: 3,100 | E153: 3,100 | F153: ZAM
B154: EL6Z0915UCS-MPWIR | C154: Obiektyw 5MP 1/1.1.8", CS 9-50mm, F1.5 przysłona LensConnect, sterowanie poprzez USB. | D154: 4,600 | E154: 4,600 | F154: ZAM
B155: VL6Z1626UC-MPYIR | C155: Obiektyw 12MP 1/1.1", C 16-96mm, F2.6 przysłona LensConnect, sterowanie poprzez USB. | D155: 7,600 | E155: 7,600 | F155: ZAM

Sheet PELCO - Video Security
D3: CENNIK PRODUKTÓW CCTV | F3: PELCO VIDEO SECURITY
F6: RABAT: | G6: 0%
B7: Subcategory | C7: Model No. | D7: Name | E7: Description (for prices starting on February 02 2023) | F7: MSRP (EUR) | G7: Cena z rabatem (EUR) | H7: Dostępność
B8: Camera | C8: UEWBTA | D8: Parapet or ceiling mounting bracket UK | E8: Parapet or ceiling mounting bracket UK | F8: 249 | G8: =F8-(F8*G$6) -> 249 | H8: ZAM
B9: Camera | C9: WASEX2T4KC | D9: WASEX2T4KC | E9: ExP Tank 10l KC pipe 20m IN 24Vac dc | F9: 2,176 | G9: 2,176 | H9: ZAM
B10: Camera | C10: WASEX2T4UL | D10: WASEX2T4UL | E10: ExP Tank 10l cULus pipe 20m IN 24Vac dc | F10: 2,176 | G10: 2,176 | H10: ZAM
B11: Encoder | C11: NET6504-AU | D11: Rack Mount Encoder 4-CH; AU Power Cord | E11: Rack Mount Encoder 4-CH; AU Power Cord | F11: 434 | G11: 434 | H11: ZAM
B12: Encoder | C12: NET6504-EU | D12: Rack Mount Encoder 4-CH; EU Power Cord | E12: Rack Mount Encoder 4-CH; EU Power Cord | F12: 434 | G12: 434 | H12: ZAM
B13: Encoder | C13: NET6504-UK | D13: Rack Mount Encoder 4-CH; UK Power Cord | E13: Rack Mount Encoder 4-CH; UK Power Cord | F13: 434 | G13: 434 | H13: ZAM
B14: Encoder | C14: NET6504-US | D14: Rack Mount Encoder 4-CH; US Power Cord | E14: Rack Mount Encoder 4-CH; US Power Cord | F14: 434 | G14: 434 | H14: ZAM
B15: Encoder | C15: NET6516-AU | D15: Rack Mount Encoder16-CH; AU Power Cord | E15: Rack Mount Encoder16-CH; AU Power Cord | F15: 1,410 | G15: 1,410 | H15: ZAM
B16: Encoder | C16: NET6516-EU | D16: Rack Mount Encoder16-CH; EU Power Cord | E16: Rack Mount Encoder16-CH; EU Power Cord | F16: 1,410 | G16: 1,410 | H16: ZAM
B17: Encoder | C17: NET6516-UK | D17: Rack Mount Encoder16-CH; UK Power Cord | E17: Rack Mount Encoder16-CH; UK Power Cord | F17: 1,410 | G17: 1,410 | H17: ZAM
B18: Encoder | C18: NET6516-US | D18: Rack Mount Encoder16-CH; US Power Cord | E18: Rack Mount Encoder16-CH; US Power Cord | F18: 1,410 | G18: 1,410 | H18: ZAM
B19: Camera Accessories | C19: BRKTMD-1001 | D19: DIN Rail Mount for Modular Camera Main Unit | E19: DIN Rail Mount for Modular Camera Main Unit | F19: 38 | G19: 38 | H19: ZAM
B20: Camera Accessories | C20: BRKTMD-1011 | D20: Replacement L Bracket for Modular Camera Microbullet Sensor Head | E20: Replacement L Bracket for Modular Camera Microbullet Sensor Head | F20: 32 | G20: 32 | H20: ZAM
B21: Camera Accessories | C21: BRKTMD-1021 | D21: Replacement Flat Bracket for Modular CameraRight Angle Sensor Head | E21: Replacement Flat Bracket for Modular CameraRight Angle Sensor Head | F21: 28 | G21: 28 | H21: ZAM
B22: Camera Accessories | C22: BRKTMD-1031 | D22: Replacement Trimring Bracket for Modular Camera Microbullet Sensor head | E22: Replacement Trimring Bracket for Modular Camera Microbullet Sensor head | F22: 26 | G22: 26 | H22: ZAM
B23: Camera Accessories | C23: CAM-FIPS | D23: FIPS Camera license | E23: FIPS Camera license | F23: 9 | G23: 9 | H23: ZAM
B24: Camera Accessories | C24: CBL2M-1001 | D24: 2m (6 ft) HD BNC Cable for Modular Camera | E24: 2m (6 ft) HD BNC Cable for Modular Camera | F24: 50 | G24: 50 | H24: ZAM
B25: Camera Accessories | C25: CBL5M-1001 | D25: 5m (16 ft) HD BNC Cable for Modular Camera | E25: 5m (16 ft) HD BNC Cable for Modular Camera | F25: 72 | G25: 72 | H25: ZAM
B26: Camera Accessories | C26: CBLKT-1001 | D26: Cable kit replacement for for Multi sensor Multi directional cameras | E26: Cable kit replacement for for Multi sensor Multi directional cameras | F26: 65 | G26: 65 | H26: ZAM
B27: Camera Accessories | C27: CLPNL-1001 | D27: Ceiling panel metal white 2 ft X 2 ft for Multi Sensor Multi directional camera | E27: Ceiling panel metal white 2 ft X 2 ft to replace exisiting ceiling tile for Multi Sensor Multi directional camera | F27: 94 | G27: 94 | H27: ZAM
B28: Camera Accessories | C28: CNBX-1001 | D28: Conduit entry gang box vandal resistant white for corner camera | E28: Conduit entry gang box vandal resistant white for corner camera accepts 1/2 and 3/4 inch conduit | F28: 115 | G28: 115 | H28: ZAM
B29: Camera Accessories | C29: COMB100A | D29: COMB100A | E29: Comm box polycarbonate 220-230Vac | F29: 1,299 | G29: 1,299 | H29: ZAM
B30: Camera Accessories | C30: COMB200A | D30: COMB200A | E30: Comm box polycarbonate 24Vac | F30: 1,299 | G30: 1,299 | H30: ZAM
B31: Camera Accessories | C31: COMB300A | D31: COMB300A | E31: Comm box polycarbonate 120-127Vac | F31: 1,299 | G31: 1,299 | H31: ZAM
B32: Camera Accessories | C32: COMBMP | D32: COMBMP | E32: Pole or corner mount adapter for COMB | F32: 215 | G32: 215 | H32: ZAM
B33: Camera Accessories | C33: CRNMT-1001 | D33: Corner Mount for large pendant wall mount WLMT-1001 | E33: Corner Mount for large pendant wall mount WLMT-1001 | F33: 94 | G33: 94 | H33: ZAM
B34: Camera Accessories | C34: DBHWGC | D34: DBHWGC | E34: Pole adapter 210 to 225mm | F34: 95 | G34: 95 | H34: ZAM
B35: Camera Accessories | C35: DCZ | D35: DCZ | E35: USB keyboard | F35: 687 | G35: 687 | H35: ZAM
B36: Camera Accessories | C36: DTWRX | D36: DTWRX | E36: Housing washer control RS485 For WASPT | F36: 50 | G36: 50 | H36: ZAM
B37: Camera Accessories | C37: EXBJ000 | D37: EXBJ000 | E37: Ball joint for EXH RAL9002 | F37: 430 | G37: 430 | H37: ZAM
B38: Camera Accessories | C38: EXHC003G | D38: EXHC003G | E38: ExP housing thermal 3 heater 24Vac | F38: 19,231 | G38: 19,231 | H38: ZAM
B39: Camera Accessories | C39: EXHC003R | D39: EXHC003R | E39: Housing thermal 3 heater 24Vac | F39: 1,915 | G39: 1,915 | H39: ZAM
B40: Camera Accessories | C40: EXHC203R | D40: EXHC203R | E40: Housing thermal 3 heater 230Vac | F40: 1,915 | G40: 1,915 | H40: ZAM
B41: Camera Accessories | C41: EXHS000 | D41: EXHS000 | E41: Sunshield 640mm for EXHC housings | F41: 122 | G41: 122 | H41: ZAM
B42: Camera Accessories | C42: FERR-1001 | D42: Ferrite clamp for Multi directional cameras to meet EN-50121-4 5 pack | E42: Ferrite clamp for use with Multi sensor Multi directional cameras aux power cable to meet EN-50121-4 5 pack | F42: 27 | G42: 27 | H42: ZAM
B43: Camera Accessories | C43: FM1010 | D43: FM1010 | E43: EMC Filter for Marine Certification | F43: 50 | G43: 50 | H43: ZAM
B44: Camera Accessories | C44: HEB32D0A000B | D44: HEB32D0A000B | E44: HEB housing 320mm | F44: 109 | G44: 109 | H44: ZAM
B45: Camera Accessories | C45: HEB32K0A000B | D45: HEB32K0A000B | E45: HEB housing 320mm sunshield | F45: 139 | G45: 139 | H45: ZAM
B46: Camera Accessories | C46: HEB32K1A000B | D46: HEB32K1A000B | E46: HEB house 320 shield heat IN 120 230Vac | F46: 169 | G46: 169 | H46: ZAM
B47: Camera Accessories | C47: HEB32K2A000B | D47: HEB32K2A000B | E47: HEB house 320 shld heat IN 12Vdc 24Vac | F47: 169 | G47: 169 | H47: ZAM
B48: Camera Accessories | C48: HEG37K0A000 | D48: HEG37K0A000 | E48: HEG housing 365mm sunshield | F48: 211 | G48: 211 | H48: ZAM
B49: Camera Accessories | C49: HEG37K1A000 | D49: HEG37K1A000 | E49: HEG house 365 shield heat IN 120 230Vac | F49: 238 | G49: 238 | H49: ZAM
B50: Camera Accessories | C50: HEG37K1A074 | D50: HEG37K1A074 | E50: HEG house 365 shld 2 heat IN 120 230Vac | F50: 286 | G50: 286 | H50: ZAM
B51: Camera Accessories | C51: HEG37K1A143 | D51: HEG37K1A143 | E51: HEG 365 sld fan 3 heat IN 120 230Vac | F51: 352 | G51: 352 | H51: ZAM
B52: Camera Accessories | C52: HEG37K2A000 | D52: HEG37K2A000 | E52: HEG house 365 shld heat IN 12Vdc 24Vac | F52: 238 | G52: 238 | H52: ZAM
B53: Camera Accessories | C53: HEG47K1A000 | D53: HEG47K1A000 | E53: HEG house 450 shield heat IN 120 230Vac | F53: 253 | G53: 253 | H53: ZAM
B54: Camera Accessories | C54: HEG47K1A018 | D54: HEG47K1A018 | E54: HEG house 450 shld heat blow 120 230Vac | F54: 393 | G54: 393 | H54: ZAM
B55: Camera Accessories | C55: HEG47K2A000 | D55: HEG47K2A000 | E55: HEG house 450 shld heat IN 12Vdc 24Vac | F55: 253 | G55: 253 | H55: ZAM
B56: Camera Accessories | C56: HEG47K2A016 | D56: HEG47K2A016 | E56: HEG house 450 shld heat blow 24Vac | F56: 347 | G56: 347 | H56: ZAM
B57: Camera Accessories | C57: HGV52K1A100 | D57: HGV52K1A100 | E57: HGV 520 shld 3 fan heat wipe 100 240VAC | F57: 1,578 | G57: 1,578 | H57: ZAM
B58: Camera Accessories | C58: HGV52K2A200 | D58: HGV52K2A200 | E58: HGV house 520 sld 3 fan heat wipe 24Vac | F58: 1,578 | G58: 1,578 | H58: ZAM
B59: Camera Accessories | C59: HOT39D0A000 | D59: HOT39D0A000 | E59: PUNTO housing | F59: 55 | G59: 55 | H59: ZAM
B60: Camera Accessories | C60: HOT39D1A000 | D60: HOT39D1A000 | E60: PUNTO housing with heater IN 120 230Vac | F60: 69 | G60: 69 | H60: ZAM
B61: Camera Accessories | C61: HOT39D1A085 | D61: HOT39D1A085 | E61: PUNTO house heat IN 120 230Vac WBOVA2 | F61: 97 | G61: 97 | H61: ZAM
B62: Camera Accessories | C62: HOT39D2A000 | D62: HOT39D2A000 | E62: PUNTO house heater IN 12Vdc 24Vac | F62: 69 | G62: 69 | H62: ZAM
B63: Camera Accessories | C63: HOT39D2A085 | D63: HOT39D2A085 | E63: PUNTO house heater IN 12Vdc 24Vac BOV2A | F63: 97 | G63: 97 | H63: ZAM
B64: Camera Accessories | C64: HOT39K1A000 | D64: HOT39K1A000 | E64: PUNTO house shield heat IN 120 230Vac | F64: 82 | G64: 82 | H64: ZAM
B65: Camera Accessories | C65: HOT39K2A000 | D65: HOT39K2A000 | E65: PUNTO house shield heat IN 12Vdc 24Vac | F65: 82 | G65: 82 | H65: ZAM
B66: Camera Accessories | C66: HOT39K2A700 | D66: HOT39K2A700 | E66: PUNTO Hi-PoE housing | F66: 196 | G66: 196 | H66: ZAM
B67: Camera Accessories | C67: HOV32K1A000 | D67: HOV32K1A000 | E67: HOV house 300mm shld heat IN 120 230Vac | F67: 168 | G67: 168 | H67: ZAM
B68: Camera Accessories | C68: HOV32K1A018 | D68: HOV32K1A018 | E68: HOV house 300 shld heat blow 120 230Vac | F68: 303 | G68: 303 | H68: ZAM
B69: Camera Accessories | C69: HOV32K1A100 | D69: HOV32K1A100 | E69: HOV hous 300 sld heat IN 120 230Vac wipe | F69: 508 | G69: 508 | H69: ZAM
B70: Camera Accessories | C70: HOV32K2A000 | D70: HOV32K2A000 | E70: HOV house 300 sld heat IN 12 24 Vac dc | F70: 168 | G70: 168 | H70: ZAM
B71: Camera Accessories | C71: HOV32K2A016 | D71: HOV32K2A016 | E71: HOV house 300mm shield heat blow 24Vac | F71: 261 | G71: 261 | H71: ZAM
B72: Camera Accessories | C72: HOV32K2A017 | D72: HOV32K2A017 | E72: HOV house 300mm shield heat blow 12Vdc | F72: 261 | G72: =F72-(F72*G$6) -> 261 | H72: ZAM
B73: Camera Accessories | C73: HOV32K2A147 | D73: HOV32K2A147 | E73: HOV house 300mm shield heat blow 24Vac | F73: 594 | G73: 594 | H73: ZAM
B74: Camera Accessories | C74: HOV32K2A200 | D74: HOV32K2A200 | E74: HOV hous 300 sld heat IN 12 24 Vac dc wp | F74: 508 | G74: 508 | H74: ZAM
B75: Camera Accessories | C75: HOV32K2A700 | D75: HOV32K2A700 | E75: HOV house for PoE cameras IPM | F75: 354 | G75: 354 | H75: ZAM
B76: Camera Accessories | C76: HOV32K2A716 | D76: HOV32K2A716 | E76: HOV house for PoE cameras IPM blower | F76: 396 | G76: 396 | H76: ZAM
B77: Camera Accessories | C77: HOV32K2A720 | D77: HOV32K2A720 | E77: HOV house for PoE cameras IPM heater | F77: 496 | G77: 496 | H77: ZAM
B78: Camera Accessories | C78: HPV36D0A000B | D78: HPV36D0A000B | E78: VERSO COMPACT housing 360mm | F78: 75 | G78: 75 | H78: ZAM
B79: Camera Accessories | C79: HPV36K0A000B | D79: HPV36K0A000B | E79: VERSO CPT house 360mm shield | F79: 88 | G79: 88 | H79: ZAM
B80: Camera Accessories | C80: HPV36K1A000B | D80: HPV36K1A000B | E80: VERSO CPT 360mm shld heat IN 120 230Vac | F80: 107 | G80: 107 | H80: ZAM
B81: Camera Accessories | C81: HPV36K2A000B | D81: HPV36K2A000B | E81: VERSO CPT 360 shld heat IN 12Vdc 24Vac | F81: 107 | G81: 107 | H81: ZAM
B82: Camera Accessories | C82: HPV36K2A015B | D82: HPV36K2A015B | E82: VERSO CPT house 360 sld fan heat 24Vac | F82: 138 | G82: 138 | H82: ZAM
B83: Camera Accessories | C83: HPV42K0A000 | D83: HPV42K0A000 | E83: VERSO house 420mm shield | F83: 116 | G83: 116 | H83: ZAM
B84: Camera Accessories | C84: HPV42K1A000 | D84: HPV42K1A000 | E84: VERSO house 420 sld heat IN 120 230Vac | F84: 137 | G84: 137 | H84: ZAM
B85: Camera Accessories | C85: HPV42K1A160 | D85: HPV42K1A160 | E85: VERSO POLAR 420mm shld IN 120 230Vac | F85: 205 | G85: 205 | H85: ZAM
B86: Camera Accessories | C86: HPV42K2A000 | D86: HPV42K2A000 | E86: VERSO hous 420 sld heat IN 12Vdc 24Vac | F86: 137 | G86: 137 | H86: ZAM
B87: Camera Accessories | C87: HPV42K2A016 | D87: HPV42K2A016 | E87: VERSO house 420mm shield heat blow 24Vac | F87: 244 | G87: 244 | H87: ZAM
B88: Camera Accessories | C88: HPV42K2A017 | D88: HPV42K2A017 | E88: VERSO house 420mm shield heat blow 12Vdc | F88: 244 | G88: 244 | H88: ZAM
B89: Camera Accessories | C89: HPV42K2A160 | D89: HPV42K2A160 | E89: VERSO POLAR 420 shld heat IN 12Vdc 24Vac | F89: 205 | G89: 205 | H89: ZAM
B90: Camera Accessories | C90: HPV42K2A700 | D90: HPV42K2A700 | E90: VERSO house for PoE cameras IPM | F90: 312 | G90: 312 | H90: ZAM
B91: Camera Accessories | C91: HPV42K2A716 | D91: HPV42K2A716 | E91: VERSO house for PoE cameras IPM blow | F91: 352 | G91: 352 | H91: ZAM
B92: Camera Accessories | C92: HTG37K1A000 | D92: HTG37K1A000 | E92: HTG house 365mm shld heat IN 120 230Vac | F92: 1,325 | G92: 1,325 | H92: ZAM
B93: Camera Accessories | C93: HTG37K2A000 | D93: HTG37K2A000 | E93: HTG house 365mm shld heat IN 12Vdc 24Vac | F93: 1,325 | G93: 1,325 | H93: ZAM
B94: Camera Accessories | C94: HTV32K1A000 | D94: HTV32K1A000 | E94: HTV house 300mm shld heat IN 120 230Vac | F94: 1,250 | G94: 1,250 | H94: ZAM
B95: Camera Accessories | C95: HTV32K2A000 | D95: HTV32K2A000 | E95: HTV house 300mm sld heat IN 12Vdc 24Vac | F95: 1,250 | G95: 1,250 | H95: ZAM
B96: Camera Accessories | C96: IBD3-FP | D96: Replacement front plate kit for IBD3 High Security Corner Camera Pantone 427C | E96: Replacement front plate kit for IBD Series 3 High Security Corner Camera Rolled Steel Pantone 427C | F96: 233 | G96: 233 | H96: ZAM
B97: Camera Accessories | C97: IBD3-FPSS | D97: Replacement front plate kit for IBD3 High Security Corner Camera Stainless Steel | E97: Replacement front plate kit for IBD Series 3 High Security Corner Camera Stainless Steel | F97: 287 | G97: 287 | H97: ZAM
B98: Camera Accessories | C98: IMD1-INC | D98: Inceiling mount adapter for Sarix Multi cameras | E98: Inceiling mount adapter for Sarix Multi cameras | F98: 133 | G98: 133 | H98: ZAM
B99: Camera Accessories | C99: IMD1-INCLD0 | D99: Lower dome smoked for inceiling mounted Sarix Multi camera | E99: Lower dome smoked for inceiling mounted Sarix Multi cameras | F99: 66 | G99: 66 | H99: ZAM
B100: Camera Accessories | C100: IMD1-INCLD1 | D100: Lower dome clear for inceiling mounted Sarix Multi camera | E100: Lower dome clear for inceiling mounted Sarix Multi cameras | F100: 66 | G100: 66 | H100: ZAM
B101: Camera Accessories | C101: IMD1-IR | D101: IR illuminator ring for Sarix Multi camera | E101: IR illuminator ring for Sarix Multi cameras | F101: 330 | G101: 330 | H101: ZAM
B102: Camera Accessories | C102: IMD1-PMT | D102: Pendant mount adapter for Sarix Multi cameras | E102: Pendant mount adapter for Sarix Multi cameras | F102: 149 | G102: 149 | H102: ZAM
B103: Camera Accessories | C103: IMD1-SMT | D103: Surface mount adapter for Sarix Multi cameras | E103: Surface mount adapter for Sarix Multi cameras | F103: 149 | G103: 149 | H103: ZAM
B104: Camera Accessories | C104: IMD1-SPLD0 | D104: Lower dome smoked for Surface or Pendant mounted Sarix Multi camera | E104: Lower dome smoked for Surface or Pendant mounted Sarix Multi cameras | F104: 149 | G104: 149 | H104: ZAM
B105: Camera Accessories | C105: IMD1-SPLD1 | D105: Lower dome clear for Surface or Pendant mounted IMD Series | E105: Lower dome clear for Surface or Pendant mounted Sarix Multi cameras | F105: 149 | G105: 149 | H105: ZAM
B106: Camera Accessories | C106: IMM-CM | D106: Corner Mount for WMVE-SR; Telegrey | E106: Corner Mount for WMVE-SR; Telegrey | F106: 123 | G106: 123 | H106: ZAM
B107: Camera Accessories | C107: IMM-CMAW | D107: Corner Mount for WMVE-AW Pantone 427C | E107: Corner Mount for WMVE-AW Pantone 427C | F107: 65 | G107: 65 | H107: ZAM
B108: Camera Accessories | C108: IMM-PNL | D108: Ceiling Panel for Optera Inceiling Mount 2Ftx2Ft White | E108: Ceiling Panel for Optera Inceiling Mount 2Ftx2Ft White | F108: 212 | G108: 212 | H108: ZAM
B109: Camera Accessories | C109: IMM12018-1EI | D109: Optera 12MP 180 Environmental Inceiling dome camera telegrey | E109: Optera Panomersive 12MP 180 degree Environmental Inceiling dome camera telegrey Advanced Analytics Camera Link | F109: 2,209 | G109: 2,209 | H109: ZAM
B110: Camera Accessories | C110: IMM12018-1EP | D110: Optera 12MP 180 Environmental Pendant dome camera telegrey | E110: Optera Panomersive 12MP 180 degree Environmental Pendant dome camera telegrey Advanced Analytics Camera Link | F110: 2,209 | G110: 2,209 | H110: ZAM
B111: Camera Accessories | C111: IMM12018-1ES | D111: Optera 12MP 180 Environmental Surface mount dome camera telegrey | E111: Optera Panomersive 12MP 180 degree Environmental Surface mount dome camera telegrey Advanced Analytics Camera Link | F111: 2,209 | G111: 2,209 | H111: ZAM
B112: Camera Accessories | C112: IMM12018-1I | D112: Optera 12MP 180 Indoor vandal Inceiling dome camera White | E112: Optera Panomersive 12MP 180 degree Indoor vandal Inceiling dome camera White Advanced Analytics Camera Link | F112: 2,049 | G112: 2,049 | H112: ZAM
B113: Camera Accessories | C113: IMM12018-1P | D113: HPV42K2A700 | E113: VERSO house for PoE cameras IPM | F113: 2,049 | G113: 2,049 | H113: ZAM
B114: Camera Accessories | C114: IMM12018-1S | D114: HTG37K1A000 | E114: HTG house 365mm shld heat IN 120 230Vac | F114: 2,049 | G114: 2,049 | H114: ZAM
B115: Camera Accessories | C115: IMM12018-B1I | D115: HTV32K1A000 | E115: HTV house 300mm shld heat IN 120 230Vac | F115: 2,049 | G115: 2,049 | H115: ZAM
B116: Camera Accessories | C116: IMM12018-B1P | D116: IRH10H8A | E116: IR LED 10d Hi 850nm 12 24Vdc 24Vac 140m | F116: 2,049 | G116: 2,049 | H116: ZAM
B117: Camera Accessories | C117: IMM12018-B1S | D117: IRH10L8A | E117: IR LED 10d Lo 850nm 12 24Vdc-24Vac 100m | F117: 2,049 | G117: 2,049 | H117: ZAM
B118: Camera Accessories | C118: IMM12027-1EI | D118: IRH30H9A | E118: IR LED 30d Hi 940nm 12 24Vdc-24Vac 60m | F118: 2,209 | G118: 2,209 | H118: ZAM
B119: Camera Accessories | C119: IMM12027-1EP | D119: IRH30L8A | E119: IR LED 30d Low 850nm 12 24Vdc-24Vac 60m | F119: 2,209 | G119: 2,209 | H119: ZAM
B120: Camera Accessories | C120: IMM12027-1ES | D120: IRH60H9A | E120: IR LED 60d Hi 940nm 12 24Vdc-24Vac 40m | F120: 2,209 | G120: 2,209 | H120: ZAM
B121: Camera Accessories | C121: IMM12027-1I | D121: IRH60L8A | E121: IR LED 60d Lo 850nm 12 24Vdc 24Vac 40m | F121: 2,049 | G121: 2,049 | H121: ZAM
B122: Camera Accessories | C122: IMM12027-1P | D122: IRHPS230 | E122: Power IN 230Vac 50 60Hz OUT 24Vac 30W | F122: 2,049 | G122: 2,049 | H122: ZAM
B123: Camera Accessories | C123: IMM12027-1S | D123: IRN10A9AS00 | E123: IR LED 10d 940nm 100 240Vac 140m | F123: 2,049 | G123: 2,049 | H123: ZAM
B124: Camera Accessories | C124: IMM12027-B1I | D124: IRN10B9AS00 | E124: IR LED 10d 940nm 24Vac-12 24Vdc 140m | F124: 2,049 | G124: 2,049 | H124: ZAM
B125: Camera Accessories | C125: IMM12027-B1P | D125: IRN30A9AS00 | E125: IR LED 30d 940nm 100 240Vac 80m | F125: 2,049 | G125: 2,049 | H125: ZAM
B126: Camera Accessories | C126: IMM12027-B1S | D126: IRN30B8AS00 | E126: IR LED 30d 850nm 24Vac 12 24Vdc 130m | F126: 2,049 | G126: 2,049 | H126: ZAM
B127: Camera Accessories | C127: IMM12036-1EI | D127: IRN30BWAS00 | E127: LED white light 30d 24Vac 12 24Vdc 120m | F127: 2,209 | G127: 2,209 | H127: ZAM
B128: Camera Accessories | C128: IMM12036-1EP | D128: IRN60A9AS00 | E128: IR LED 60d 940nm 100 240Vac 60m | F128: 2,209 | G128: 2,209 | H128: ZAM
B129: Camera Accessories | C129: IMM12036-1ES | D129: IRN60B8AS00 | E129: IR LED 60d 850nm 24Vac 12 24Vdc 80m | F129: 2,209 | G129: 2,209 | H129: ZAM
B130: Camera Accessories | C130: IMM12036-1I | D130: IRN60BWAS00 | E130: LED white light 60d 24Vac 12 24Vdc 90m | F130: 2,049 | G130: 2,049 | H130: ZAM
B131: Camera Accessories | C131: IMM12036-1P | D131: MBA2S5A | E131: ExP Comm box in aluminium 24Vac | F131: 2,049 | G131: 2,049 | H131: ZAM
B132: Camera Accessories | C132: IMM12036-1S | D132: MBX1MAA | E132: ExP Comm box SS IN 230Vac OUT 24Vac | F132: 2,049 | G132: 2,049 | H132: ZAM
B133: Camera Accessories | C133: IMM12036-B1I | D133: MBX3MAA | E133: ExP Comm box SS IN 120Vac OUT 24Vac | F133: 2,049 | G133: 2,049 | H133: ZAM
B134: Camera Accessories | C134: IMM12036-B1P | D134: MBXWRE | E134: Key for opening and closing MAXIMUS MBX | F134: 2,049 | G134: 2,049 | H134: ZAM
B135: Camera Accessories | C135: IMM12036-B1S | D135: MHX1CW000A | E135: MHX SS housing 230Vac wiper sunshield | F135: 2,049 | G135: 2,049 | H135: ZAM
B136: Camera Accessories | C136: IMMBB0-BP | D136: Backbox for Optera Indoor Vandal Pendant Mount Black | E136: Backbox for Optera Indoor Vandal Pendant Mount Black | F136: 64 | G136: =F136-(F136*G$6) -> 64 | H136: ZAM
B137: Camera Accessories | C137: IMMBB0-BS | D137: Backbox for Optera Indoor Vandal Surface Mount Black | E137: Backbox for Optera Indoor Vandal Surface Mount Black | F137: 64 | G137: 64 | H137: ZAM
B138: Camera Accessories | C138: IMMBB0-EI | D138: Backbox for Optera Environmental Vandal Inceiling Mount Telegrey Plenum Rated | E138: Backbox for Optera Environmental Vandal Inceiling Mount Telegrey Plenum Rated | F138: 64 | G138: 64 | H138: ZAM
B139: Camera Accessories | C139: IMMBB0-EP | D139: Backbox for Optera Environmental Vandal Pendant Mount Telegrey | E139: Backbox for Optera Environmental Vandal Pendant Mount Telegrey | F139: 64 | G139: 64 | H139: ZAM
B140: Camera Accessories | C140: IMMBB0-ES | D140: Backbox for Optera Environmental Vandal Surface Mount Telegrey | E140: Backbox for Optera Environmental Vandal Surface Mount Telegrey | F140: 64 | G140: 64 | H140: ZAM
B141: Camera Accessories | C141: IMMBB0-I | D141: Backbox for Optera Indoor Vandal Inceiling Mount White Plenum Rated | E141: Backbox for Optera Indoor Vandal Inceiling Mount White Plenum Rated | F141: 64 | G141: 64 | H141: ZAM
B142: Camera Accessories | C142: IMMBB0-P | D142: Backbox for Optera Indoor Vandal Pendant Mount White | E142: Backbox for Optera Indoor Vandal Pendant Mount White | F142: 64 | G142: 64 | H142: ZAM
B143: Camera Accessories | C143: IMMBB0-S | D143: Backbox for Optera Indoor Vandal Surface Mount White | E143: Backbox for Optera Indoor Vandal Surface Mount White | F143: 64 | G143: 64 | H143: ZAM
B144: Camera Accessories | C144: IRH10H8A | D144: IRH10H8A | E144: IR LED 10d Hi 850nm 12 24Vdc 24Vac 140m | F144: 277 | G144: 277 | H144: ZAM
B145: Camera Accessories | C145: IRH10H9A | D145: IRH10H9A | E145: IR LED 10d Hi 940nm 12 24Vdc-24Vac 100m | F145: 468 | G145: 468 | H145: ZAM
B146: Camera Accessories | C146: IRH10L8A | D146: IRH10L8A | E146: IR LED 10d Lo 850nm 12 24Vdc-24Vac 100m | F146: 217 | G146: 217 | H146: ZAM
B147: Camera Accessories | C147: IRH30H8A | D147: IRH30H8A | E147: IR LED 30d Hi 850nm 12 24Vdc-24Vac 84m | F147: 277 | G147: 277 | H147: ZAM
B148: Camera Accessories | C148: IRH30H9A | D148: IRH30H9A | E148: IR LED 30d Hi 940nm 12 24Vdc-24Vac 60m | F148: 468 | G148: 468 | H148: ZAM
B149: Camera Accessories | C149: IRH30HWA | D149: IRH30HWA | E149: LED whitelight 30d 24Vac 12 24Vdc 60m | F149: 348 | G149: 348 | H149: ZAM
B150: Camera Accessories | C150: IRH30L8A | D150: IRH30L8A | E150: IR LED 30d Low 850nm 12 24Vdc-24Vac 60m | F150: 217 | G150: 217 | H150: ZAM
B151: Camera Accessories | C151: IRH60H8A | D151: IRH60H8A | E151: IR LED 60d Hi 850nm 12 24Vdc-24Vac 56m | F151: 277 | G151: 277 | H151: ZAM
B152: Camera Accessories | C152: IRH60H9A | D152: IRH60H9A | E152: IR LED 60d Hi 940nm 12 24Vdc-24Vac 40m | F152: 468 | G152: 468 | H152: ZAM
B153: Camera Accessories | C153: IRH60HWA | D153: IRH60HWA | E153: LED white light 60d 24Vac 12 24Vdc 40m | F153: 348 | G153: 348 | H153: ZAM
B154: Camera Accessories | C154: IRH60L8A | D154: IRH60L8A | E154: IR LED 60d Lo 850nm 12 24Vdc 24Vac 40m | F154: 217 | G154: 217 | H154: ZAM
B155: Camera Accessories | C155: IRHPS120 | D155: IRHPS120 | E155: Power IN 120Vac 50 60Hz OUT 24Vac 30W | F155: 111 | G155: 111 | H155: ZAM
B156: Camera Accessories | C156: IRHPS230 | D156: IRHPS230 | E156: Power IN 230Vac 50 60Hz OUT 24Vac 30W | F156: 111 | G156: 111 | H156: ZAM
B157: Camera Accessories | C157: IRN10A8AS00 | D157: IRN10A8AS00 | E157: IR LED 10d 850nm 100 240Vac 240m | F157: 589 | G157: 589 | H157: ZAM
B158: Camera Accessories | C158: IRN10A9AS00 | D158: IRN10A9AS00 | E158: IR LED 10d 940nm 100 240Vac 140m | F158: 986 | G158: 986 | H158: ZAM
B159: Camera Accessories | C159: IRN10B8AS00 | D159: IRN10B8AS00 | E159: IR LED 10d 850nm 24Vac-12 24Vdc 240m | F159: 481 | G159: 481 | H159: ZAM
B160: Camera Accessories | C160: IRN10B9AS00 | D160: IRN10B9AS00 | E160: IR LED 10d 940nm 24Vac-12 24Vdc 140m | F160: 854 | G160: 854 | H160: ZAM
B161: Camera Accessories | C161: IRN30A8AS00 | D161: IRN30A8AS00 | E161: IR LED 30d 850nm 100 240Vac 130m | F161: 589 | G161: 589 | H161: ZAM
B162: Camera Accessories | C162: IRN30A9AS00 | D162: IRN30A9AS00 | E162: IR LED 30d 940nm 100 240Vac 80m | F162: 986 | G162: 986 | H162: ZAM
B163: Camera Accessories | C163: IRN30AWAS00 | D163: IRN30AWAS00 | E163: LED white light 30d 100 240Vac 120m | F163: 637 | G163: 637 | H163: ZAM
B164: Camera Accessories | C164: IRN30B8AS00 | D164: IRN30B8AS00 | E164: IR LED 30d 850nm 24Vac 12 24Vdc 130m | F164: 481 | G164: 481 | H164: ZAM
B165: Camera Accessories | C165: IRN30B9AS00 | D165: IRN30B9AS00 | E165: IR LED 30d 940nm 24Vac 12 24Vdc 80m | F165: 854 | G165: 854 | H165: ZAM
B166: Camera Accessories | C166: IRN30BWAS00 | D166: IRN30BWAS00 | E166: LED white light 30d 24Vac 12 24Vdc 120m | F166: 528 | G166: 528 | H166: ZAM
B167: Camera Accessories | C167: IRN60A8AS00 | D167: IRN60A8AS00 | E167: IR LED 60d 850nm 100 240Vac 80m | F167: 589 | G167: 589 | H167: ZAM
B168: Camera Accessories | C168: IRN60A9AS00 | D168: IRN60A9AS00 | E168: IR LED 60d 940nm 100 240Vac 60m | F168: 986 | G168: 986 | H168: ZAM
B169: Camera Accessories | C169: IRN60AWAS00 | D169: IRN60AWAS00 | E169: LED white light 60d 100 240Vac 90m | F169: 637 | G169: 637 | H169: ZAM
B170: Camera Accessories | C170: IRN60B8AS00 | D170: IRN60B8AS00 | E170: IR LED 60d 850nm 24Vac 12 24Vdc 80m | F170: 481 | G170: 481 | H170: ZAM
B171: Camera Accessories | C171: IRN60B9AS00 | D171: IRN60B9AS00 | E171: IR LED 60d 940nm 24Vac 12 24Vdc 60m | F171: 854 | G171: 854 | H171: ZAM
B172: Camera Accessories | C172: IRN60BWAS00 | D172: IRN60BWAS00 | E172: LED white light 60d 24Vac 12 24Vdc 90m | F172: 528 | G172: 528 | H172: ZAM
B173: Camera Accessories | C173: MBA1S5A | D173: MBA1S5A | E173: ExP comm box in aluminium 230Vac | F173: 1,817 | G173: 1,817 | H173: ZAM
B174: Camera Accessories | C174: MBA2S5A | D174: MBA2S5A | E174: ExP Comm box in aluminium 24Vac | F174: 1,817 | G174: 1,817 | H174: ZAM
B175: Camera Accessories | C175: MBA3S5A | D175: MBA3S5A | E175: ExP Comm box in aluminium 120Vac | F175: 1,817 | G175: 1,817 | H175: ZAM
B176: Camera Accessories | C176: MBX1MAA | D176: MBX1MAA | E176: ExP Comm box SS IN 230Vac OUT 24Vac | F176: 2,155 | G176: 2,155 | H176: ZAM
B177: Camera Accessories | C177: MBX2MAA | D177: MBX2MAA | E177: ExP Comm box SS IN 24Vac OUT 24Vac | F177: 2,155 | G177: 2,155 | H177: ZAM
B178: Camera Accessories | C178: MBX3MAA | D178: MBX3MAA | E178: ExP Comm box SS IN 120Vac OUT 24Vac | F178: 2,155 | G178: 2,155 | H178: ZAM
B179: Camera Accessories | C179: MBXMP | D179: MBXMP | E179: Plate for MBX with MPXCOL or MPXCW | F179: 363 | G179: 363 | H179: ZAM
B180: Camera Accessories | C180: MBXWRE | D180: MBXWRE | E180: Key for opening and closing MAXIMUS MBX | F180: 69 | G180: 69 | H180: ZAM
B181: Camera Accessories | C181: MHX1CS000A | D181: MHX1CS000A | E181: MHX SS housing 230Vac sunshield | F181: 4,212 | G181: 4,212 | H181: ZAM
B182: Camera Accessories | C182: MHX1CW000A | D182: MHX1CW000A | E182: MHX SS housing 230Vac wiper sunshield | F182: 5,100 | G182: 5,100 | H182: ZAM
B183: Camera Accessories | C183: MHX2CS000A | D183: MHX2CS000A | E183: MHX SS housing 24Vac sunshield. | F183: 4,212 | G183: 4,212 | H183: ZAM
B184: Camera Accessories | C184: MHX2CW000A | D184: MHX2CW000A | E184: MHX SS housing 24Vac wiper sunshield. | F184: 5,100 | G184: 5,100 | H184: ZAM
B185: Camera Accessories | C185: MHX3CS000A | D185: MHX3CS000A | E185: MHX SS housing 120Vac sunshield. | F185: 4,212 | G185: 4,212 | H185: ZAM
B186: Camera Accessories | C186: MHX3CW000A | D186: MHX3CW000A | E186: MHX SS housing 120Vac wiper sunshield. | F186: 5,100 | G186: 5,100 | H186: ZAM
B187: Camera Accessories | C187: MHXT1C000B | D187: MHXT1C000B | E187: MHXT housing 230Vac thermal sunshield | F187: 7,725 | G187: 7,725 | H187: ZAM
B188: Camera Accessories | C188: MHXT2C000B | D188: MHXT2C000B | E188: MHXT housing 24Vac thermal sunshield | F188: 7,725 | G188: 7,725 | H188: ZAM
B189: Camera Accessories | C189: MHXT3C000B | D189: MHXT3C000B | E189: MHXT housing 120Vac thermal sunshield | F189: 7,725 | G189: 7,725 | H189: ZAM
B190: Camera Accessories | C190: MHXWBS | D190: MHXWBS | E190: Wall bracket for housing MHX MHXT NX | F190: 519 | G190: 519 | H190: ZAM
B191: Camera Accessories | C191: MHXWFWCA | D191: MHXWFWCA | E191: Parapet bracket house MHX MVX and NX | F191: 288 | G191: 288 | H191: ZAM
B192: Camera Accessories | C192: MLX2830AA | D192: MLX2830AA | E192: MLX ExP SS IR 850nm 70d 24Vdc 24Vac PoE | F192: 2,224 | G192: 2,224 | H192: ZAM
B193: Camera Accessories | C193: MLX2W30AA | D193: MLX2W30AA | E193: MLX ExP SS whitelite 70d 24Vdc 24Vac PoE | F193: 2,044 | G193: 2,044 | H193: ZAM
B194: Camera Accessories | C194: MMXCWCOL | D194: MMXCWCOL | E194: MMX corner and pole adapter | F194: 117 | G194: 117 | H194: ZAM
B195: Camera Accessories | C195: MPX2CABL101 | D195: MPX2CABL101 | E195: MPX2 10m unarm cable barrier gland | F195: 1,286 | G195: 1,286 | H195: ZAM
B196: Camera Accessories | C196: MPX2CABL41 | D196: MPX2CABL41 | E196: MPX2 4m unarm cable barrier gland | F196: 859 | G196: 859 | H196: ZAM
B197: Camera Accessories | C197: MPX2CABLARM101 | D197: MPX2CABLARM101 | E197: MPX2 10m armoured cable barrier gland | F197: 1,286 | G197: 1,286 | H197: ZAM
B198: Camera Accessories | C198: MPX2CABLARM41 | D198: MPX2CABLARM41 | E198: MPX2 4m armoured cable barrier gland | F198: 859 | G198: 859 | H198: ZAM
B199: Camera Accessories | C199: MPXCOL | D199: MPXCOL | E199: Pole mount adaptor | F199: 427 | G199: 427 | H199: ZAM
B200: Camera Accessories | C200: MPXCW | D200: MPXCW | E200: Corner mount adaptor | F200: 312 | G200: =F200-(F200*G$6) -> 312 | H200: ZAM
B201: Camera Accessories | C201: MPXWBA | D201: MPXWBA | E201: Wall bracket | F201: 578 | G201: 578 | H201: ZAM
B202: Camera Accessories | C202: MPXWBTA | D202: MPXWBTA | E202: Parapet or ceiling mounting bracket | F202: 249 | G202: 249 | H202: ZAM
B203: Camera Accessories | C203: NPTA-1001 | D203: 1.5 inch NPT Adapter for Large Pendant Mount Camera | E203: 1.5 inch NPT Adapter for Large Pendant Mount Camera | F203: 56 | G203: 56 | H203: ZAM
B204: Camera Accessories | C204: NTM36K1000 | D204: NTM36K1000 | E204: SS therm house shld heater IN 120 230Vac | F204: 1,956 | G204: 1,956 | H204: ZAM
... 1375 more rows

Sheet Usługi Techniczne
C3: CENNIK PRODUKTÓW CCTV
C4: USŁUGI TECHNICZNE | SERWIS | WSPARCIE
B8: USŁUGI SERWISOWE | D8: Cena w PLN
B9: EKSPERTYZA TECHNICZNA | C9: Ekspertyza techniczna urządzenia dostarczonego do serwisu CBC Poland (dotyczy urządzeń po okresie gwarancji lub usterki wykluczonej z warunków gwarancji) | D9: 100
B10: WSTĘPNA EKSPERTYZA URZĄDZENIA | C10: Ekspertyza techniczna urządzenia dostarczonego do serwisu CBC Poland bez dołączonego zgłoszenia naprawy serwisowej z opisem usterki. | D10: 100
B11: RESET HASŁA | C11: Reset hasła w rejestratorze do wartości fabrycznej | D11: 100
B12: CZYSZCZENIE | C12: Czyszczenie obudowy urządzenia po zwrocie z wypożyczenia (po uprzednim poinformowaniu klienta) | D12: 100
B13: KURIER | C13: Odesłanie sprzętu do klienta po serwisie (kurier) | D13: 20
B16: Uruchomienie systemu GANZ CORTROL (Zdalne) | C16: Usługa uruchomienia i konfiguracji systemu bazującego na aplikacji GANZ CORTROL Premier/Global. Usługa zawiera pakiet 6 godzin połączenia zdalnego w danym dniu + 4 godziny do wykorzystania na modyfikacje konfiguracji w okresie następnych 30 dni. Dalsze wsparcie naliczane będzie według cennika. Nie dotyczy modułów analityki VCA, AI, LPR, FR. Usługa realizowana poprzez dedykowane narzędzie pulpitu zdalnego TeamViewer w wersji CBC. Dla realizacji usługi wymagane jest wypełnienie oraz podpisanie przez zamawiającego oświadczenia o akceptacji zakresu oraz warunków asysty technicznej. | D16: 2,800
B17: Uruchomienie systemu GANZ CORTROL (Lokalne) | C17: Usługa uruchomienia i konfiguracji systemu bazującego na aplikacji GANZ CORTROL Premier/Global. Usługa zawiera pakiet 8 godzin wsparcia lokalnego na obiekcie danego dnia (dojazd wliczony w cenę) + 4 godziny do wykorzystania na modyfikacje konfiguracji w okresie następnych 30 dni (zdalny pulpit). Dalsze wsparcie naliczane będzie według cennika. Nie dotyczy modułów analityki VCA, AI, LPR, FR. Usługa realizowana poprzez dedykowane narzędzie pulpitu zdalnego TeamViewer w wersji CBC. Dla realizacji usługi wymagane jest wypełnienie oraz podpisanie przez zamawiającego oświadczenia o akceptacji zakresu oraz warunków asysty technicznej. | D17: 3,800
B18: Zdalne wsparcie techniczne (opłata za każdą rozpoczętą godzinę) | C18: Usługa zdalnego wsparcia dla produktów: CORTROL oraz VCA - opłata za każdą rozpoczętą godzinę dla klientów | D18: 300
B19: Wsparcie techniczne na obiekcie (opłata za każdą rozpoczętą godzinę) | C19: Usługa lokalnego wsparcia na obiekcie dla produktów: CORTROL oraz VCA - opłata za każdą rozpoczętą godzinę dla klientów. Wymagane podpisanie oświadczenia o spełnieniu warunków przygotowania systemu dla asysty lokalnej. | D19: 300
B20: Dojazd do obiektu | C20: Dojazd specjalisty technicznego na obiekt | D20: 350
B22: * Klientom, którzy odbyli szkolenie z zakresu rozwiązań CORTROL i/lub VCA przysługuje pakiet 5h zdalnego wsparcia technicznego.
B23: Zarejestruj się na bezpłatne szkolenie: szkolenia@cbcpoland.pl
B24: Ceny są cenami detalicznymi PLN netto, do których należy doliczyć 23% VAT. UWAGA: stawki usług nie podlegają rabatom!

Sheet WARUNKI HANDLOWE
B3: OGÓLNE WARUNKI HANDLOWE
B5: 1. | C5: Postanowienia Ogólne
B6: a) | C6: Poniższe Ogólne Warunki Handlowe mają zastosowanie do wszystkich umów kupna/sprzedaży zawieranych pomiędzy firmą CBC (Poland) Sp. z o.o. (zwaną dalej jako CBC) z siedzibą w: 01-793 Warszawa, ul. Rydygiera 8, bud.17, a klientem (zwanym dalej Nabywcą). CBC dostarcza produkty/usługi wyłącznie w oparciu o niniejsze warunki. Jakiekolwiek odstępstwa od niniejszych warunków wymagają uzgodnienia z CBC.
B7: b) | C7: W przypadku rozbieżności pomiędzy poniższymi warunkami a innymi postanowieniami, niniejsze Ogólne Warunki Handlowe mają znaczenie nadrzędne, chyba że odmienne warunki zostaną potwierdzone i zaakceptowane pisemnie przez CBC.
B9: 2. | C9: Ceny i warunki płatności
B10: a) | C10: Ceny cennikowe nie zawierają podatku VAT. CBC sprzedaje towar Nabywcy po cenach wg aktualnego cennika. Ewentualne rabaty dotyczą akcji promocyjnych lub indywidualnych ustaleń z Nabywcą. CBC zastrzega sobie prawo do zmian cen bez uprzedniego powiadamiania klientów, o ile nie zostało to wcześniej ustalone indywidualnie.
B11: b) | C11: Termin i warunki płatności wynikają z faktury (oraz faktury pro forma, jeśli dotyczy). O terminowości zapłaty decyduje data wpływu płatności na konto bankowe CBC. W przypadku zaległości płatniczej ze strony Nabywcy powyżej 14 dni, CBC wstrzymuje realizację zamówień i dostawy towaru do Nabywcy do czasu uregulowania wszystkich płatności.
B12: c) | C12: CBC zastrzega sobie prawo do naliczania odsetek za przeterminowane płatności według aktualnie obowiązujących wysokości odsetek ustawowych.
B14: 3. | C14: Dostawy
B15: a) | C15: Terminy dostaw podawane przez CBC w potwierdzeniach zamówień lub gdziekolwiek indziej są określane w przybliżeniu, a ich ewentualne przekroczenie nie niesie za sobą żadnych konsekwencji.
B16: b) | C16: Jeśli nie zostanie to wyraźnie uzgodnione w inny sposób, CBC nie będzie ponosić odpowiedzialności w stosunku do Nabywcy w związku z ewentualnym defektem produktu, uszkodzeniem bądź brakiem elementów, które zaistnieją podczas transportu. Dlatego też zaleca się Nabywcy uprzednie ubezpieczanie przesyłek kurierskich zawierających zakupiony towar.
B17: c) | C17: Nabywca ma prawo zgłosić roszczenia odnośnie widocznych uszkodzeń opakowania, w którym znajdowały się produkty podczas transportu. W przypadku, gdy opakowanie jest uszkodzone, roszczenie musi zostać skierowane bezpośrednio do przewoźnika w formie pisemnej. Procedura reklamacyjna postępuje pomiędzy Nabywcą a przewoźnikiem.
B18: d) | C18: Koszty przesyłki towaru ponosi Nabywca i są one doliczane do faktury, chyba że Nabywca wskaże określonego przewoźnika, z którym współpracuje lub też zostały ustalone indywidualne warunki pomiędzy CBC i Nabywcą.
B20: 4. | C20: Reklamacje
C21: Nabywca jest zobowiązany sprawdzić towar przy odbiorze. Jakiekolwiek usterki zakupionego towaru, niezgodność towaru z zamówieniem lub niekompletne wyposażenie produktu muszą być niezwłocznie zgłoszone na piśmie w terminie nie dłuższym niż 7 dni roboczych od daty otrzymania towaru. W przypadku braku zgłoszenia reklamacji, realizacja zamówienia będzie uznana jako zgodna z umową, a dostarczony towar jako zaakceptowany przez Nabywcę. Miejscem wykonania zobowiązań wynikających z odpowiedzialności za wady towaru jest siedziba CBC.
B23: 5. | C23: Gwarancja oraz odpowiedzialność za wady towaru
B24: a) | C24: Produkty oferowane przez CBC są objęte gwarancją na okres 3 lat począwszy od daty wystawienia faktury sprzedaży, jeśli użytkowane są we właściwy sposób. Pozostałe inne marki oferowane przez CBC (Videotec, Alnet, Vigilant Vision i inne ), są objęte gwarancją producenta tych marek.
B25: b) | C25: Okres gwarancji na części po naprawie pogwarancyjnej wynosi 6 miesięcy (GANZ i Computar)
B26: c) | C26: Prawo do gwarancji udzielanej przez CBC ma jedynie pierwszy bezpośredni klient CBC na podstawie faktury sprzedaży.
B27: d) | C27: Nabywca bezwzględnie traci prawo do bezpłatnej naprawy gwarancyjnej w przypadku:
B28: d.1) | C28: Uszkodzeń towaru powstałych w wyniku wypadków losowych, przypadków niewłaściwego bądź niezgodnego z instrukcją obsługi przechowywania, instalacji oraz eksploatowania, zaniedbania z winy użytkownika bądź uszkodzenia powstałego podczas transportu
B29: d.2) | C29: Uszkodzeń spowodowanych zużyciem eksploatacyjnym, lub uszkodzeń spowodowanych niewłaściwą współpracą z innymi, niekompatybilnymi urządzeniami.
B30: d.3) | C30: Stwierdzenia modyfikacji, napraw lub jakichkolwiek manipulacji w reklamowanym urządzeniu, dokonanych poza autoryzowanym punktem serwisowym CBC.
B31: d.4) | C31: Stwierdzenia usunięcia lub modyfikacji etykiety znamionowej zawierającej model oraz numer seryjny urządzenia, uniemożliwiając identyfikację urządzenia.
B32: e) | C32: Nabywca oprócz roszczeń wynikających z wad towaru, nie ma prawa do odszkodowania, między innymi z tytułu straconego zysku w rezultacie nabycia towaru z wadami.
B33: f) | C33: Miejscem wykonania zobowiązań wynikających z gwarancji na nabyty towar jest siedziba CBC. Towar reklamowany w ramach gwarancji musi być dostarczony do CBC na koszt Nabywcy. CBC pokrywa koszt dostarczenia/przesyłki naprawionego lub wymienionego w ramach gwarancji towaru do Nabywcy.
B34: g) | C34: Aktywacje Token'a dla licencji na analitykę VCA można wykonać tylko raz dla danego unikalnego identyfikatora sprzętowego co skutkuje rozszerzeniem funkcjonalności danego urządzenia zgodnie z opisem danej licencji. Token można aktywować ponownie dowolną ilość razy na urządzeniu o identyfikatorze sprzętowym tożsamym z tym na którym została wykonana pierwotna aktywacja.
B35: h) | C35: Aktywowane Token'y licencyjne na analitykę VCA dla kamer oraz enkoderów (analogowych oraz IP) są przypisane do unikalnego identyfikatora sprzętowego dla urządzenia, na którym dokonano ich pierwotnej aktywacji. W przypadku usterki urządzenia wymagającej jego wymiany w okresie gwarancyjnym, Token z funkcjonalnością tożsamą do zainstalowanej na uszkodzonym urządzeniu są generowane oraz aktywowane w urządzeniu zamiennym. W przypadku pogwarancyjnych napraw urządzenia, przysługuje prawo odpłatnego transferu lub generowania zastępczego Token'a dla licencji na analitykę VCA co wymaga uprzedniej konsultacji z serwisem CBC.
B36: i) | C36: Aktywowane Token'y licencyjne na analitykę VCA dla oprogramowania CORTROL VMS są przypisane do unikalnego identyfikatora sprzętowego dla urządzenia, na którym dokonano ich pierwotnej aktywacji. W przypadku usterki jednostki serwerowej, która w znacznym stopniu wpływa na zmianę konfiguracji a tym samym wygenerowaniu nowego identyfikatora sprzętowego dla urządzenia, istnieje możliwość wygenerowania Token'a zastępczego w okresie do 12 miesięcy od daty aktywacji pierwotnego Token'a. Po tym okresie przysługuje prawo odpłatnego transferu lub generowania zastępczego Token'a dla licencji na analitykę VCA co wymaga uprzedniej konsultacji z serwisem CBC.
B37: j) | C37: Aktywacje zakupionej licencji na oprogramowanie CORTROL VMS można wykonać automatycznie tylko jeden raz za pomocą dostarczonego klucza produktu w formie cyfrowej, w systemie spełniającym wymagania techniczne pod kątem programowym oraz sprzętowym opisane w dokumentacji dla oprogramowania CORTROL VMS. Aktywacja jest przypisana do systemu o unikalnym identyfikatorze sprzętowym generowanym na podstawie aktualnej konfiguracji sprzętowej.
B38: k) | C38: Zakupione licencje oprogramowania CORTROL VMS umożliwiają bezterminowe użytkowanie aplikacji zgodnie z jej specyfikacją oraz zawierają w pakiecie podstawowym subskrypcję na okres 24 miesięcy od daty pierwszej aktywacji w systemie o unikalnym identyfikatorze sprzętowym. Subskrypcja umożliwia instalacje aktualizacji wersji oprogramowania CORTROL VMS. Po zakończeniu okresu subskrypcji dla danego klucza produktu nie ma możliwości instalacji aktualizacji oprogramowania CORTROL VMS a wersja aplikacji zostaje zablokowana na aktualnie użytkowanej w dniu zakończenia rzeczonego okresu.
B39: l) | C39: Zakupione licencje oprogramowania CORTROL VMS są objęte gwarancją w okresie subskrypcji, która domyślnie wynosi 24 miesiące z możliwością przedłużenia zgodnie z informacjami zawartymi w cenniku. W przypadku usterki urządzenia na którym została aktywowana rzeczona licencja, wymagającej jego wymiany lub naprawy poprzez znaczną wymianę elementów bazowych, może ona zostać ponownie aktywowana na urządzeniu zamiennym po uprzedniej konsultacji z działem technicznym CBC.
B40: m) | C40: Zakupione licencje modułów dodatkowych oprogramowania CORTROL VMS (ZNS-LPR oraz ZNS-FR) są objęte gwarancją w okresie 24 miesięcy. W przypadku usterki urządzenia na którym zostały aktywowane rzeczone licencje, wymagającej jego wymiany lub naprawy poprzez znaczną wymianę elementów bazowych, może ona zostać ponownie aktywowana na urządzeniu zamiennym po uprzedniej konsultacji z działem technicznym CBC. Po okresie gwarancyjnym taka migracja nie przysługuje.
B41: n) | C41: Gwarancja na rejestratory CORTROL-NVR oraz preinstalowaną na nich licencje na oprogramowanie CORTROL VMS, wynosi równowartość okresu, którą objęta jest konfiguracja sprzętowa tj. 36 miesięcy (domyślnie).
B42: o) | C42: Aktywacje zakupionych licencji programowych na zawansowane funkcjonalności AI dla urządzeń ZN-AIBOX oraz kamer serii PixelPRO (ZNP oraz ZNU) można dokonać tylko raz na urzadzeniu o unikatowym adresie MAC karty sieciowej co skutkuje rozszerzeniem funkcjonalności danego urządzenia zgodnie z opisem danej licencji.
B43: p) | C43: Aktywowane licencje programowe na funkcje AI dla urządzeń ZN-AIBOX oraz kamer serii PixelPRO (ZNP oraz ZNU) są przypisane do unikalnego adresu MAC karty sieciowej dla urządzenia, na którym dokonano ich pierwotnej aktywacji. W przypadku usterki urządzenia wymagającej jego wymiany w okresie gwarancyjnym, licencje z funkcjonalnością tożsamą do zainstalowanej na uszkodzonym urządzeniu są generowane oraz aktywowane w urządzeniu zamiennym. W przypadku pogwarancyjnych napraw urządzenia, nie przysługuje prawo transferu lub generowania zastępczej licencji na funkcje AI.
B44: q) | C44: Licencje ZN-AIBOX-FR na funkcjonalność AI FR (rozpoznawanie twarzy) dla urządzeń ZN-AIBOX są dostarczane w formie klucza sprzętowego instalowanego wewnątrz urządzenia co skutkuje rozszerzeniem funkcjonalności danego urządzenia zgodnie z opisem danej licencji. Możliwe jest fizyczne migrowanie rzeczonego klucza sprzętowego między urządzeniami ZN-AIBOX w ramach specyfikacji danego urządzenia.
B45: r) | C45: Kamery GANZ zawierające w swojej konstrukcji moduły termowizyjne, objęte są standardową gwarancją w okresie 36 miesięcy na wszystkie elementy z wyłączeniem modułu przetwornika obrazu termowizyjnego którego okres gwarancji wynosi 24 miesiące (obowiązuje dla urzadzeń zakupionych po dniu 1 Stycznia 2020r.)
B46: s) | C46: Przeniesienie licencji dodatkowych lub pakietu Advanced w urządzeniu AI BOX 2.0 jest możliwe tylko w przypadku uszkodzenia produktu podlegającego gwarancji. Uszkodzone urządzenie musi zostać odesłane do serwisu firmy CBC Poland Sp. z o.o.
C47: Firma CBC Poland Sp. z o.o. zastrzega sobie możliwość zmiany zapotrzebowania na moc obliczeniową poszczególnych aplikacji analitycznych po wydaniu nowych aktualizacji oprogramowania układowego
B48: t) | C48: W urządzeniach z kategorii "Kamery" oraz "Akcesoria do kamer" dopuszcza się ingerencje w powłokę lakierniczą danego urządzenia przy zachowaniu jego fizycznych właściwości oraz szczelności korpusu obudowy. Ingerencja w powłokę lakierniczą nie uprawnia do wymiany urządzenia na inny egzemplarz a uszkodzenia wynikające z takowej ingerencji nie podlegają naprawie gwarancyjnej.
B49: u) | C49: Obiektywy marki Computar objęte są gwarancją której standardowy okres wynosi 36 miesięcy na elementy optyczne i mechaniczne oraz 12 miesięcy na części elektroniczne (silniki krokowe oraz sterownaie przysłony). Obowiązuje dla urzadzeń zakupionych po dniu 1 Stycznia 2021r.
B50: w) | C50: Zasilacze zewnętrzne dostarczane wraz z urządzeniami marki GANZ objęte są gwarancją której standardowy okres wynosi 12 miesięcy. Obowiązuje dla urządzeń zakupionych po dniu 1 Stycznia 2022r.
B52: 6. | C52: Siła wyższa
C53: CBC nie ponosi odpowiedzialności za niespełnienie zobowiązań spowodowanych przyczynami, na które nie CBC miało wpływu, w tym: sił wyższych (pożarów, powodzi, uderzeń pioruna), działań zbrojnych, utrudnień w logistyce, działaniem organów rządowych lub innych władz, uznania ważnych licencji lub zezwoleń.
B55: 7. | C55: Zwroty i Serwis
B56: a) | C56: Klient może zrezygnować z zakupionego towaru w terminie 10 dni od zawarcia umowy zakupu towaru. Towar powinien zostać zwrócony w stanie, w jakim został zakupiony, w oryginalnym opakowaniu wraz z fakturą sprzedaży, z kserokopią dowodu zapłaty (w przypadku przesyłki płatnej przy odbiorze), instrukcją obsługi (Dz.U. z dnia 31 marca 2000 r.).
B57: b) | C57: Zwrot towaru musi być uprzednio uzgodniony i zaakceptowany przez CBC, w przeciwnym wypadku przyjęcie zwróconego towaru będzie dokonywane przez wystawienie faktury korygującej. Rozpatrywane będą tylko sprawy do 3 miesięcy wstecz od daty wystawienia faktury.
B58: c) | C58: Koszty transportu/dostarczenia zwracanego towaru do CBC ponosi Nabywca.
B59: d) | C59: CBC zastrzega sobie prawo do nieprzyjęcia towaru w formie zwrotu, jeśli okaże stwierdzone zostaną uszkodzenia lub ślady używania. CBC zastrzega sobie również prawo do nieprzyjęcia zwrotu produktów niestandardowych, czyli nieobjętych podstawowym cennikiem.
B61: 8. | C61: Postanowienia końcowe
B62: a) | C62: Powyższe warunki handlowe obowiązują w przypadku każdej umowy kupna zawieranej pomiędzy CBC a Nabywcą.
B63: b) | C63: CBC zastrzega sobie prawo do zmiany warunków handlowych, o czym poinformuje w stosowny sposób na swojej stronie www.cbcpoland.pl.
